Workbook

Sheet TOT-0815
B2: ANEXO V al Memorandum D.T.E.E. N° 526 / 2016
A4: ENTE NACIONAL REGULADOR
A5: DE LA ELECTRICIDAD
B7: SISTEMA DE TRANSPORTE DE ENERGÍA ELÉCTRICA POR DISTRIBUCIÓN TRONCAL
B9: TRANSNOA S.A.
B11: TOTAL DE PENALIZACIONES
B13: 1
B14: Desde el 01 al 31 de agosto de 2015
B16: Sanciones duplicadas por tasa de falla > 4 Sal. x año/100km.
C18: 1.- | D18: LÍNEAS
D19: 1.1.- | E19: Equipamiento propio | J19: ='LI-08 (2)'!AA42 -> 337954.27
C23: 2.- | D23: CONEXIÓN
D24: 2.1.- | E24: Transformación
E25: 2.1.1.- | F25: Equipamiento propio | J25: ='T-08 (3)'!AC46 -> 140556.51
G30: TOTAL | H30: =SUM(J18:J28) -> 478510.78
C32: Valores remuneratorios según Convenio de Renovación del acuerdo Instrumental, Nota ENRE Nº 112130

Sheet LI-08 (1)
B2: =+'TOT-0815'!B2 -> ANEXO V al Memorandum D.T.E.E. N° 526 / 2016
A4: ENTE NACIONAL REGULADOR
A5: DE LA ELECTRICIDAD
F8: SISTEMA DE TRANSPORTE DE ENERGÍA ELÉCTRICA POR DISTRIBUCIÓN TRONCAL - TRANSNOA S.A.
F10: 1.- LÍNEAS
F12: 1.1.- Equipamiento propio
B14: ='TOT-0815'!B14 -> Desde el 01 al 31 de agosto de 2015
F16: $/100 km-h : LINEAS 132 kV | G16: 464.684 | K16: FACTOR DE PENALIZACION K = | L16: =30*'TOT-0815'!B13 -> 30 | M16: =IF(L16=30," ",IF(L16=60,"Coeficiente duplicado por tasa de falla >4 Sal. x año/100 km.","REVISAR COEFICIENTE")) -> 
C17: 3 | D17: 4 | E17: 5 | F17: 6 | G17: 7 | H17: 8 | I17: 9 | J17: 10 | K17: 11 | L17: 12 | M17: 13 | N17: 14 | O17: 15 | P17: 16 | Q17: 17 | R17: 18 | S17: 19 | T17: 20 | U17: 21 | V17: 22 | W17: 23 | X17: 24 | Y17: 25 | Z17: 26 | AA17: 27
C18: N° | D18: INDISP | E18: ID EQUIPO | F18: LÍNEAS | G18: U [kV] | H18: Long. [km] | I18: $/h | J18: Salida | K18: Entrada | L18: Hs. Indisp | M18: Minutos Indisp. | N18: Tipo Sal.(²) | O18: C.R. % | P18: PENALIZ. PROGRAM. | Q18: REDUCC. PROGRAM. | R18: PENALIZACION FORZADA Por Salida 1ras. 3 hs. hs. Restantes | U18: REDUCC. FORZADA Por Salida 1ras. 3 hs. hs. Restantes | X18: RESTANTE FORZADA | Y18: REDUCC. RESTANTE | Z18: Informó en Térm. | AA18: TOTAL PENALIZAC.
C21: 1 | D21: 290646 | E21: 278 | F21: ESTATICA SUR - SARMIENTO NOA | G21: 132 | H21: 4.400000095 | I21: =$G$16/100*IF(H21>25,H21,25) -> 116.171 | J21: 2015-08-01 | K21: 2015-08-01T17:14:00 | L21: =IF(F21="","",(K21-J21)*24) -> 17.23333333 | M21: =IF(F21="","",ROUND((K21-J21)*24*60,0)) -> 1034 | N21: P | O21: =IF(F21="","","--") -> -- | P21: =IF(N21="P",ROUND(M21/60,2)*I21*$L$16*0.01,"--") -> 600.487899 | Q21: =IF(N21="RP",I21*O21*ROUND(L21/60,2)*0.01*M21/100,"--") -> -- | R21: =IF(N21="F",I21*$L$16,"--") -> -- | S21: =IF(AND(M21>10,N21="F"),I21*$L$16*IF(M21>180,3,ROUND((M21)/60,2)),"--") -> -- | T21: =IF(AND(M21>180,N21="F"),(ROUND(M21/60,2)-3)*I21*$L$16*0.1,"--") -> -- | U21: =IF(N21="R",I21*$L$16*O21/100,"--") -> -- | V21: =IF(AND(M21>10,N21="R"),I21*$L$16*O21/100*IF(M21>180,3,ROUND(M21/60,2)),"--") -> -- | W21: =IF(AND(M21>180,N21="R"),(ROUND(M21/60,2)-3)*I21*$L$16*0.1*O21/100,"--") -> -- | X21: =IF(N21="RF",ROUND(M21/60,2)*I21*$L$16*0.1,"--") -> -- | Y21: =IF(N21="RR",ROUND(M21/60,2)*I21*$L$16*0.1*O21/100,"--") -> -- | Z21: SI | AA21: =IF(F21="","",SUM(P21:Y21)*IF(Z21="SI",1,2)) -> 600.487899
C22: 2 | D22: 290651 | E22: 279 | F22: ESTATICA SUR - INDEPENDENCIA (O.F.) | G22: 132 | H22: 2.599999905 | I22: 116.171 | J22: 2015-08-01T12:14:00 | K22: 2015-08-01T17:11:00 | L22: 4.95 | M22: 297 | N22: P | O22: -- | P22: 172.513935 | Q22: -- | R22: -- | S22: -- | T22: -- | U22: -- | V22: -- | W22: -- | X22: -- | Y22: -- | Z22: SI | AA22: 172.513935
C23: 3 | D23: 290658/59 | E23: 4395/96 | F23: CEVIL POZO - POZO AVE - AVELLANEDA | G23: 132 | H23: 8 | I23: 116.171 | J23: 2015-08-02T08:20:00 | K23: 2015-08-02T13:54:00 | L23: =IF(F23="","",(K23-J23)*24) -> 5.566666667 | M23: =IF(F23="","",ROUND((K23-J23)*24*60,0)) -> 334 | N23: P | O23: -- | P23: =IF(N23="P",ROUND(M23/60,2)*I23*$L$16*0.01,"--") -> 194.121741 | Q23: =IF(N23="RP",I23*O23*ROUND(L23/60,2)*0.01*M23/100,"--") -> -- | R23: =IF(N23="F",I23*$L$16,"--") -> -- | S23: =IF(AND(M23>10,N23="F"),I23*$L$16*IF(M23>180,3,ROUND((M23)/60,2)),"--") -> -- | T23: =IF(AND(M23>180,N23="F"),(ROUND(M23/60,2)-3)*I23*$L$16*0.1,"--") -> -- | U23: =IF(N23="R",I23*$L$16*O23/100,"--") -> -- | V23: =IF(AND(M23>10,N23="R"),I23*$L$16*O23/100*IF(M23>180,3,ROUND(M23/60,2)),"--") -> -- | W23: =IF(AND(M23>180,N23="R"),(ROUND(M23/60,2)-3)*I23*$L$16*0.1*O23/100,"--") -> -- | X23: =IF(N23="RF",ROUND(M23/60,2)*I23*$L$16*0.1,"--") -> -- | Y23: =IF(N23="RR",ROUND(M23/60,2)*I23*$L$16*0.1*O23/100,"--") -> -- | Z23: SI | AA23: 194.121741
C24: 4 | D24: 290660 | E24: 3621 | F24: CEVIL POZO - BURRUYACU | G24: 132 | H24: 56 | I24: 260.22304 | J24: 2015-08-02T08:22:00 | K24: 2015-08-02T13:52:00 | L24: =IF(F24="","",(K24-J24)*24) -> 5.5 | M24: =IF(F24="","",ROUND((K24-J24)*24*60,0)) -> 330 | N24: P | O24: -- | P24: =IF(N24="P",ROUND(M24/60,2)*I24*$L$16*0.01,"--") -> 429.368016 | Q24: =IF(N24="RP",I24*O24*ROUND(L24/60,2)*0.01*M24/100,"--") -> -- | R24: =IF(N24="F",I24*$L$16,"--") -> -- | S24: =IF(AND(M24>10,N24="F"),I24*$L$16*IF(M24>180,3,ROUND((M24)/60,2)),"--") -> -- | T24: =IF(AND(M24>180,N24="F"),(ROUND(M24/60,2)-3)*I24*$L$16*0.1,"--") -> -- | U24: =IF(N24="R",I24*$L$16*O24/100,"--") -> -- | V24: =IF(AND(M24>10,N24="R"),I24*$L$16*O24/100*IF(M24>180,3,ROUND(M24/60,2)),"--") -> -- | W24: =IF(AND(M24>180,N24="R"),(ROUND(M24/60,2)-3)*I24*$L$16*0.1*O24/100,"--") -> -- | X24: =IF(N24="RF",ROUND(M24/60,2)*I24*$L$16*0.1,"--") -> -- | Y24: =IF(N24="RR",ROUND(M24/60,2)*I24*$L$16*0.1*O24/100,"--") -> -- | Z24: SI | AA24: 429.368016
C25: 5 | D25: 290853 | E25: 5579 | F25: ESTATICA - INDEPENDENCIA 2 | G25: 132 | H25: 3.1 | I25: 116.171 | J25: 2015-08-01T12:14:00 | K25: 2015-08-01T17:11:00 | L25: 4.95 | M25: 297 | N25: P | O25: -- | P25: 172.513935 | Q25: -- | R25: -- | S25: -- | T25: -- | U25: -- | V25: -- | W25: -- | X25: -- | Y25: -- | Z25: SI | AA25: 172.513935
C26: 6 | D26: 290660 | E26: 3621 | F26: BURRUYACU - CEVIL POZO | G26: 132 | H26: 56 | I26: 260.22304 | J26: 2015-08-02T08:22:00 | K26: 2015-08-02T13:52:00 | L26: 5.5 | M26: 330 | N26: P | O26: -- | P26: 429.368016 | Q26: -- | R26: -- | S26: -- | T26: -- | U26: -- | V26: -- | W26: -- | X26: -- | Y26: -- | Z26: SI | AA26: 429.368016
C27: 7 | D27: 290661 | E27: 275 | F27: CEVIL POZO - TUCUMAN NORTE | G27: 132 | H27: 14.5 | I27: 116.171 | J27: 2015-08-02T08:24:00 | K27: 2015-08-02T13:50:00 | L27: 5.433333333 | M27: 326 | N27: P | O27: -- | P27: 189.242559 | Q27: -- | R27: -- | S27: -- | T27: -- | U27: -- | V27: -- | W27: -- | X27: -- | Y27: -- | Z27: SI | AA27: 189.242559
C28: 8 | D28: 290662 | E28: 2878 | F28: CEVIL POZO - EL BRACHO | G28: 132 | H28: 17 | I28: 116.171 | J28: 2015-08-02T08:26:00 | K28: 2015-08-02T14:13:00 | L28: 5.783333333 | M28: 347 | N28: P | O28: -- | P28: 201.440514 | Q28: -- | R28: -- | S28: -- | T28: -- | U28: -- | V28: -- | W28: -- | X28: -- | Y28: -- | Z28: SI | AA28: 201.440514
C29: 9 | D29: 291023 | E29: 5554 | F29: STGO CENTRO - FERNANDEZ - SUNCHO CORRAL | G29: 132 | H29: 103 | I29: 478.62452 | J29: 2015-08-03T07:23:00 | K29: 2015-08-03T14:12:00 | L29: 6.816666667 | M29: 409 | N29: P | O29: -- | P29: 979.2657679 | Q29: -- | R29: -- | S29: -- | T29: -- | U29: -- | V29: -- | W29: -- | X29: -- | Y29: -- | Z29: SI | AA29: 979.2657679
C30: 10 | D30: 291024 | E30: 5554 | F30: STGO CENTRO - FERNANDEZ - SUNCHO CORRAL | G30: 132 | H30: 103 | I30: 478.62452 | J30: 2015-08-05T07:22:00 | K30: 2015-08-05T17:04:00 | L30: 9.7 | M30: 582 | N30: P | O30: -- | P30: 1392.797353 | Q30: -- | R30: -- | S30: -- | T30: -- | U30: -- | V30: -- | W30: -- | X30: -- | Y30: -- | Z30: SI | AA30: 1392.797353
C31: 11 | D31: 291028 | E31: 5554 | F31: STGO CENTRO - FERNANDEZ - SUNCHO CORRAL | G31: 132 | H31: 103 | I31: 478.62452 | J31: 2015-08-06T07:22:00 | K31: 2015-08-06T14:41:00 | L31: 7.316666667 | M31: 439 | N31: P | O31: -- | P31: 1051.059446 | Q31: -- | R31: -- | S31: -- | T31: -- | U31: -- | V31: -- | W31: -- | X31: -- | Y31: -- | Z31: SI | AA31: 1051.059446
C32: 12 | D32: 291029 | E32: 305 | F32: TUCUMAN NORTE - EL BRACHO | G32: 132 | H32: 31.5 | I32: 146.37546 | J32: 2015-08-06T10:11:00 | K32: 2015-08-06T11:55:00 | L32: 1.733333333 | M32: 104 | N32: F | O32: -- | P32: -- | Q32: -- | R32: 4391.2638 | S32: 7596.886374 | T32: -- | U32: -- | V32: -- | W32: -- | X32: -- | Y32: -- | Z32: SI | AA32: 11988.15017
C33: 13 | D33: 291030 | E33: 4691 | F33: VILLA QUINTEROS - ANDALGALA | G33: 132 | H33: 102 | I33: 473.97768 | J33: 2015-08-06T11:26:00 | K33: 2015-08-06T19:38:00 | L33: 8.2 | M33: 492 | N33: F | O33: -- | P33: -- | Q33: -- | R33: 14219.3304 | S33: 42657.9912 | T33: 7394.051808 | U33: -- | V33: -- | W33: -- | X33: -- | Y33: -- | Z33: SI | AA33: 64271.37341
C34: 14 | D34: 291074 | E34: 4250 | F34: PAMPA GRANDE - TRANCAS | G34: 132 | H34: 55 | I34: 255.5762 | J34: 2015-08-06T15:15:00 | K34: 2015-08-06T15:37:00 | L34: 0.3666666666 | M34: 22 | N34: F | O34: -- | P34: -- | Q34: -- | R34: 7667.286 | S34: 2836.89582 | T34: -- | U34: -- | V34: -- | W34: -- | X34: -- | Y34: -- | Z34: SI | AA34: 10504.18182
C35: 15 | D35: 291147 | E35: 4811 | F35: ROSARIO DE LA FRONTERA - COBOS | G35: 132 | H35: 130.3999939 | I35: 605.9479076 | J35: 2015-08-12T07:03:00 | K35: 2015-08-12T07:27:00 | L35: 0.4000000001 | M35: 24 | N35: F | O35: -- | P35: -- | Q35: -- | R35: 18178.43723 | S35: 7271.374892 | T35: -- | U35: -- | V35: -- | W35: -- | X35: -- | Y35: -- | Z35: SI | AA35: 25449.81212
C36: 16 | D36: 291148 | E36: 4810 | F36: BURRUYACU - R. DE LA FRONTERA | G36: 132 | H36: 99.09999847 | I36: 460.5018369 | J36: 2015-08-12T07:03:00 | K36: 2015-08-12T07:48:00 | L36: 0.75 | M36: 45 | N36: F | O36: -- | P36: -- | Q36: -- | R36: 13815.05511 | S36: 10361.29133 | T36: -- | U36: -- | V36: -- | W36: -- | X36: -- | Y36: -- | Z36: SI | AA36: 24176.34644
C37: 17 | D37: 291156 | E37: 293 | F37: MINETTI - SAN JUANCITO | G37: 132 | H37: 26 | I37: 120.81784 | J37: 2015-08-13T18:22:00 | K37: 2015-08-13T18:51:00 | L37: 0.4833333333 | M37: 29 | N37: F | O37: -- | P37: -- | Q37: -- | R37: 3624.5352 | S37: 1739.776896 | T37: -- | U37: -- | V37: -- | W37: -- | X37: -- | Y37: -- | Z37: SI | AA37: 5364.312096
C38: 18 | D38: 291157 | E38: 4677 | F38: GUEMES SALTA - MINETTI | G38: 132 | H38: 36.09999847 | I38: 167.7509169 | J38: 2015-08-13T18:22:00 | K38: 2015-08-14T13:13:00 | L38: 18.85 | M38: 1131 | N38: F | O38: -- | P38: -- | Q38: -- | R38: 5032.527507 | S38: 15097.58252 | T38: 7976.556099 | U38: -- | V38: -- | W38: -- | X38: -- | Y38: -- | Z38: SI | AA38: 28106.66613
C39: 19 | D39: 291160 | E39: 3944 | F39: FRIAS - RECREO | G39: 132 | H39: 74.54000092 | I39: 346.3754579 | J39: 2015-08-16T07:19:00 | K39: 2015-08-16T09:27:00 | L39: =IF(F39="","",(K39-J39)*24) -> 2.133333333 | M39: =IF(F39="","",ROUND((K39-J39)*24*60,0)) -> 128 | N39: P | O39: =IF(F39="","","--") -> -- | P39: =IF(N39="P",ROUND(M39/60,2)*I39*$L$16*0.01,"--") -> 221.3339176 | Q39: =IF(N39="RP",I39*O39*ROUND(L39/60,2)*0.01*M39/100,"--") -> -- | R39: =IF(N39="F",I39*$L$16,"--") -> -- | S39: =IF(AND(M39>10,N39="F"),I39*$L$16*IF(M39>180,3,ROUND((M39)/60,2)),"--") -> -- | T39: =IF(AND(M39>180,N39="F"),(ROUND(M39/60,2)-3)*I39*$L$16*0.1,"--") -> -- | U39: =IF(N39="R",I39*$L$16*O39/100,"--") -> -- | V39: =IF(AND(M39>10,N39="R"),I39*$L$16*O39/100*IF(M39>180,3,ROUND(M39/60,2)),"--") -> -- | W39: =IF(AND(M39>180,N39="R"),(ROUND(M39/60,2)-3)*I39*$L$16*0.1*O39/100,"--") -> -- | X39: =IF(N39="RF",ROUND(M39/60,2)*I39*$L$16*0.1,"--") -> -- | Y39: =IF(N39="RR",ROUND(M39/60,2)*I39*$L$16*0.1*O39/100,"--") -> -- | Z39: SI | AA39: =IF(F39="","",SUM(P39:Y39)*IF(Z39="SI",1,2)) -> 221.3339176
C40: 20 | D40: 291161 | E40: 289 | F40: FRIAS - LA CALERA NOA | G40: 132 | H40: 27.29999924 | I40: 126.8587285 | J40: 2015-08-16T07:23:00 | K40: 2015-08-16T10:18:00 | L40: =IF(F40="","",(K40-J40)*24) -> 2.916666667 | M40: =IF(F40="","",ROUND((K40-J40)*24*60,0)) -> 175 | N40: P | O40: =IF(F40="","","--") -> -- | P40: =IF(N40="P",ROUND(M40/60,2)*I40*$L$16*0.01,"--") -> 111.1282461 | Q40: =IF(N40="RP",I40*O40*ROUND(L40/60,2)*0.01*M40/100,"--") -> -- | R40: =IF(N40="F",I40*$L$16,"--") -> -- | S40: =IF(AND(M40>10,N40="F"),I40*$L$16*IF(M40>180,3,ROUND((M40)/60,2)),"--") -> -- | T40: =IF(AND(M40>180,N40="F"),(ROUND(M40/60,2)-3)*I40*$L$16*0.1,"--") -> -- | U40: =IF(N40="R",I40*$L$16*O40/100,"--") -> -- | V40: =IF(AND(M40>10,N40="R"),I40*$L$16*O40/100*IF(M40>180,3,ROUND(M40/60,2)),"--") -> -- | W40: =IF(AND(M40>180,N40="R"),(ROUND(M40/60,2)-3)*I40*$L$16*0.1*O40/100,"--") -> -- | X40: =IF(N40="RF",ROUND(M40/60,2)*I40*$L$16*0.1,"--") -> -- | Y40: =IF(N40="RR",ROUND(M40/60,2)*I40*$L$16*0.1*O40/100,"--") -> -- | Z40: SI | AA40: =IF(F40="","",SUM(P40:Y40)*IF(Z40="SI",1,2)) -> 111.1282461
C41: 21 | D41: 291390 | E41: 5482 | F41: EL BRACHO - TERMAS NORTE | G41: 132 | H41: 78.4 | I41: 364.312256 | J41: 2015-08-17T13:56:00 | K41: 2015-08-17T18:00:00 | L41: =IF(F41="","",(K41-J41)*24) -> 4.066666667 | M41: =IF(F41="","",ROUND((K41-J41)*24*60,0)) -> 244 | N41: F | O41: =IF(F41="","","--") -> -- | P41: =IF(N41="P",ROUND(M41/60,2)*I41*$L$16*0.01,"--") -> -- | Q41: =IF(N41="RP",I41*O41*ROUND(L41/60,2)*0.01*M41/100,"--") -> -- | R41: =IF(N41="F",I41*$L$16,"--") -> 10929.36768 | S41: =IF(AND(M41>10,N41="F"),I41*$L$16*IF(M41>180,3,ROUND((M41)/60,2)),"--") -> 32788.10304 | T41: =IF(AND(M41>180,N41="F"),(ROUND(M41/60,2)-3)*I41*$L$16*0.1,"--") -> 1169.442342 | U41: =IF(N41="R",I41*$L$16*O41/100,"--") -> -- | V41: =IF(AND(M41>10,N41="R"),I41*$L$16*O41/100*IF(M41>180,3,ROUND(M41/60,2)),"--") -> -- | W41: =IF(AND(M41>180,N41="R"),(ROUND(M41/60,2)-3)*I41*$L$16*0.1*O41/100,"--") -> -- | X41: =IF(N41="RF",ROUND(M41/60,2)*I41*$L$16*0.1,"--") -> -- | Y41: =IF(N41="RR",ROUND(M41/60,2)*I41*$L$16*0.1*O41/100,"--") -> -- | Z41: SI | AA41: =IF(F41="","",SUM(P41:Y41)*IF(Z41="SI",1,2)) -> 44886.91306
C43: (²) | D43: P - PROGRAMADA ; F - FORZADA | P43: =SUM(P19:P42) -> 6144.641346 | Q43: 0 | R43: 77857.80292 | S43: 120349.9021 | T43: 16540.05025 | U43: 0 | V43: 0 | W43: 0 | X43: 0 | Y43: 0 | AA43: =ROUND(SUM(AA19:AA42),2) -> 220892.4

Sheet LI-08 (2)
B2: =+'TOT-0815'!B2 -> ANEXO V al Memorandum D.T.E.E. N° 526 / 2016
A4: ENTE NACIONAL REGULADOR
A5: DE LA ELECTRICIDAD
F8: SISTEMA DE TRANSPORTE DE ENERGÍA ELÉCTRICA POR DISTRIBUCIÓN TRONCAL - TRANSNOA S.A.
F10: 1.- LÍNEAS
F12: 1.1.- Equipamiento propio
B14: ='TOT-0815'!B14 -> Desde el 01 al 31 de agosto de 2015
F16: $/100 km-h : LINEAS 132 kV | G16: 464.684 | K16: FACTOR DE PENALIZACION K = | L16: =30*'TOT-0815'!B13 -> 30 | M16: =IF(L16=30," ",IF(L16=60,"Coeficiente duplicado por tasa de falla >4 Sal. x año/100 km.","REVISAR COEFICIENTE")) -> 
C17: 3 | D17: 4 | E17: 5 | F17: 6 | G17: 7 | H17: 8 | I17: 9 | J17: 10 | K17: 11 | L17: 12 | M17: 13 | N17: 14 | O17: 15 | P17: 16 | Q17: 17 | R17: 18 | S17: 19 | T17: 20 | U17: 21 | V17: 22 | W17: 23 | X17: 24 | Y17: 25 | Z17: 26 | AA17: 27
C18: N° | D18: INDISP | E18: ID EQUIPO | F18: LÍNEAS | G18: U [kV] | H18: Long. [km] | I18: $/h | J18: Salida | K18: Entrada | L18: Hs. Indisp | M18: Minutos Indisp. | N18: Tipo Sal.(²) | O18: C.R. % | P18: PENALIZ. PROGRAM. | Q18: REDUCC. PROGRAM. | R18: PENALIZACION FORZADA Por Salida 1ras. 3 hs. hs. Restantes | U18: REDUCC. FORZADA Por Salida 1ras. 3 hs. hs. Restantes | X18: RESTANTE FORZADA | Y18: REDUCC. RESTANTE | Z18: Informó en Térm. | AA18: TOTAL PENALIZAC.
AA19: ='LI-08 (1)'!AA43 -> 220892.4
C21: 22 | D21: 291391 | E21: 4250 | F21: PAMPA GRANDE - TRANCAS | G21: 132 | H21: 55 | I21: =$G$16/100*IF(H21>25,H21,25) -> 255.5762 | J21: 2015-08-18T02:42:00 | K21: 2015-08-18T02:53:00 | L21: =IF(F21="","",(K21-J21)*24) -> 0.1833333332 | M21: =IF(F21="","",ROUND((K21-J21)*24*60,0)) -> 11 | N21: F | O21: =IF(F21="","","--") -> -- | P21: =IF(N21="P",ROUND(M21/60,2)*I21*$L$16*0.01,"--") -> -- | Q21: =IF(N21="RP",I21*O21*ROUND(L21/60,2)*0.01*M21/100,"--") -> -- | R21: =IF(N21="F",I21*$L$16,"--") -> 7667.286 | S21: =IF(AND(M21>10,N21="F"),I21*$L$16*IF(M21>180,3,ROUND((M21)/60,2)),"--") -> 1380.11148 | T21: =IF(AND(M21>180,N21="F"),(ROUND(M21/60,2)-3)*I21*$L$16*0.1,"--") -> -- | U21: =IF(N21="R",I21*$L$16*O21/100,"--") -> -- | V21: =IF(AND(M21>10,N21="R"),I21*$L$16*O21/100*IF(M21>180,3,ROUND(M21/60,2)),"--") -> -- | W21: =IF(AND(M21>180,N21="R"),(ROUND(M21/60,2)-3)*I21*$L$16*0.1*O21/100,"--") -> -- | X21: =IF(N21="RF",ROUND(M21/60,2)*I21*$L$16*0.1,"--") -> -- | Y21: =IF(N21="RR",ROUND(M21/60,2)*I21*$L$16*0.1*O21/100,"--") -> -- | Z21: SI | AA21: =IF(F21="","",SUM(P21:Y21)*IF(Z21="SI",1,2)) -> 9047.39748
C22: 23 | D22: 291392 | E22: 3714 | F22: LAS MADERAS - JUJUY SUR | G22: 132 | H22: 27.60000038 | I22: =$G$16/100*IF(H22>25,H22,25) -> 128.2527858 | J22: 2015-08-18T13:22:00 | K22: 2015-08-18T13:37:00 | L22: =IF(F22="","",(K22-J22)*24) -> 0.2500000001 | M22: =IF(F22="","",ROUND((K22-J22)*24*60,0)) -> 15 | N22: P | O22: =IF(F22="","","--") -> -- | P22: =IF(N22="P",ROUND(M22/60,2)*I22*$L$16*0.01,"--") -> 9.618958933 | Q22: =IF(N22="RP",I22*O22*ROUND(L22/60,2)*0.01*M22/100,"--") -> -- | R22: =IF(N22="F",I22*$L$16,"--") -> -- | S22: =IF(AND(M22>10,N22="F"),I22*$L$16*IF(M22>180,3,ROUND((M22)/60,2)),"--") -> -- | T22: =IF(AND(M22>180,N22="F"),(ROUND(M22/60,2)-3)*I22*$L$16*0.1,"--") -> -- | U22: =IF(N22="R",I22*$L$16*O22/100,"--") -> -- | V22: =IF(AND(M22>10,N22="R"),I22*$L$16*O22/100*IF(M22>180,3,ROUND(M22/60,2)),"--") -> -- | W22: =IF(AND(M22>180,N22="R"),(ROUND(M22/60,2)-3)*I22*$L$16*0.1*O22/100,"--") -> -- | X22: =IF(N22="RF",ROUND(M22/60,2)*I22*$L$16*0.1,"--") -> -- | Y22: =IF(N22="RR",ROUND(M22/60,2)*I22*$L$16*0.1*O22/100,"--") -> -- | Z22: SI | AA22: =IF(F22="","",SUM(P22:Y22)*IF(Z22="SI",1,2)) -> 9.618958933
C23: 24 | D23: 291393 | E23: 5061 | F23: SUNCHO CORRAL - QUIMILI | G23: 132 | H23: 108 | I23: 501.85872 | J23: 2015-08-19T10:33:00 | K23: 2015-08-19T14:18:00 | L23: 3.75 | M23: 225 | N23: P | O23: -- | P23: 564.59106 | Q23: -- | R23: -- | S23: -- | T23: -- | U23: -- | V23: -- | W23: -- | X23: -- | Y23: -- | Z23: SI | AA23: 564.59106
C24: 25 | D24: 291395 | E24: 5061 | F24: SUNCHO CORRAL - QUIMILI | G24: 132 | H24: 108 | I24: 501.85872 | J24: 2015-08-20T07:31:00 | K24: 2015-08-20T14:11:00 | L24: 6.666666667 | M24: 400 | N24: P | O24: -- | P24: 1004.219299 | Q24: -- | R24: -- | S24: -- | T24: -- | U24: -- | V24: -- | W24: -- | X24: -- | Y24: -- | Z24: SI | AA24: 1004.219299
C25: 26 | D25: 291397 | E25: 5061 | F25: SUNCHO CORRAL - QUIMILI | G25: 132 | H25: 108 | I25: 501.85872 | J25: 2015-08-21T07:34:00 | K25: 2015-08-21T13:48:00 | L25: 6.233333333 | M25: 374 | N25: P | O25: -- | P25: 937.9739477 | Q25: -- | R25: -- | S25: -- | T25: -- | U25: -- | V25: -- | W25: -- | X25: -- | Y25: -- | Z25: SI | AA25: 937.9739477
C26: 27 | D26: 291401 | E26: 279 | F26: ESTATICA SUR - INDEPENDENCIA (O.F.) | G26: 132 | H26: 2.599999905 | I26: 116.171 | J26: 2015-08-22T08:58:00 | K26: 2015-08-22T19:56:00 | L26: 10.96666667 | M26: 658 | N26: P | O26: -- | P26: 382.318761 | Q26: -- | R26: -- | S26: -- | T26: -- | U26: -- | V26: -- | W26: -- | X26: -- | Y26: -- | Z26: SI | AA26: 382.318761
C27: 28 | D27: 291402 | E27: 5579 | F27: ESTATICA - INDEPENDENCIA 2 | G27: 132 | H27: 3.1 | I27: 116.171 | J27: 2015-08-22T08:58:00 | K27: 2015-08-22T19:55:00 | L27: 10.95 | M27: 657 | N27: P | O27: -- | P27: 381.621735 | Q27: -- | R27: -- | S27: -- | T27: -- | U27: -- | V27: -- | W27: -- | X27: -- | Y27: -- | Z27: SI | AA27: 381.621735
C28: 29 | D28: 291403 | E28: 3617 | F28: BELEN - TINOGASTA | G28: 132 | H28: 72 | I28: 334.57248 | J28: 2015-08-23T06:47:00 | K28: 2015-08-29T13:03:00 | L28: 150.2666667 | M28: 9016 | N28: P | O28: -- | P28: 15082.86197 | Q28: -- | R28: -- | S28: -- | T28: -- | U28: -- | V28: -- | W28: -- | X28: -- | Y28: -- | Z28: SI | AA28: 15082.86197
C29: 30 | D29: 291404 | E29: 3579 | F29: ANDALGALA - BELEN | G29: 132 | H29: 80.30000305 | I29: 373.1412662 | J29: 2015-08-23T08:04:00 | K29: 2015-08-29T12:37:00 | L29: 148.55 | M29: 8913 | N29: P | O29: -- | P29: 16629.04053 | Q29: -- | R29: -- | S29: -- | T29: -- | U29: -- | V29: -- | W29: -- | X29: -- | Y29: -- | Z29: SI | AA29: 16629.04053
C30: 31 | D30: 291405 | E30: 4902 | F30: ANDALGALA - SAUJIL | G30: 132 | H30: 76 | I30: 353.15984 | J30: 2015-08-23T08:27:00 | K30: 2015-08-29T12:19:00 | L30: 147.8666667 | M30: 8872 | N30: P | O30: -- | P30: 15666.52366 | Q30: -- | R30: -- | S30: -- | T30: -- | U30: -- | V30: -- | W30: -- | X30: -- | Y30: -- | Z30: SI | AA30: 15666.52366
C31: 32 | D31: 291407 | E31: 4691 | F31: VILLA QUINTEROS - ANDALGALA | G31: 132 | H31: 102 | I31: 473.97768 | J31: 2015-08-23T09:11:00 | K31: 2015-08-23T10:44:00 | L31: 1.55 | M31: 93 | N31: P | O31: -- | P31: 220.3996212 | Q31: -- | R31: -- | S31: -- | T31: -- | U31: -- | V31: -- | W31: -- | X31: -- | Y31: -- | Z31: SI | AA31: 220.3996212
C32: 33 | D32: 291785 | E32: 272 | F32: AGUILARES - ESCABA | G32: 132 | H32: 27 | I32: 125.46468 | J32: 2015-08-28T14:01:00 | K32: 2015-08-28T14:09:00 | L32: 0.1333333334 | M32: 8 | N32: F | O32: -- | P32: -- | Q32: -- | R32: 3763.9404 | S32: -- | T32: -- | U32: -- | V32: -- | W32: -- | X32: -- | Y32: -- | Z32: SI | AA32: 3763.9404
C33: 34 | D33: 291786 | E33: 4691 | F33: VILLA QUINTEROS - ANDALGALA | G33: 132 | H33: 102 | I33: 473.97768 | J33: 2015-08-29T10:39:00 | K33: 2015-08-29T11:41:00 | L33: 1.033333333 | M33: 62 | N33: P | O33: -- | P33: 146.4591031 | Q33: -- | R33: -- | S33: -- | T33: -- | U33: -- | V33: -- | W33: -- | X33: -- | Y33: -- | Z33: SI | AA33: 146.4591031
C34: 35 | D34: 291795 | E34: 309 | F34: TUCUMAN OESTE - TUCUMAN NORTE | G34: 132 | H34: 7 | I34: 116.171 | J34: 2015-08-29T15:37:00 | K34: 2015-08-29T22:32:00 | L34: 6.916666667 | M34: 415 | N34: F | O34: -- | P34: -- | Q34: -- | R34: 3485.13 | S34: 10455.39 | T34: 1366.17096 | U34: -- | V34: -- | W34: -- | X34: -- | Y34: -- | Z34: SI | AA34: 15306.69096
C35: 36 | D35: 291817 | E35: 272 | F35: AGUILARES - ESCABA | G35: 132 | H35: 27 | I35: 125.46468 | J35: 2015-08-30T16:02:00 | K35: 2015-08-30T18:02:00 | L35: 2 | M35: 120 | N35: F | O35: -- | P35: -- | Q35: -- | R35: 3763.9404 | S35: 7527.8808 | T35: -- | U35: -- | V35: -- | W35: -- | X35: -- | Y35: -- | Z35: SI | AA35: 11291.8212
C36: 37 | D36: 291818 | E36: 4570 | F36: INDEPENDENCIA TUC. - EL BRACHO 2 | G36: 132 | H36: 17.10000038 | I36: 116.171 | J36: 2015-08-30T17:55:00 | K36: 2015-08-30T19:37:00 | L36: 1.7 | M36: 102 | N36: F | O36: -- | P36: -- | Q36: -- | R36: 3485.13 | S36: 5924.721 | T36: -- | U36: -- | V36: -- | W36: -- | X36: -- | Y36: -- | Z36: SI | AA36: 9409.851
C37: 38 | D37: 291819 | E37: 286 | F37: INDEPENDENCIA TUC. - EL BRACHO 1 | G37: 132 | H37: 17.10000038 | I37: 116.171 | J37: 2015-08-31T15:48:00 | K37: 2015-08-31T17:16:00 | L37: 1.466666667 | M37: 88 | N37: F | O37: -- | P37: -- | Q37: -- | R37: 3485.13 | S37: 5123.1411 | T37: -- | U37: -- | V37: -- | W37: -- | X37: -- | Y37: -- | Z37: SI | AA37: 8608.2711
C38: 39 | D38: 291820 | E38: 4570 | F38: INDEPENDENCIA TUC. - EL BRACHO 2 | G38: 132 | H38: 17.10000038 | I38: 116.171 | J38: 2015-08-31T15:48:00 | K38: 2015-08-31T17:16:00 | L38: =IF(F38="","",(K38-J38)*24) -> 1.466666667 | M38: =IF(F38="","",ROUND((K38-J38)*24*60,0)) -> 88 | N38: F | O38: =IF(F38="","","--") -> -- | P38: =IF(N38="P",ROUND(M38/60,2)*I38*$L$16*0.01,"--") -> -- | Q38: =IF(N38="RP",I38*O38*ROUND(L38/60,2)*0.01*M38/100,"--") -> -- | R38: =IF(N38="F",I38*$L$16,"--") -> 3485.13 | S38: =IF(AND(M38>10,N38="F"),I38*$L$16*IF(M38>180,3,ROUND((M38)/60,2)),"--") -> 5123.1411 | T38: =IF(AND(M38>180,N38="F"),(ROUND(M38/60,2)-3)*I38*$L$16*0.1,"--") -> -- | U38: =IF(N38="R",I38*$L$16*O38/100,"--") -> -- | V38: =IF(AND(M38>10,N38="R"),I38*$L$16*O38/100*IF(M38>180,3,ROUND(M38/60,2)),"--") -> -- | W38: =IF(AND(M38>180,N38="R"),(ROUND(M38/60,2)-3)*I38*$L$16*0.1*O38/100,"--") -> -- | X38: =IF(N38="RF",ROUND(M38/60,2)*I38*$L$16*0.1,"--") -> -- | Y38: =IF(N38="RR",ROUND(M38/60,2)*I38*$L$16*0.1*O38/100,"--") -> -- | Z38: SI | AA38: =IF(F38="","",SUM(P38:Y38)*IF(Z38="SI",1,2)) -> 8608.2711
I39: 116.171 | L39: =IF(F39="","",(K39-J39)*24) ->  | M39: =IF(F39="","",ROUND((K39-J39)*24*60,0)) ->  | O39: =IF(F39="","","--") ->  | P39: =IF(N39="P",ROUND(M39/60,2)*I39*$L$16*0.01,"--") -> -- | Q39: =IF(N39="RP",I39*O39*ROUND(L39/60,2)*0.01*M39/100,"--") -> -- | R39: =IF(N39="F",I39*$L$16,"--") -> -- | S39: =IF(AND(M39>10,N39="F"),I39*$L$16*IF(M39>180,3,ROUND((M39)/60,2)),"--") -> -- | T39: =IF(AND(M39>180,N39="F"),(ROUND(M39/60,2)-3)*I39*$L$16*0.1,"--") -> -- | U39: =IF(N39="R",I39*$L$16*O39/100,"--") -> -- | V39: =IF(AND(M39>10,N39="R"),I39*$L$16*O39/100*IF(M39>180,3,ROUND(M39/60,2)),"--") -> -- | W39: =IF(AND(M39>180,N39="R"),(ROUND(M39/60,2)-3)*I39*$L$16*0.1*O39/100,"--") -> -- | X39: =IF(N39="RF",ROUND(M39/60,2)*I39*$L$16*0.1,"--") -> -- | Y39: =IF(N39="RR",ROUND(M39/60,2)*I39*$L$16*0.1*O39/100,"--") -> -- | Z39: =IF(F39="","","SI") ->  | AA39: =IF(F39="","",SUM(P39:Y39)*IF(Z39="SI",1,2)) -> 
I40: 116.171 | L40: =IF(F40="","",(K40-J40)*24) ->  | M40: =IF(F40="","",ROUND((K40-J40)*24*60,0)) ->  | O40: =IF(F40="","","--") ->  | P40: =IF(N40="P",ROUND(M40/60,2)*I40*$L$16*0.01,"--") -> -- | Q40: =IF(N40="RP",I40*O40*ROUND(L40/60,2)*0.01*M40/100,"--") -> -- | R40: =IF(N40="F",I40*$L$16,"--") -> -- | S40: =IF(AND(M40>10,N40="F"),I40*$L$16*IF(M40>180,3,ROUND((M40)/60,2)),"--") -> -- | T40: =IF(AND(M40>180,N40="F"),(ROUND(M40/60,2)-3)*I40*$L$16*0.1,"--") -> -- | U40: =IF(N40="R",I40*$L$16*O40/100,"--") -> -- | V40: =IF(AND(M40>10,N40="R"),I40*$L$16*O40/100*IF(M40>180,3,ROUND(M40/60,2)),"--") -> -- | W40: =IF(AND(M40>180,N40="R"),(ROUND(M40/60,2)-3)*I40*$L$16*0.1*O40/100,"--") -> -- | X40: =IF(N40="RF",ROUND(M40/60,2)*I40*$L$16*0.1,"--") -> -- | Y40: =IF(N40="RR",ROUND(M40/60,2)*I40*$L$16*0.1*O40/100,"--") -> -- | Z40: =IF(F40="","","SI") ->  | AA40: =IF(F40="","",SUM(P40:Y40)*IF(Z40="SI",1,2)) -> 
C42: (²) | D42: P - PROGRAMADA ; F - FORZADA | P42: =SUM(P19:P41) -> 51025.62865 | Q42: 0 | R42: 29135.6868 | S42: 35534.38548 | T42: 1366.17096 | U42: 0 | V42: 0 | W42: 0 | X42: 0 | Y42: 0 | AA42: =ROUND(SUM(AA19:AA41),2) -> 337954.27

Sheet T-08 (1)
B2: =+'TOT-0815'!B2 -> ANEXO V al Memorandum D.T.E.E. N° 526 / 2016
A4: ENTE NACIONAL REGULADOR
A5: DE LA ELECTRICIDAD
F8: SISTEMA DE TRANSPORTE DE ENERGÍA ELÉCTRICA POR DISTRIBUCIÓN TRONCAL - TRANSNOA S.A.
F10: 2.- CONEXIÓN
F12: 2.1.- Transformación
F14: 2.1.1.- Equipamiento propio
B16: ='TOT-0815'!B14 -> Desde el 01 al 31 de agosto de 2015
F18: Por Transformador por MVA $ = | I18: 1.617
F19: Coeficiente de penalización por salida forzada = | I19: =30*'TOT-0815'!B13 -> 30 | K19: =IF(I19=30," ",IF(I19=60," Coeficiente duplicado por tasa de falla >4 Sal. x año/100 km.","REVISAR COEFICIENTE")) -> 
C20: 3 | D20: 4 | E20: 5 | F20: 6 | G20: 7 | H20: 8 | I20: 9 | J20: 10 | K20: 11 | L20: 12 | M20: 13 | N20: 14 | O20: 15 | P20: 16 | Q20: 17 | R20: 18 | S20: 19 | T20: 20 | U20: 21 | V20: 22 | W20: 23 | X20: 24 | Y20: 25 | Z20: 26 | AA20: 27 | AB20: 28 | AC20: 29
C21: N° | D21: INDISP | E21: ID EQUIPO | F21: ESTACIÓN TRANSFORMADORA | G21: EQUIPO | H21: POT. [MVA] | I21: U [kV] | J21: $/h | K21: Salida | L21: Entrada | M21: Hs Indisp. | N21: Mtos. Indisp. | O21: Tipo Sal.(²) | P21: AUT. | Q21: C.R. % | R21: E.N.S. | S21: K (P;ENS) | T21: PENALIZ. PROGRAM. | U21: REDUCC. PROGRAM. | V21: PENALIZAC. FORZADA Por Salida hs. Restantes | X21: REDUCC. FORZADA Por Salida hs. Restantes | Z21: RESTANTE FORZADA | AA21: REDUCC. RESTANTE | AB21: Informó en Térm. | AC21: TOTAL PENALIZAC.
C25: 41 | D25: 289244 | E25: 3581 | F25: ANDALGALA | G25: TRAFO 2 | H25: 15 | I25: 132/33/13,2 | J25: =H25*$I$18 -> 24.255 | K25: 2015-08-01 | L25: 2015-08-20T12:18:00 | M25: =IF(F25="","",(L25-K25)*24) -> 468.3 | N25: =IF(F25="","",ROUND((L25-K25)*24*60,0)) -> 28098 | O25: P | P25: =IF(F25="","",IF(OR(O25="P",O25="RP"),"--","NO")) -> -- | Q25: 0,000 | R25: NO | S25: =$I$19*IF(R25="SI",1,0.1)*IF(OR(O25="P",O25="RP"),0.1,1) -> 0.3 | T25: =IF(O25="P",J25*S25*ROUND(N25/60,2),"--") -> 3407.58495 | U25: =IF(O25="RP",J25*S25*Q25/100*ROUND(N25/60,2),"--") -> -- | V25: =IF(AND(O25="F",P25="NO"),J25*S25,"--") -> -- | W25: =IF(O25="F",J25*S25*ROUND(N25/60,2),"--") -> -- | X25: =IF(AND(O25="R",P25="NO"),J25*S25*Q25/100,"--") -> -- | Y25: =IF(O25="R",J25*S25*ROUND(N25/60,2)*Q25/100,"--") -> -- | Z25: =IF(O25="RF",J25*S25*ROUND(N25/60,2),"--") -> -- | AA25: =IF(O25="RR",J25*S25*ROUND(N25/60,2)*Q25/100,"--") -> -- | AB25: SI | AC25: =IF(F25="","",SUM(T25:AA25)*IF(AB25="SI",1,2)) -> 3407.58495
C26: 42 | D26: 291113 | E26: 5584 | F26: FERNANDEZ | G26: TRAFO 1 | H26: 15 | I26: 132/33/13,2 | J26: =H26*$I$18 -> 24.255 | K26: 2015-08-01 | L26: 2015-08-27T14:41:00 | M26: =IF(F26="","",(L26-K26)*24) -> 638.6833333 | N26: =IF(F26="","",ROUND((L26-K26)*24*60,0)) -> 38321 | O26: P | P26: =IF(F26="","",IF(OR(O26="P",O26="RP"),"--","NO")) -> -- | Q26: 0,000 | R26: NO | S26: =$I$19*IF(R26="SI",1,0.1)*IF(OR(O26="P",O26="RP"),0.1,1) -> 0.3 | T26: =IF(O26="P",J26*S26*ROUND(N26/60,2),"--") -> 4647.35502 | U26: =IF(O26="RP",J26*S26*Q26/100*ROUND(N26/60,2),"--") -> -- | V26: =IF(AND(O26="F",P26="NO"),J26*S26,"--") -> -- | W26: =IF(O26="F",J26*S26*ROUND(N26/60,2),"--") -> -- | X26: =IF(AND(O26="R",P26="NO"),J26*S26*Q26/100,"--") -> -- | Y26: =IF(O26="R",J26*S26*ROUND(N26/60,2)*Q26/100,"--") -> -- | Z26: =IF(O26="RF",J26*S26*ROUND(N26/60,2),"--") -> -- | AA26: =IF(O26="RR",J26*S26*ROUND(N26/60,2)*Q26/100,"--") -> -- | AB26: SI | AC26: =IF(F26="","",SUM(T26:AA26)*IF(AB26="SI",1,2)) -> 4647.35502
C27: 43 | D27: 290635 | E27: 542 | F27: ESTATICA SUR | G27: TRAFO 1 | H27: 30 | I27: 132/13,2 | J27: =H27*$I$18 -> 48.51 | K27: 2015-08-01 | L27: 2015-08-31T14:16:00 | M27: =IF(F27="","",(L27-K27)*24) -> 734.2666667 | N27: =IF(F27="","",ROUND((L27-K27)*24*60,0)) -> 44056 | O27: F | P27: =IF(F27="","",IF(OR(O27="P",O27="RP"),"--","NO")) -> NO | Q27: 0,000 | R27: NO | S27: =$I$19*IF(R27="SI",1,0.1)*IF(OR(O27="P",O27="RP"),0.1,1) -> 3 | T27: =IF(O27="P",J27*S27*ROUND(N27/60,2),"--") -> -- | U27: =IF(O27="RP",J27*S27*Q27/100*ROUND(N27/60,2),"--") -> -- | V27: =IF(AND(O27="F",P27="NO"),J27*S27,"--") -> 145.53 | W27: =IF(O27="F",J27*S27*ROUND(N27/60,2),"--") -> 106858.3131 | X27: =IF(AND(O27="R",P27="NO"),J27*S27*Q27/100,"--") -> -- | Y27: =IF(O27="R",J27*S27*ROUND(N27/60,2)*Q27/100,"--") -> -- | Z27: =IF(O27="RF",J27*S27*ROUND(N27/60,2),"--") -> -- | AA27: =IF(O27="RR",J27*S27*ROUND(N27/60,2)*Q27/100,"--") -> -- | AB27: SI | AC27: =IF(F27="","",SUM(T27:AA27)*IF(AB27="SI",1,2)) -> 107003.8431
C28: 44 | D28: 290649 | E28: 5567 | F28: ESTATICA | G28: TRAFO 3 | H28: 30 | I28: 132/13,2 | J28: =H28*$I$18 -> 48.51 | K28: 2015-08-01T11:38:00 | L28: 2015-08-01T18:15:00 | M28: =IF(F28="","",(L28-K28)*24) -> 6.616666667 | N28: =IF(F28="","",ROUND((L28-K28)*24*60,0)) -> 397 | O28: P | P28: =IF(F28="","",IF(OR(O28="P",O28="RP"),"--","NO")) -> -- | Q28: 0,000 | R28: NO | S28: =$I$19*IF(R28="SI",1,0.1)*IF(OR(O28="P",O28="RP"),0.1,1) -> 0.3 | T28: =IF(O28="P",J28*S28*ROUND(N28/60,2),"--") -> 96.34086 | U28: =IF(O28="RP",J28*S28*Q28/100*ROUND(N28/60,2),"--") -> -- | V28: =IF(AND(O28="F",P28="NO"),J28*S28,"--") -> -- | W28: =IF(O28="F",J28*S28*ROUND(N28/60,2),"--") -> -- | X28: =IF(AND(O28="R",P28="NO"),J28*S28*Q28/100,"--") -> -- | Y28: =IF(O28="R",J28*S28*ROUND(N28/60,2)*Q28/100,"--") -> -- | Z28: =IF(O28="RF",J28*S28*ROUND(N28/60,2),"--") -> -- | AA28: =IF(O28="RR",J28*S28*ROUND(N28/60,2)*Q28/100,"--") -> -- | AB28: SI | AC28: =IF(F28="","",SUM(T28:AA28)*IF(AB28="SI",1,2)) -> 96.34086
C29: 45 | D29: 290650 | E29: 544 | F29: ESTATICA SUR | G29: TRAFO 2 | H29: 30 | I29: 132/13,2 | J29: =H29*$I$18 -> 48.51 | K29: 2015-08-01T11:40:00 | L29: 2015-08-01T17:25:00 | M29: =IF(F29="","",(L29-K29)*24) -> 5.75 | N29: =IF(F29="","",ROUND((L29-K29)*24*60,0)) -> 345 | O29: P | P29: =IF(F29="","",IF(OR(O29="P",O29="RP"),"--","NO")) -> -- | Q29: 0,000 | R29: NO | S29: =$I$19*IF(R29="SI",1,0.1)*IF(OR(O29="P",O29="RP"),0.1,1) -> 0.3 | T29: =IF(O29="P",J29*S29*ROUND(N29/60,2),"--") -> 83.67975 | U29: =IF(O29="RP",J29*S29*Q29/100*ROUND(N29/60,2),"--") -> -- | V29: =IF(AND(O29="F",P29="NO"),J29*S29,"--") -> -- | W29: =IF(O29="F",J29*S29*ROUND(N29/60,2),"--") -> -- | X29: =IF(AND(O29="R",P29="NO"),J29*S29*Q29/100,"--") -> -- | Y29: =IF(O29="R",J29*S29*ROUND(N29/60,2)*Q29/100,"--") -> -- | Z29: =IF(O29="RF",J29*S29*ROUND(N29/60,2),"--") -> -- | AA29: =IF(O29="RR",J29*S29*ROUND(N29/60,2)*Q29/100,"--") -> -- | AB29: SI | AC29: =IF(F29="","",SUM(T29:AA29)*IF(AB29="SI",1,2)) -> 83.67975
C30: 46 | D30: 290652 | E30: 2638 | F30: JUJUY ESTE | G30: TRAFO 2 | H30: 15 | I30: 132/33/13,2 | J30: =H30*$I$18 -> 24.255 | K30: 2015-08-02T07:47:00 | L30: 2015-08-02T11:28:00 | M30: =IF(F30="","",(L30-K30)*24) -> 3.683333333 | N30: =IF(F30="","",ROUND((L30-K30)*24*60,0)) -> 221 | O30: P | P30: =IF(F30="","",IF(OR(O30="P",O30="RP"),"--","NO")) -> -- | Q30: 0,000 | R30: NO | S30: =$I$19*IF(R30="SI",1,0.1)*IF(OR(O30="P",O30="RP"),0.1,1) -> 0.3 | T30: =IF(O30="P",J30*S30*ROUND(N30/60,2),"--") -> 26.77752 | U30: =IF(O30="RP",J30*S30*Q30/100*ROUND(N30/60,2),"--") -> -- | V30: =IF(AND(O30="F",P30="NO"),J30*S30,"--") -> -- | W30: =IF(O30="F",J30*S30*ROUND(N30/60,2),"--") -> -- | X30: =IF(AND(O30="R",P30="NO"),J30*S30*Q30/100,"--") -> -- | Y30: =IF(O30="R",J30*S30*ROUND(N30/60,2)*Q30/100,"--") -> -- | Z30: =IF(O30="RF",J30*S30*ROUND(N30/60,2),"--") -> -- | AA30: =IF(O30="RR",J30*S30*ROUND(N30/60,2)*Q30/100,"--") -> -- | AB30: SI | AC30: =IF(F30="","",SUM(T30:AA30)*IF(AB30="SI",1,2)) -> 26.77752
C31: 47 | D31: 290653 | E31: 2804 | F31: CEVIL POZO | G31: TRAFO 1 | H31: 30 | I31: 132/33/13,2 | J31: 48.51 | K31: 2015-08-02T08:04:00 | L31: 2015-08-02T14:04:00 | M31: 6 | N31: 360 | O31: P | P31: -- | Q31: 0,000 | R31: NO | S31: 0.3 | T31: 87.318 | U31: -- | V31: -- | W31: -- | X31: -- | Y31: -- | Z31: -- | AA31: -- | AB31: SI | AC31: 87.318
C32: 48 | D32: 290654 | E32: 5406 | F32: CEVIL POZO | G32: TRAFO 3 | H32: 30 | I32: 132/33/13,2 | J32: 48.51 | K32: 2015-08-02T08:04:00 | L32: 2015-08-02T14:04:00 | M32: 6 | N32: 360 | O32: P | P32: -- | Q32: 0,000 | R32: NO | S32: 0.3 | T32: 87.318 | U32: -- | V32: -- | W32: -- | X32: -- | Y32: -- | Z32: -- | AA32: -- | AB32: SI | AC32: 87.318
C33: 49 | D33: 290655 | E33: 3125 | F33: CEVIL POZO | G33: TRAFO 2 | H33: 30 | I33: 132/33/13,2 | J33: 48.51 | K33: 2015-08-02T08:05:00 | L33: 2015-08-02T14:04:00 | M33: 5.983333333 | N33: 359 | O33: P | P33: -- | Q33: 0,000 | R33: NO | S33: 0.3 | T33: 87.02694 | U33: -- | V33: -- | W33: -- | X33: -- | Y33: -- | Z33: -- | AA33: -- | AB33: SI | AC33: 87.02694
C34: 50 | D34: 290656 | E34: 3226 | F34: AVELLANEDA | G34: TRAFO 1 | H34: 30 | I34: 132/13,2 | J34: 48.51 | K34: 2015-08-02T08:10:00 | L34: 2015-08-02T14:15:00 | M34: 6.083333333 | N34: 365 | O34: P | P34: -- | Q34: 0,000 | R34: NO | S34: 0.3 | T34: 88.48224 | U34: -- | V34: -- | W34: -- | X34: -- | Y34: -- | Z34: -- | AA34: -- | AB34: SI | AC34: 88.48224
C35: 51 | D35: 290657 | E35: 3233 | F35: AVELLANEDA | G35: TRAFO 2 | H35: 30 | I35: 132/13,2 | J35: 48.51 | K35: 2015-08-02T08:11:00 | L35: 2015-08-02T14:16:00 | M35: 6.083333333 | N35: 365 | O35: P | P35: -- | Q35: 0,000 | R35: NO | S35: 0.3 | T35: 88.48224 | U35: -- | V35: -- | W35: -- | X35: -- | Y35: -- | Z35: -- | AA35: -- | AB35: SI | AC35: 88.48224
C36: 52 | D36: 290663 | E36: 3836 | F36: HUACRA | G36: TRAFO 1 | H36: 15 | I36: 132/33/13,2 | J36: 24.255 | K36: 2015-08-02T18:59:00 | L36: 2015-08-02T19:40:00 | M36: 0.6833333333 | N36: 41 | O36: R | P36: NO | Q36: 40 | R36: SI | S36: 30 | T36: -- | U36: -- | V36: -- | W36: -- | X36: 291.06 | Y36: 197.9208 | Z36: -- | AA36: -- | AB36: SI | AC36: 488.9808
C37: 53 | D37: 291013 | E37: 544 | F37: ESTATICA | G37: TRAFO 2 | H37: 30 | I37: 132/13,2 | J37: 48.51 | K37: 2015-08-03T00:19:00 | L37: 2015-08-03T00:55:00 | M37: 0.6 | N37: 36 | O37: F | P37: NO | Q37: 0,000 | R37: SI | S37: 30 | T37: -- | U37: -- | V37: 1455.3 | W37: 873.18 | X37: -- | Y37: -- | Z37: -- | AA37: -- | AB37: SI | AC37: 2328.48
C38: 54 | D38: 291025 | E38: 5063 | F38: QUIMILI | G38: TRAFO 2 | H38: 15 | I38: 132/33/13,2 | J38: 24.255 | K38: 2015-08-05T13:40:00 | L38: 2015-08-05T14:28:00 | M38: 0.8 | N38: 48 | O38: F | P38: NO | Q38: 0,000 | R38: SI | S38: 30 | T38: -- | U38: -- | V38: 727.65 | W38: 582.12 | X38: -- | Y38: -- | Z38: -- | AA38: -- | AB38: SI | AC38: 1309.77
C39: 55 | D39: 291064 | E39: 3694 | F39: SANTIAGO CENTRO | G39: TRAFO 1 | H39: 30 | I39: 132/33/13,2 | J39: 48.51 | K39: 2015-08-06T12:46:00 | L39: 2015-08-06T12:52:00 | M39: 0.09999999998 | N39: 6 | O39: R | P39: NO | Q39: 60 | R39: SI | S39: 30 | T39: -- | U39: -- | V39: -- | W39: -- | X39: 873.18 | Y39: 87.318 | Z39: -- | AA39: -- | AB39: SI | AC39: 960.498
C40: 56 | D40: 291065 | E40: 3105 | F40: SANTIAGO CENTRO | G40: TRAFO 2 | H40: 30 | I40: 132/33/13,2 | J40: 48.51 | K40: 2015-08-06T12:46:00 | L40: 2015-08-06T12:52:00 | M40: 0.09999999998 | N40: 6 | O40: R | P40: NO | Q40: 60 | R40: SI | S40: 30 | T40: -- | U40: -- | V40: -- | W40: -- | X40: 873.18 | Y40: 87.318 | Z40: -- | AA40: -- | AB40: SI | AC40: 960.498
C41: 57 | D41: 291075 | E41: 4956 | F41: LA PAZ | G41: TRAFO 1 | H41: 10 | I41: 132/33/13,2 | J41: 16.17 | K41: 2015-08-08T13:58:00 | L41: 2015-08-08T14:38:00 | M41: 0.6666666667 | N41: 40 | O41: R | P41: NO | Q41: 60 | R41: SI | S41: 30 | T41: -- | U41: -- | V41: -- | W41: -- | X41: 291.06 | Y41: 195.0102 | Z41: -- | AA41: -- | AB41: SI | AC41: 486.0702
C42: 58 | D42: 291078 | E42: 4228 | F42: SUNCHO CORRAL | G42: TRP2 | H42: 15 | I42: 132/33/13,2 | J42: 24.255 | K42: 2015-08-09T17:01:00 | L42: 2015-08-09T18:16:00 | M42: 1.25 | N42: 75 | O42: F | P42: NO | Q42: 0,000 | R42: SI | S42: 30 | T42: -- | U42: -- | V42: 727.65 | W42: 909.5625 | X42: -- | Y42: -- | Z42: -- | AA42: -- | AB42: SI | AC42: 1637.2125
C43: 178 | D43: 291078b | E43: 4228 | F43: SUNCHO CORRAL | G43: TRP2 | H43: 15 | I43: 132/33/13,2 | J43: 24.255 | K43: 2015-08-09T18:17:00 | L43: 2015-08-10T23:59:00 | M43: =IF(F43="","",(L43-K43)*24) -> 29.7 | N43: =IF(F43="","",ROUND((L43-K43)*24*60,0)) -> 1782 | O43: F | P43: NO | Q43: 0,000 | R43: NO | S43: 3 | T43: =IF(O43="P",J43*S43*ROUND(N43/60,2),"--") -> -- | U43: =IF(O43="RP",J43*S43*Q43/100*ROUND(N43/60,2),"--") -> -- | V43: =IF(AND(O43="F",P43="NO"),J43*S43,"--") -> 72.765 | W43: =IF(O43="F",J43*S43*ROUND(N43/60,2),"--") -> 2161.1205 | X43: =IF(AND(O43="R",P43="NO"),J43*S43*Q43/100,"--") -> -- | Y43: =IF(O43="R",J43*S43*ROUND(N43/60,2)*Q43/100,"--") -> -- | Z43: =IF(O43="RF",J43*S43*ROUND(N43/60,2),"--") -> -- | AA43: =IF(O43="RR",J43*S43*ROUND(N43/60,2)*Q43/100,"--") -> -- | AB43: SI | AC43: =IF(F43="","",SUM(T43:AA43)*IF(AB43="SI",1,2)) -> 2233.8855
C44: 179 | D44: 291078c | E44: 4228 | F44: SUNCHO CORRAL | G44: TRP2 | H44: 15 | I44: 132/33/13,2 | J44: 24.255 | K44: 2015-08-11 | L44: 2015-08-31T23:59:59 | M44: =IF(F44="","",(L44-K44)*24) -> 503.9997222 | N44: =IF(F44="","",ROUND((L44-K44)*24*60,0)) -> 30240 | O44: P | P44: -- | Q44: 0,000 | R44: NO | S44: 0.3 | T44: =IF(O44="P",J44*S44*ROUND(N44/60,2),"--") -> 3667.356 | U44: =IF(O44="RP",J44*S44*Q44/100*ROUND(N44/60,2),"--") -> -- | V44: =IF(AND(O44="F",P44="NO"),J44*S44,"--") -> -- | W44: =IF(O44="F",J44*S44*ROUND(N44/60,2),"--") -> -- | X44: =IF(AND(O44="R",P44="NO"),J44*S44*Q44/100,"--") -> -- | Y44: =IF(O44="R",J44*S44*ROUND(N44/60,2)*Q44/100,"--") -> -- | Z44: =IF(O44="RF",J44*S44*ROUND(N44/60,2),"--") -> -- | AA44: =IF(O44="RR",J44*S44*ROUND(N44/60,2)*Q44/100,"--") -> -- | AB44: SI | AC44: =IF(F44="","",SUM(T44:AA44)*IF(AB44="SI",1,2)) -> 3667.356
C45: 59 | D45: 291141 | E45: 540 | F45: C.H. RIO HONDO | G45: TRAFO 1 | H45: 10 | I45: 132/33/13,2 | J45: 16.17 | K45: 2015-08-11T09:40:00 | L45: 2015-08-11T16:09:00 | M45: 6.483333333 | N45: 389 | O45: P | P45: -- | Q45: 0,000 | R45: NO | S45: 0.3 | T45: 31.43448 | U45: -- | V45: -- | W45: -- | X45: -- | Y45: -- | Z45: -- | AA45: -- | AB45: SI | AC45: 31.43448
C47: (²) | D47: P - PROGRAMADA ; F - FORZADA ; R - REDUCCIÓN FORZADA ; RR - REDUCCIÓN RESTANTE | T47: =SUM(T22:T46) -> 12399.156 | U47: 0 | V47: 3128.895 | W47: 111384.2961 | X47: 2328.48 | Y47: 567.567 | Z47: 0 | AA47: 0 | AC47: =ROUND(SUM(AC22:AC46),2) -> 129808.39

Sheet T-08 (2)
B2: =+'TOT-0815'!B2 -> ANEXO V al Memorandum D.T.E.E. N° 526 / 2016
A4: ENTE NACIONAL REGULADOR
A5: DE LA ELECTRICIDAD
F8: SISTEMA DE TRANSPORTE DE ENERGÍA ELÉCTRICA POR DISTRIBUCIÓN TRONCAL - TRANSNOA S.A.
F10: 2.- CONEXIÓN
F12: 2.1.- Transformación
F14: 2.1.1.- Equipamiento propio
B16: ='TOT-0815'!B14 -> Desde el 01 al 31 de agosto de 2015
F18: Por Transformador por MVA $ = | I18: 1.617 | K18: 0.6106 | L18: Res. SE 1/03
F19: Coeficiente de penalización por salida forzada = | I19: =30*'TOT-0815'!B13 -> 30 | K19: =IF(I19=30," ",IF(I19=60," Coeficiente duplicado por tasa de falla >4 Sal. x año/100 km.","REVISAR COEFICIENTE")) -> 
C20: 3 | D20: 4 | E20: 5 | F20: 6 | G20: 7 | H20: 8 | I20: 9 | J20: 10 | K20: 11 | L20: 12 | M20: 13 | N20: 14 | O20: 15 | P20: 16 | Q20: 17 | R20: 18 | S20: 19 | T20: 20 | U20: 21 | V20: 22 | W20: 23 | X20: 24 | Y20: 25 | Z20: 26 | AA20: 27 | AB20: 28 | AC20: 29
C21: N° | D21: INDISP | E21: ID EQUIPO | F21: ESTACIÓN TRANSFORMADORA | G21: EQUIPO | H21: POT. [MVA] | I21: U [kV] | J21: $/h | K21: Salida | L21: Entrada | M21: Hs Indisp. | N21: Mtos. Indisp. | O21: Tipo Sal.(²) | P21: AUT. | Q21: C.R. % | R21: E.N.S. | S21: K (P;ENS) | T21: PENALIZ. PROGRAM. | U21: REDUCC. PROGRAM. | V21: PENALIZAC. FORZADA Por Salida hs. Restantes | X21: REDUCC. FORZADA Por Salida hs. Restantes | Z21: RESTANTE FORZADA | AA21: REDUCC. RESTANTE | AB21: Informó en Térm. | AC21: TOTAL PENALIZAC.
AC22: ='T-08 (1)'!AC47 -> 129808.39
C24: 60 | D24: 291150 | E24: 5232 | F24: RIO HONDO | G24: TRAFO 2 | H24: 15 | I24: 132/33/13,2 | J24: =H24*$I$18 -> 24.255 | K24: 2015-08-12T08:24:00 | L24: 2015-08-12T14:14:00 | M24: =IF(F24="","",(L24-K24)*24) -> 5.833333333 | N24: =IF(F24="","",ROUND((L24-K24)*24*60,0)) -> 350 | O24: P | P24: =IF(F24="","",IF(OR(O24="P",O24="RP"),"--","NO")) -> -- | Q24: 0,000 | R24: NO | S24: =$I$19*IF(R24="SI",1,0.1)*IF(OR(O24="P",O24="RP"),0.1,1) -> 0.3 | T24: =IF(O24="P",J24*S24*ROUND(N24/60,2),"--") -> 42.421995 | U24: =IF(O24="RP",J24*S24*Q24/100*ROUND(N24/60,2),"--") -> -- | V24: =IF(AND(O24="F",P24="NO"),J24*S24,"--") -> -- | W24: =IF(O24="F",J24*S24*ROUND(N24/60,2),"--") -> -- | X24: =IF(AND(O24="R",P24="NO"),J24*S24*Q24/100,"--") -> -- | Y24: =IF(O24="R",J24*S24*ROUND(N24/60,2)*Q24/100,"--") -> -- | Z24: =IF(O24="RF",J24*S24*ROUND(N24/60,2),"--") -> -- | AA24: =IF(O24="RR",J24*S24*ROUND(N24/60,2)*Q24/100,"--") -> -- | AB24: SI | AC24: =IF(F24="","",SUM(T24:AA24)*IF(AB24="SI",1,2)) -> 42.421995
C25: 61 | D25: 291151 | E25: 2668 | F25: JUJUY ESTE | G25: TRAFO 1 | H25: 15 | I25: 132/33/13,2 | J25: =H25*$I$18 -> 24.255 | K25: 2015-08-12T09:11:00 | L25: 2015-08-12T13:07:00 | M25: 3.933333333 | N25: 236 | O25: R | P25: NO | Q25: 60 | R25: NO | S25: 3 | T25: -- | U25: -- | V25: -- | W25: -- | X25: 43.659 | Y25: 171.57987 | Z25: -- | AA25: -- | AB25: SI | AC25: 215.23887
C26: 62 | D26: 291152 | E26: 5062 | F26: QUIMILI | G26: TRAFO 1 | H26: 15 | I26: 132/33/13,2 | J26: =H26*$I$18 -> 24.255 | K26: 2015-08-12T15:40:00 | L26: 2015-08-12T16:30:00 | M26: 0.8333333333 | N26: 50 | O26: R | P26: NO | Q26: 40 | R26: NO | S26: 3 | T26: -- | U26: -- | V26: -- | W26: -- | X26: 29.106 | Y26: 24.15798 | Z26: -- | AA26: -- | AB26: SI | AC26: 53.26398
C27: 63 | D27: 291153 | E27: 5232 | F27: RIO HONDO | G27: TRAFO 2 | H27: 15 | I27: 132/33/13,2 | J27: =H27*$I$18 -> 24.255 | K27: 2015-08-13T08:09:00 | L27: 2015-08-13T16:02:00 | M27: 7.883333333 | N27: 473 | O27: P | P27: -- | Q27: 0,000 | R27: NO | S27: 0.3 | T27: 57.33882 | U27: -- | V27: -- | W27: -- | X27: -- | Y27: -- | Z27: -- | AA27: -- | AB27: SI | AC27: 57.33882
C28: 64 | D28: 291154 | E28: 3946 | F28: CATAMARCA II | G28: TRAFO 1 | H28: 30 | I28: 132/33/13,2 | J28: =H28*$I$18 -> 48.51 | K28: 2015-08-13T12:07:00 | L28: 2015-08-13T12:26:00 | M28: 0.3166666667 | N28: 19 | O28: F | P28: NO | Q28: 0,000 | R28: SI | S28: 30 | T28: -- | U28: -- | V28: 1455.3 | W28: 465.696 | X28: -- | Y28: -- | Z28: -- | AA28: -- | AB28: SI | AC28: 1920.996
C29: 65 | D29: 291155 | E29: 4517 | F29: CATAMARCA II(Res SE 1/03) | G29: TRAFO 2 | H29: 30 | I29: 132/33/13,2 | J29: =H29*$K$18 -> 18.318 | K29: 2015-08-13T12:07:00 | L29: 2015-08-13T12:26:00 | M29: 0.3166666667 | N29: 19 | O29: F | P29: NO | Q29: 0,000 | R29: SI | S29: 30 | T29: -- | U29: -- | V29: 549.54 | W29: 175.8528 | X29: -- | Y29: -- | Z29: -- | AA29: -- | AB29: SI | AC29: 725.3928
C30: 66 | D30: 291158 | E30: 4989 | F30: FRIAS | G30: TRAFO 2 | H30: 30 | I30: 132/33/13,2 | J30: =H30*$I$18 -> 48.51 | K30: 2015-08-16T07:17:00 | L30: 2015-08-16T09:29:00 | M30: =IF(F30="","",(L30-K30)*24) -> 2.2 | N30: =IF(F30="","",ROUND((L30-K30)*24*60,0)) -> 132 | O30: P | P30: =IF(F30="","",IF(OR(O30="P",O30="RP"),"--","NO")) -> -- | Q30: 0,000 | R30: SI | S30: =$I$19*IF(R30="SI",1,0.1)*IF(OR(O30="P",O30="RP"),0.1,1) -> 3 | T30: =IF(O30="P",J30*S30*ROUND(N30/60,2),"--") -> 320.166 | U30: =IF(O30="RP",J30*S30*Q30/100*ROUND(N30/60,2),"--") -> -- | V30: =IF(AND(O30="F",P30="NO"),J30*S30,"--") -> -- | W30: =IF(O30="F",J30*S30*ROUND(N30/60,2),"--") -> -- | X30: =IF(AND(O30="R",P30="NO"),J30*S30*Q30/100,"--") -> -- | Y30: =IF(O30="R",J30*S30*ROUND(N30/60,2)*Q30/100,"--") -> -- | Z30: =IF(O30="RF",J30*S30*ROUND(N30/60,2),"--") -> -- | AA30: =IF(O30="RR",J30*S30*ROUND(N30/60,2)*Q30/100,"--") -> -- | AB30: SI | AC30: =IF(F30="","",SUM(T30:AA30)*IF(AB30="SI",1,2)) -> 320.166
C31: 67 | D31: 291159 | E31: 5229 | F31: FRIAS | G31: TRAFO 1 | H31: 30 | I31: 132/33/13,2 | J31: 48.51 | K31: 2015-08-16T07:18:00 | L31: 2015-08-16T10:03:00 | M31: 2.75 | N31: 165 | O31: P | P31: -- | Q31: 0,000 | R31: SI | S31: 3 | T31: 400.2075 | U31: -- | V31: -- | W31: -- | X31: -- | Y31: -- | Z31: -- | AA31: -- | AB31: SI | AC31: 400.2075
C32: 68 | D32: 291377 | E32: 4062 | F32: JUJUY SUR | G32: TRAFO 2 | H32: 30 | I32: 132/33/13,2 | J32: 48.51 | K32: 2015-08-17T08:19:00 | L32: 2015-08-17T12:53:00 | M32: 4.566666667 | N32: 274 | O32: P | P32: -- | Q32: 0,000 | R32: NO | S32: 0.3 | T32: 66.50721 | U32: -- | V32: -- | W32: -- | X32: -- | Y32: -- | Z32: -- | AA32: -- | AB32: SI | AC32: 66.50721
C33: 69 | D33: 291383 | E33: 4062 | F33: JUJUY SUR | G33: TRAFO 2 | H33: 30 | I33: 132/33/13,2 | J33: 48.51 | K33: 2015-08-17T13:55:00 | L33: 2015-08-17T14:10:00 | M33: 0.2500000001 | N33: 15 | O33: F | P33: NO | Q33: 0,000 | R33: SI | S33: 30 | T33: -- | U33: -- | V33: 1455.3 | W33: 363.825 | X33: -- | Y33: -- | Z33: -- | AA33: -- | AB33: SI | AC33: 1819.125
C34: 180 | D34: 291383b | E34: 4062 | F34: JUJUY SUR | G34: TRAFO 2 | H34: 30 | I34: 132/33/13,2 | J34: 48.51 | K34: 2015-08-17T14:10:00 | L34: 2015-08-17T16:42:00 | M34: =IF(F34="","",(L34-K34)*24) -> 2.533333333 | N34: =IF(F34="","",ROUND((L34-K34)*24*60,0)) -> 152 | O34: F | P34: NO | Q34: 0,000 | R34: NO | S34: 3 | T34: =IF(O34="P",J34*S34*ROUND(N34/60,2),"--") -> -- | U34: =IF(O34="RP",J34*S34*Q34/100*ROUND(N34/60,2),"--") -> -- | V34: =IF(AND(O34="F",P34="NO"),J34*S34,"--") -> 145.53 | W34: =IF(O34="F",J34*S34*ROUND(N34/60,2),"--") -> 368.1909 | X34: =IF(AND(O34="R",P34="NO"),J34*S34*Q34/100,"--") -> -- | Y34: =IF(O34="R",J34*S34*ROUND(N34/60,2)*Q34/100,"--") -> -- | Z34: =IF(O34="RF",J34*S34*ROUND(N34/60,2),"--") -> -- | AA34: =IF(O34="RR",J34*S34*ROUND(N34/60,2)*Q34/100,"--") -> -- | AB34: SI | AC34: =IF(F34="","",SUM(T34:AA34)*IF(AB34="SI",1,2)) -> 513.7209
C35: 70 | D35: 291384 | E35: 554 | F35: JUJUY SUR | G35: TRAFO 1 | H35: 15 | I35: 132/33/13,2 | J35: 24.255 | K35: 2015-08-17T13:55:00 | L35: 2015-08-17T14:08:00 | M35: 0.2166666667 | N35: 13 | O35: F | P35: NO | Q35: 0,000 | R35: SI | S35: 30 | T35: -- | U35: -- | V35: 727.65 | W35: 160.083 | X35: -- | Y35: -- | Z35: -- | AA35: -- | AB35: SI | AC35: 887.733
C36: 71 | D36: 291394 | E36: 5063 | F36: QUIMILI | G36: TRAFO 2 | H36: 15 | I36: 132/33/13,2 | J36: 24.255 | K36: 2015-08-19T11:09:00 | L36: 2015-08-19T16:47:00 | M36: 5.633333333 | N36: 338 | O36: P | P36: -- | Q36: 0,000 | R36: NO | S36: 0.3 | T36: 40.966695 | U36: -- | V36: -- | W36: -- | X36: -- | Y36: -- | Z36: -- | AA36: -- | AB36: SI | AC36: 40.966695
C37: 72 | D37: 291396 | E37: 5063 | F37: QUIMILI | G37: TRAFO 2 | H37: 15 | I37: 132/33/13,2 | J37: 24.255 | K37: 2015-08-20T10:26:00 | L37: 2015-08-20T16:38:00 | M37: 6.2 | N37: 372 | O37: P | P37: -- | Q37: 0,000 | R37: NO | S37: 0.3 | T37: 45.1143 | U37: -- | V37: -- | W37: -- | X37: -- | Y37: -- | Z37: -- | AA37: -- | AB37: SI | AC37: 45.1143
C38: 73 | D38: 291398 | E38: 5063 | F38: QUIMILI | G38: TRAFO 2 | H38: 15 | I38: 132/33/13,2 | J38: 24.255 | K38: 2015-08-21T10:43:00 | L38: 2015-08-21T18:26:00 | M38: 7.716666667 | N38: 463 | O38: P | P38: -- | Q38: 0,000 | R38: NO | S38: 0.3 | T38: 56.17458 | U38: -- | V38: -- | W38: -- | X38: -- | Y38: -- | Z38: -- | AA38: -- | AB38: SI | AC38: 56.17458
C39: 74 | D39: 291399 | E39: 5567 | F39: ESTATICA | G39: TRAFO 3 | H39: 30 | I39: 132/13,2 | J39: 48.51 | K39: 2015-08-22T08:53:00 | L39: 2015-08-22T20:18:00 | M39: 11.41666667 | N39: 685 | O39: P | P39: -- | Q39: 0,000 | R39: NO | S39: 0.3 | T39: 166.19526 | U39: -- | V39: -- | W39: -- | X39: -- | Y39: -- | Z39: -- | AA39: -- | AB39: SI | AC39: 166.19526
C40: 75 | D40: 291400 | E40: 544 | F40: ESTATICA | G40: TRAFO 2 | H40: 30 | I40: 132/13,2 | J40: 48.51 | K40: 2015-08-22T08:54:00 | L40: 2015-08-22T19:57:00 | M40: 11.05 | N40: 663 | O40: P | P40: -- | Q40: 0,000 | R40: NO | S40: 0.3 | T40: 160.81065 | U40: -- | V40: -- | W40: -- | X40: -- | Y40: -- | Z40: -- | AA40: -- | AB40: SI | AC40: 160.81065
C41: 76 | D41: 291406 | E41: 580 | F41: TARTAGAL | G41: TRAFO 1 | H41: 30 | I41: 132/33/13,2 | J41: 48.51 | K41: 2015-08-23T09:06:00 | L41: 2015-08-23T13:11:00 | M41: 4.083333333 | N41: 245 | O41: P | P41: -- | Q41: 0,000 | R41: NO | S41: 0.3 | T41: 59.37624 | U41: -- | V41: -- | W41: -- | X41: -- | Y41: -- | Z41: -- | AA41: -- | AB41: SI | AC41: 59.37624
C42: 77 | D42: 291778 | E42: 5062 | F42: QUIMILI | G42: TRAFO 1 | H42: 15 | I42: 132/33/13,2 | J42: 24.255 | K42: 2015-08-25T10:24:00 | L42: 2015-08-25T16:57:00 | M42: 6.55 | N42: 393 | O42: P | P42: -- | Q42: 0,000 | R42: NO | S42: 0.3 | T42: 47.661075 | U42: -- | V42: -- | W42: -- | X42: -- | Y42: -- | Z42: -- | AA42: -- | AB42: SI | AC42: 47.661075
C43: 78 | D43: 291779 | E43: 5063 | F43: QUIMILI | G43: TRAFO 2 | H43: 15 | I43: 132/33/13,2 | J43: 24.255 | K43: 2015-08-26T08:07:00 | L43: 2015-08-26T17:36:00 | M43: 9.483333333 | N43: 569 | O43: P | P43: -- | Q43: 0,000 | R43: NO | S43: 0.3 | T43: 68.98122 | U43: -- | V43: -- | W43: -- | X43: -- | Y43: -- | Z43: -- | AA43: -- | AB43: SI | AC43: 68.98122
C44: 79 | D44: 291784 | E44: 4962 | F44: TUCUMAN NORTE | G44: TRAFO 3 | H44: 30 | I44: 132/33/13,2 | J44: 48.51 | K44: 2015-08-28T13:54:00 | L44: 2015-08-28T14:47:00 | M44: 0.8833333332 | N44: 53 | O44: R | P44: NO | Q44: 40 | R44: SI | S44: 30 | T44: -- | U44: -- | V44: -- | W44: -- | X44: 582.12 | Y44: 512.2656 | Z44: -- | AA44: -- | AB44: SI | AC44: 1094.3856
C46: (²) | D46: P - PROGRAMADA ; F - FORZADA ; R - REDUCCIÓN FORZADA | T46: =SUM(T22:T45) -> 1531.921545 | U46: 0 | V46: 4333.32 | W46: 1533.6477 | X46: 654.885 | Y46: 708.00345 | Z46: 0 | AA46: 0 | AC46: =ROUND(SUM(AC22:AC45),2) -> 138570.17

Sheet T-08 (3)
B2: =+'TOT-0815'!B2 -> ANEXO V al Memorandum D.T.E.E. N° 526 / 2016
A4: ENTE NACIONAL REGULADOR
A5: DE LA ELECTRICIDAD
F8: SISTEMA DE TRANSPORTE DE ENERGÍA ELÉCTRICA POR DISTRIBUCIÓN TRONCAL - TRANSNOA S.A.
F10: 2.- CONEXIÓN
F12: 2.1.- Transformación
F14: 2.1.1.- Equipamiento propio
B16: ='TOT-0815'!B14 -> Desde el 01 al 31 de agosto de 2015
F18: Por Transformador por MVA $ = | I18: 1.617
F19: Coeficiente de penalización por salida forzada = | I19: =30*'TOT-0815'!B13 -> 30 | K19: =IF(I19=30," ",IF(I19=60," Coeficiente duplicado por tasa de falla >4 Sal. x año/100 km.","REVISAR COEFICIENTE")) -> 
C20: 3 | D20: 4 | E20: 5 | F20: 6 | G20: 7 | H20: 8 | I20: 9 | J20: 10 | K20: 11 | L20: 12 | M20: 13 | N20: 14 | O20: 15 | P20: 16 | Q20: 17 | R20: 18 | S20: 19 | T20: 20 | U20: 21 | V20: 22 | W20: 23 | X20: 24 | Y20: 25 | Z20: 26 | AA20: 27 | AB20: 28 | AC20: 29
C21: N° | D21: INDISP | E21: ID EQUIPO | F21: ESTACIÓN TRANSFORMADORA | G21: EQUIPO | H21: POT. [MVA] | I21: U [kV] | J21: $/h | K21: Salida | L21: Entrada | M21: Hs Indisp. | N21: Mtos. Indisp. | O21: Tipo Sal.(²) | P21: AUT. | Q21: C.R. % | R21: E.N.S. | S21: K (P;ENS) | T21: PENALIZ. PROGRAM. | U21: REDUCC. PROGRAM. | V21: PENALIZAC. FORZADA Por Salida hs. Restantes | X21: REDUCC. FORZADA Por Salida hs. Restantes | Z21: RESTANTE FORZADA | AA21: REDUCC. RESTANTE | AB21: Informó en Térm. | AC21: TOTAL PENALIZAC.
AC22: ='T-08 (2)'!AC46 -> 138570.17
C24: 80 | D24: 291787 | E24: 3580 | F24: ANDALGALA | G24: TRAFO 1 | H24: 15 | I24: 132/33/13,2 | J24: =H24*$I$18 -> 24.255 | K24: 2015-08-29T12:03:00 | L24: 2015-08-31T23:59:00 | M24: =IF(F24="","",(L24-K24)*24) -> 59.93333333 | N24: =IF(F24="","",ROUND((L24-K24)*24*60,0)) -> 3596 | O24: P | P24: =IF(F24="","",IF(OR(O24="P",O24="RP"),"--","NO")) -> -- | Q24: 0,000 | R24: NO | S24: =$I$19*IF(R24="SI",1,0.1)*IF(OR(O24="P",O24="RP"),0.1,1) -> 0.3 | T24: =IF(O24="P",J24*S24*ROUND(N24/60,2),"--") -> 436.080645 | U24: =IF(O24="RP",J24*S24*Q24/100*ROUND(N24/60,2),"--") -> -- | V24: =IF(AND(O24="F",P24="NO"),J24*S24,"--") -> -- | W24: =IF(O24="F",J24*S24*ROUND(N24/60,2),"--") -> -- | X24: =IF(AND(O24="R",P24="NO"),J24*S24*Q24/100,"--") -> -- | Y24: =IF(O24="R",J24*S24*ROUND(N24/60,2)*Q24/100,"--") -> -- | Z24: =IF(O24="RF",J24*S24*ROUND(N24/60,2),"--") -> -- | AA24: =IF(O24="RR",J24*S24*ROUND(N24/60,2)*Q24/100,"--") -> -- | AB24: SI | AC24: =IF(F24="","",SUM(T24:AA24)*IF(AB24="SI",1,2)) -> 436.080645
C25: 81 | D25: 291788 | E25: 3585 | F25: BELEN | G25: TRAFO 1 | H25: 7.5 | I25: 132/33/13,2 | J25: =H25*$I$18 -> 12.1275 | K25: 2015-08-29T12:47:00 | L25: 2015-08-30T18:57:00 | M25: =IF(F25="","",(L25-K25)*24) -> 30.16666667 | N25: =IF(F25="","",ROUND((L25-K25)*24*60,0)) -> 1810 | O25: F | P25: =IF(F25="","",IF(OR(O25="P",O25="RP"),"--","NO")) -> NO | Q25: 0,000 | R25: NO | S25: =$I$19*IF(R25="SI",1,0.1)*IF(OR(O25="P",O25="RP"),0.1,1) -> 3 | T25: =IF(O25="P",J25*S25*ROUND(N25/60,2),"--") -> -- | U25: =IF(O25="RP",J25*S25*Q25/100*ROUND(N25/60,2),"--") -> -- | V25: =IF(AND(O25="F",P25="NO"),J25*S25,"--") -> 36.3825 | W25: =IF(O25="F",J25*S25*ROUND(N25/60,2),"--") -> 1097.660025 | X25: =IF(AND(O25="R",P25="NO"),J25*S25*Q25/100,"--") -> -- | Y25: =IF(O25="R",J25*S25*ROUND(N25/60,2)*Q25/100,"--") -> -- | Z25: =IF(O25="RF",J25*S25*ROUND(N25/60,2),"--") -> -- | AA25: =IF(O25="RR",J25*S25*ROUND(N25/60,2)*Q25/100,"--") -> -- | AB25: SI | AC25: =IF(F25="","",SUM(T25:AA25)*IF(AB25="SI",1,2)) -> 1134.042525
C26: 82 | D26: 291814 | E26: 3573 | F26: TRANCAS | G26: TRAFO | H26: 15 | I26: 132/33/13,2 | J26: =H26*$I$18 -> 24.255 | K26: 2015-08-30T08:44:00 | L26: 2015-08-30T09:10:00 | M26: =IF(F26="","",(L26-K26)*24) -> 0.4333333333 | N26: =IF(F26="","",ROUND((L26-K26)*24*60,0)) -> 26 | O26: R | P26: =IF(F26="","",IF(OR(O26="P",O26="RP"),"--","NO")) -> NO | Q26: 40 | R26: SI | S26: =$I$19*IF(R26="SI",1,0.1)*IF(OR(O26="P",O26="RP"),0.1,1) -> 30 | T26: =IF(O26="P",J26*S26*ROUND(N26/60,2),"--") -> -- | U26: =IF(O26="RP",J26*S26*Q26/100*ROUND(N26/60,2),"--") -> -- | V26: =IF(AND(O26="F",P26="NO"),J26*S26,"--") -> -- | W26: =IF(O26="F",J26*S26*ROUND(N26/60,2),"--") -> -- | X26: =IF(AND(O26="R",P26="NO"),J26*S26*Q26/100,"--") -> 291.06 | Y26: =IF(O26="R",J26*S26*ROUND(N26/60,2)*Q26/100,"--") -> 125.1558 | Z26: =IF(O26="RF",J26*S26*ROUND(N26/60,2),"--") -> -- | AA26: =IF(O26="RR",J26*S26*ROUND(N26/60,2)*Q26/100,"--") -> -- | AB26: SI | AC26: =IF(F26="","",SUM(T26:AA26)*IF(AB26="SI",1,2)) -> 416.2158
J27: =H27*$I$18 -> 0 | M27: =IF(F27="","",(L27-K27)*24) ->  | N27: =IF(F27="","",ROUND((L27-K27)*24*60,0)) ->  | P27: =IF(F27="","",IF(OR(O27="P",O27="RP"),"--","NO")) ->  | Q27: =IF(F27="","","--") ->  | S27: =$I$19*IF(R27="SI",1,0.1)*IF(OR(O27="P",O27="RP"),0.1,1) -> 3 | T27: =IF(O27="P",J27*S27*ROUND(N27/60,2),"--") -> -- | U27: =IF(O27="RP",J27*S27*Q27/100*ROUND(N27/60,2),"--") -> -- | V27: =IF(AND(O27="F",P27="NO"),J27*S27,"--") -> -- | W27: =IF(O27="F",J27*S27*ROUND(N27/60,2),"--") -> -- | X27: =IF(AND(O27="R",P27="NO"),J27*S27*Q27/100,"--") -> -- | Y27: =IF(O27="R",J27*S27*ROUND(N27/60,2)*Q27/100,"--") -> -- | Z27: =IF(O27="RF",J27*S27*ROUND(N27/60,2),"--") -> -- | AA27: =IF(O27="RR",J27*S27*ROUND(N27/60,2)*Q27/100,"--") -> -- | AC27: =IF(F27="","",SUM(T27:AA27)*IF(AB27="SI",1,2)) -> 
J28: 0 | S28: 3 | T28: -- | U28: -- | V28: -- | W28: -- | X28: -- | Y28: -- | Z28: -- | AA28: --
J29: 0 | S29: =$I$19*IF(R29="SI",1,0.1)*IF(OR(O29="P",O29="RP"),0.1,1) -> 3 | T29: =IF(O29="P",J29*S29*ROUND(N29/60,2),"--") -> -- | U29: =IF(O29="RP",J29*S29*Q29/100*ROUND(N29/60,2),"--") -> -- | V29: =IF(AND(O29="F",P29="NO"),J29*S29,"--") -> -- | W29: =IF(O29="F",J29*S29*ROUND(N29/60,2),"--") -> -- | X29: =IF(AND(O29="R",P29="NO"),J29*S29*Q29/100,"--") -> -- | Y29: =IF(O29="R",J29*S29*ROUND(N29/60,2)*Q29/100,"--") -> -- | Z29: =IF(O29="RF",J29*S29*ROUND(N29/60,2),"--") -> -- | AA29: =IF(O29="RR",J29*S29*ROUND(N29/60,2)*Q29/100,"--") -> --
J30: 0 | S30: 3 | T30: -- | U30: -- | V30: -- | W30: -- | X30: -- | Y30: -- | Z30: -- | AA30: --
J31: 0 | S31: 3 | T31: -- | U31: -- | V31: -- | W31: -- | X31: -- | Y31: -- | Z31: -- | AA31: --
J32: 0 | S32: 3 | T32: -- | U32: -- | V32: -- | W32: -- | X32: -- | Y32: -- | Z32: -- | AA32: --
J33: 0 | S33: 3 | T33: -- | U33: -- | V33: -- | W33: -- | X33: -- | Y33: -- | Z33: -- | AA33: --
J34: 0 | S34: 3 | T34: -- | U34: -- | V34: -- | W34: -- | X34: -- | Y34: -- | Z34: -- | AA34: --
J35: 0 | S35: 3 | T35: -- | U35: -- | V35: -- | W35: -- | X35: -- | Y35: -- | Z35: -- | AA35: --
J36: 0 | S36: 3 | T36: -- | U36: -- | V36: -- | W36: -- | X36: -- | Y36: -- | Z36: -- | AA36: --
J37: 0 | S37: 3 | T37: -- | U37: -- | V37: -- | W37: -- | X37: -- | Y37: -- | Z37: -- | AA37: --
J38: 0 | S38: 3 | T38: -- | U38: -- | V38: -- | W38: -- | X38: -- | Y38: -- | Z38: -- | AA38: --
J39: 0 | S39: 3 | T39: -- | U39: -- | V39: -- | W39: -- | X39: -- | Y39: -- | Z39: -- | AA39: --
J40: 0 | S40: 3 | T40: -- | U40: -- | V40: -- | W40: -- | X40: -- | Y40: -- | Z40: -- | AA40: --
J41: 0 | S41: 3 | T41: -- | U41: -- | V41: -- | W41: -- | X41: -- | Y41: -- | Z41: -- | AA41: --
J42: 0 | M42: =IF(F42="","",(L42-K42)*24) ->  | N42: =IF(F42="","",ROUND((L42-K42)*24*60,0)) ->  | Q42: =IF(F42="","","--") ->  | S42: =$I$19*IF(R42="SI",1,0.1)*IF(OR(O42="P",O42="RP"),0.1,1) -> 3 | T42: =IF(O42="P",J42*S42*ROUND(N42/60,2),"--") -> -- | U42: =IF(O42="RP",J42*S42*Q42/100*ROUND(N42/60,2),"--") -> -- | V42: =IF(AND(O42="F",P42="NO"),J42*S42,"--") -> -- | W42: =IF(O42="F",J42*S42*ROUND(N42/60,2),"--") -> -- | X42: =IF(AND(O42="R",P42="NO"),J42*S42*Q42/100,"--") -> -- | Y42: =IF(O42="R",J42*S42*ROUND(N42/60,2)*Q42/100,"--") -> -- | Z42: =IF(O42="RF",J42*S42*ROUND(N42/60,2),"--") -> -- | AA42: =IF(O42="RR",J42*S42*ROUND(N42/60,2)*Q42/100,"--") -> -- | AB42: =IF(F42="","","SI") ->  | AC42: =IF(F42="","",SUM(T42:AA42)*IF(AB42="SI",1,2)) -> 
J43: 0 | M43: =IF(F43="","",(L43-K43)*24) ->  | N43: =IF(F43="","",ROUND((L43-K43)*24*60,0)) ->  | Q43: =IF(F43="","","--") ->  | S43: =$I$19*IF(R43="SI",1,0.1)*IF(OR(O43="P",O43="RP"),0.1,1) -> 3 | T43: =IF(O43="P",J43*S43*ROUND(N43/60,2),"--") -> -- | U43: =IF(O43="RP",J43*S43*Q43/100*ROUND(N43/60,2),"--") -> -- | V43: =IF(AND(O43="F",P43="NO"),J43*S43,"--") -> -- | W43: =IF(O43="F",J43*S43*ROUND(N43/60,2),"--") -> -- | X43: =IF(AND(O43="R",P43="NO"),J43*S43*Q43/100,"--") -> -- | Y43: =IF(O43="R",J43*S43*ROUND(N43/60,2)*Q43/100,"--") -> -- | Z43: =IF(O43="RF",J43*S43*ROUND(N43/60,2),"--") -> -- | AA43: =IF(O43="RR",J43*S43*ROUND(N43/60,2)*Q43/100,"--") -> -- | AB43: =IF(F43="","","SI") ->  | AC43: =IF(F43="","",SUM(T43:AA43)*IF(AB43="SI",1,2)) -> 
J44: 0 | M44: =IF(F44="","",(L44-K44)*24) ->  | N44: =IF(F44="","",ROUND((L44-K44)*24*60,0)) ->  | Q44: =IF(F44="","","--") ->  | S44: =$I$19*IF(R44="SI",1,0.1)*IF(OR(O44="P",O44="RP"),0.1,1) -> 3 | T44: =IF(O44="P",J44*S44*ROUND(N44/60,2),"--") -> -- | U44: =IF(O44="RP",J44*S44*Q44/100*ROUND(N44/60,2),"--") -> -- | V44: =IF(AND(O44="F",P44="NO"),J44*S44,"--") -> -- | W44: =IF(O44="F",J44*S44*ROUND(N44/60,2),"--") -> -- | X44: =IF(AND(O44="R",P44="NO"),J44*S44*Q44/100,"--") -> -- | Y44: =IF(O44="R",J44*S44*ROUND(N44/60,2)*Q44/100,"--") -> -- | Z44: =IF(O44="RF",J44*S44*ROUND(N44/60,2),"--") -> -- | AA44: =IF(O44="RR",J44*S44*ROUND(N44/60,2)*Q44/100,"--") -> -- | AB44: =IF(F44="","","SI") ->  | AC44: =IF(F44="","",SUM(T44:AA44)*IF(AB44="SI",1,2)) -> 
C46: (²) | D46: P - PROGRAMADA ; F - FORZADA ; R - REDUCCIÓN FORZADA | T46: =SUM(T22:T45) -> 436.080645 | U46: 0 | V46: 36.3825 | W46: 1097.660025 | X46: 291.06 | Y46: 125.1558 | Z46: 0 | AA46: 0 | AC46: =ROUND(SUM(AC22:AC45),2) -> 140556.51

Sheet CAUSAS-VST-08 (1)
B2: ='TOT-0815'!B2 -> ANEXO V al Memorandum D.T.E.E. N° 526 / 2016
A4: ENTE NACIONAL REGULADOR
A5: DE LA ELECTRICIDAD
F8: SISTEMA DE TRANSPORTE DE ENERGÍA ELÉCTRICA POR DISTRIBUCIÓN TRONCAL - TRANSNEA S.A.
G11: Indisponibilidades Descartadas por Causa "Vinculado y Sin Tensión"
B14: ='TOT-0815'!B14 -> Desde el 01 al 31 de agosto de 2015
C17: Id | D17: ID EQUIPO | E17: INDISP | F17: AGENTE | G17: CAUSA
C19: 83 | D19: 372 | E19: 290664 | F19: TRANSNOA | G19: VINCULADO Y SIN TENSION : Falla de aislación en el interruptor lado 33 kV de Trafo Nº 1 (palomas en las instalaciones)
C20: 84 | D20: 373 | E20: 290665 | F20: TRANSNOA | G20: VINCULADO Y SIN TENSION : Falla de aislación en el interruptor lado 33 kV de Trafo Nº 1 (palomas en las instalaciones)
C21: 85 | D21: 2679 | E21: 291014 | F21: TRANSNOA | G21: VINCULADO Y SIN TENSION : Pedido de la distribuidora para ingreso de grúa que lleva al nuevo Trafo Nº 1
C22: 86 | D22: 349 | E22: 291015 | F22: TRANSNOA | G22: VINCULADO Y SIN TENSION : Pedido de la distribuidora para ingreso de grúa que lleva al nuevo Trafo Nº 1
C23: 87 | D23: 350 | E23: 291016 | F23: TRANSNOA | G23: VINCULADO Y SIN TENSION : Pedido de la distribuidora para ingreso de grúa que lleva al nuevo Trafo Nº 1
C24: 88 | D24: 351 | E24: 291017 | F24: TRANSNOA | G24: VINCULADO Y SIN TENSION : Pedido de la distribuidora para ingreso de grúa que lleva al nuevo Trafo Nº 1
C25: 89 | D25: 352 | E25: 291018 | F25: TRANSNOA | G25: VINCULADO Y SIN TENSION : Pedido de la distribuidora para ingreso de grúa que lleva al nuevo Trafo Nº 1
C26: 90 | D26: 3026 | E26: 291019 | F26: TRANSNOA | G26: VINCULADO Y SIN TENSION : Pedido de la distribuidora para ingreso de grúa que lleva al nuevo Trafo Nº 1
C27: 91 | D27: 354 | E27: 291020 | F27: TRANSNOA | G27: VINCULADO Y SIN TENSION : Pedido de la distribuidora para ingreso de grúa que lleva al nuevo Trafo Nº 1
C28: 92 | D28: 359 | E28: 291021 | F28: TRANSNOA | G28: VINCULADO Y SIN TENSION : Pedido de la distribuidora para ingreso de grúa que lleva al nuevo Trafo Nº 1
C29: 93 | D29: 356 | E29: 291022 | F29: TRANSNOA | G29: VINCULADO Y SIN TENSION : Pedido de la distribuidora para ingreso de grúa que lleva al nuevo Trafo Nº 1
C30: 94 | D30: 5225 | E30: 291026 | F30: TRANSNOA | G30: VINCULADO Y SIN TENSION : Aves (palomas) en aislador pasatapa lado 33 kV de Trafo Nº 2
C31: 95 | D31: 5224 | E31: 291027 | F31: TRANSNOA | G31: VINCULADO Y SIN TENSION : Aves (palomas) en aislador pasatapa lado 33 kV de Trafo Nº 2
C32: 96 | D32: 3582 | E32: 291031 | F32: TRANSNOA | G32: VINCULADO Y SIN TENSION :Falla de aislación en LAT 132 kv Villa Quinteros - Andalgalá por causales de fuerza mayor: fuerte viento Zonda en el área
C33: 97 | D33: 3584 | E33: 291032 | F33: TRANSNOA | G33: VINCULADO Y SIN TENSION :Falla de aislación en LAT 132 kv Villa Quinteros - Andalgalá por causales de fuerza mayor: fuerte viento Zonda en el área
C34: 98 | D34: 3735 | E34: 291033 | F34: TRANSNOA | G34: VINCULADO Y SIN TENSION :Falla de aislación en LAT 132 kv Villa Quinteros - Andalgalá por causales de fuerza mayor: fuerte viento Zonda en el área
C35: 99 | D35: 3814 | E35: 291034 | F35: TRANSNOA | G35: VINCULADO Y SIN TENSION :Falla de aislación en LAT 132 kv Villa Quinteros - Andalgalá por causales de fuerza mayor: fuerte viento Zonda en el área
C36: 100 | D36: 3586 | E36: 291035 | F36: TRANSNOA | G36: VINCULADO Y SIN TENSION :Falla de aislación en LAT 132 kv Villa Quinteros - Andalgalá por causales de fuerza mayor: fuerte viento Zonda en el área
C37: 101 | D37: 3587 | E37: 291036 | F37: TRANSNOA | G37: VINCULADO Y SIN TENSION :Falla de aislación en LAT 132 kv Villa Quinteros - Andalgalá por causales de fuerza mayor: fuerte viento Zonda en el área
C38: 102 | D38: 3588 | E38: 291037 | F38: TRANSNOA | G38: VINCULADO Y SIN TENSION :Falla de aislación en LAT 132 kv Villa Quinteros - Andalgalá por causales de fuerza mayor: fuerte viento Zonda en el área
C39: 103 | D39: 3679 | E39: 291038 | F39: TRANSNOA | G39: VINCULADO Y SIN TENSION :Falla de aislación en LAT 132 kv Villa Quinteros - Andalgalá por causales de fuerza mayor: fuerte viento Zonda en el área
C40: 104 | D40: 3672 | E40: 291039 | F40: TRANSNOA | G40: VINCULADO Y SIN TENSION :Falla de aislación en LAT 132 kv Villa Quinteros - Andalgalá por causales de fuerza mayor: fuerte viento Zonda en el área
C41: 105 | D41: 3682 | E41: 291040 | F41: TRANSNOA | G41: VINCULADO Y SIN TENSION :Falla de aislación en LAT 132 kv Villa Quinteros - Andalgalá por causales de fuerza mayor: fuerte viento Zonda en el área

Sheet CAUSAS-VST-08 (2)
B2: ='TOT-0815'!B2 -> ANEXO V al Memorandum D.T.E.E. N° 526 / 2016
A4: ENTE NACIONAL REGULADOR
A5: DE LA ELECTRICIDAD
F8: SISTEMA DE TRANSPORTE DE ENERGÍA ELÉCTRICA POR DISTRIBUCIÓN TRONCAL - TRANSNEA S.A.
G11: Indisponibilidades Descartadas por Causa "Vinculado y Sin Tensión"
B14: ='TOT-0815'!B14 -> Desde el 01 al 31 de agosto de 2015
C17: Id | D17: ID EQUIPO | E17: INDISP | F17: AGENTE | G17: CAUSA
C19: 106 | D19: 3683 | E19: 291041 | F19: TRANSNOA | G19: VINCULADO Y SIN TENSION :Falla de aislación en LAT 132 kv Villa Quinteros - Andalgalá por causales de fuerza mayor: fuerte viento Zonda en el área
C20: 107 | D20: 3620 | E20: 291042 | F20: TRANSNOA | G20: VINCULADO Y SIN TENSION :Falla de aislación en LAT 132 kv Villa Quinteros - Andalgalá por causales de fuerza mayor: fuerte viento Zonda en el área
C21: 108 | D21: 4905 | E21: 291043 | F21: TRANSNOA | G21: VINCULADO Y SIN TENSION :Falla de aislación en LAT 132 kv Villa Quinteros - Andalgalá por causales de fuerza mayor: fuerte viento Zonda en el área
C22: 109 | D22: 3580 | E22: 291044 | F22: TRANSNOA | G22: VINCULADO Y SIN TENSION :Falla de aislación en LAT 132 kv Villa Quinteros - Andalgalá por causales de fuerza mayor: fuerte viento Zonda en el área
C23: 110 | D23: 4904 | E23: 291045 | F23: TRANSNOA | G23: VINCULADO Y SIN TENSION :Falla de aislación en LAT 132 kv Villa Quinteros - Andalgalá por causales de fuerza mayor: fuerte viento Zonda en el área
C24: 111 | D24: 4690 | E24: 291046 | F24: TRANSNOA | G24: VINCULADO Y SIN TENSION :Falla de aislación en LAT 132 kv Villa Quinteros - Andalgalá por causales de fuerza mayor: fuerte viento Zonda en el área
C25: 112 | D25: 4689 | E25: 291054 | F25: TRANSNOA | G25: VINCULADO Y SIN TENSION :Falla de aislación en LAT 132 kv Villa Quinteros - Andalgalá por causales de fuerza mayor: fuerte viento Zonda en el área
C26: 113 | D26: 4903 | E26: 291055 | F26: TRANSNOA | G26: VINCULADO Y SIN TENSION :Falla de aislación en LAT 132 kv Villa Quinteros - Andalgalá por causales de fuerza mayor: fuerte viento Zonda en el área
C27: 114 | D27: 3585 | E27: 291056 | F27: TRANSNOA | G27: VINCULADO Y SIN TENSION :Falla de aislación en LAT 132 kv Villa Quinteros - Andalgalá por causales de fuerza mayor: fuerte viento Zonda en el área
C28: 115 | D28: 3819 | E28: 291057 | F28: TRANSNOA | G28: VINCULADO Y SIN TENSION :Falla de aislación en LAT 132 kv Villa Quinteros - Andalgalá por causales de fuerza mayor: fuerte viento Zonda en el área
C29: 116 | D29: 3618 | E29: 291059 | F29: TRANSNOA | G29: VINCULADO Y SIN TENSION :Falla de aislación en LAT 132 kv Villa Quinteros - Andalgalá por causales de fuerza mayor: fuerte viento Zonda en el área
C30: 117 | D30: 3579 | E30: 291060 | F30: TRANSNOA | G30: VINCULADO Y SIN TENSION :Falla de aislación en LAT 132 kv Villa Quinteros - Andalgalá por causales de fuerza mayor: fuerte viento Zonda en el área
C31: 118 | D31: 4902 | E31: 291061 | F31: TRANSNOA | G31: VINCULADO Y SIN TENSION :Falla de aislación en LAT 132 kv Villa Quinteros - Andalgalá por causales de fuerza mayor: fuerte viento Zonda en el área
C32: 119 | D32: 3619 | E32: 291062 | F32: TRANSNOA | G32: VINCULADO Y SIN TENSION :Falla de aislación en LAT 132 kv Villa Quinteros - Andalgalá por causales de fuerza mayor: fuerte viento Zonda en el área
C33: 120 | D33: 3617 | E33: 291063 | F33: TRANSNOA | G33: VINCULADO Y SIN TENSION :Falla de aislación en LAT 132 kv Villa Quinteros - Andalgalá por causales de fuerza mayor: fuerte viento Zonda en el área
C34: 121 | D34: 494 | E34: 291066 | F34: TRANSNOA | G34: VINCULADO Y SIN TENSION : Error humano por personal de mantenimiento.
C35: 122 | D35: 486 | E35: 291067 | F35: TRANSNOA | G35: VINCULADO Y SIN TENSION : Error humano por personal de mantenimiento.
C36: 123 | D36: 487 | E36: 291068 | F36: TRANSNOA | G36: VINCULADO Y SIN TENSION : Error humano por personal de mantenimiento.
C37: 124 | D37: 488 | E37: 291069 | F37: TRANSNOA | G37: VINCULADO Y SIN TENSION : Error humano por personal de mantenimiento.
C38: 125 | D38: 489 | E38: 291070 | F38: TRANSNOA | G38: VINCULADO Y SIN TENSION : Error humano por personal de mantenimiento.
C39: 126 | D39: 490 | E39: 291071 | F39: TRANSNOA | G39: VINCULADO Y SIN TENSION : Error humano por personal de mantenimiento.
C40: 127 | D40: 491 | E40: 291072 | F40: TRANSNOA | G40: VINCULADO Y SIN TENSION : Error humano por personal de mantenimiento.
C41: 128 | D41: 492 | E41: 291073 | F41: TRANSNOA | G41: VINCULADO Y SIN TENSION : Error humano por personal de mantenimiento.
C42: 129 | D42: 4952 | E42: 291076 | F42: TRANSNOA | G42: VINCULADO Y SIN TENSION : Actuación respaldo máxima corriente por no actuación reconectador de la distribuidora ante falla de aislación en 13.2 kV

Sheet CAUSAS-VST-08 (3)
B2: ='TOT-0815'!B2 -> ANEXO V al Memorandum D.T.E.E. N° 526 / 2016
A4: ENTE NACIONAL REGULADOR
A5: DE LA ELECTRICIDAD
F8: SISTEMA DE TRANSPORTE DE ENERGÍA ELÉCTRICA POR DISTRIBUCIÓN TRONCAL - TRANSNEA S.A.
G11: Indisponibilidades Descartadas por Causa "Vinculado y Sin Tensión"
B14: ='TOT-0815'!B14 -> Desde el 01 al 31 de agosto de 2015
C17: Id | D17: ID EQUIPO | E17: INDISP | F17: AGENTE | G17: CAUSA
C19: 130 | D19: 4953 | E19: 291077 | F19: TRANSNOA | G19: VINCULADO Y SIN TENSION : Actuación respaldo máxima corriente por no actuación reconectador de la distribuidora ante falla de aislación en 13.2 kV
C20: 131 | D20: 5216 | E20: 291079 | F20: TRANSNOA | G20: VINCULADO Y SIN TENSION : Aún se investigan.
C21: 132 | D21: 4815 | E21: 291142 | F21: TRANSNOA | G21: VINCULADO Y SIN TENSION : Falla de aislación en LAT 132 kV Cobos – Rosario de la Frontera y no actuación del interruptor de ET Rosario de la Frontera
C22: 133 | D22: 4817 | E22: 291143 | F22: TRANSNOA | G22: VINCULADO Y SIN TENSION : Falla de aislación en LAT 132 kV Cobos – Rosario de la Frontera y no actuación del interruptor de ET Rosario de la Frontera
C23: 134 | D23: 4816 | E23: 291144 | F23: TRANSNOA | G23: VINCULADO Y SIN TENSION : Falla de aislación en LAT 132 kV Cobos – Rosario de la Frontera y no actuación del interruptor de ET Rosario de la Frontera
C24: 135 | D24: 4813 | E24: 291145 | F24: TRANSNOA | G24: VINCULADO Y SIN TENSION : Falla de aislación en LAT 132 kV Cobos – Rosario de la Frontera y no actuación del interruptor de ET Rosario de la Frontera
C25: 136 | D25: 4814 | E25: 291146 | F25: TRANSNOA | G25: VINCULADO Y SIN TENSION : Falla de aislación en LAT 132 kV Cobos – Rosario de la Frontera y no actuación del interruptor de ET Rosario de la Frontera
C26: 137 | D26: 4812 | E26: 291149 | F26: TRANSNOA | G26: VINCULADO Y SIN TENSION : Falla de aislación en LAT 132 kV Cobos – Rosario de la Frontera y no actuación del interruptor de ET Rosario de la Frontera
C27: 138 | D27: 394 | E27: 291378 | F27: TRANSNOA | G27: VINCULADO Y SIN TENSION : Falta de sin tensión continua las instalaciones por error humano.
C28: 139 | D28: 391 | E28: 291379 | F28: TRANSNOA | G28: VINCULADO Y SIN TENSION : Falta de sin tensión continua las instalaciones por error humano.
C29: 140 | D29: 390 | E29: 291380 | F29: TRANSNOA | G29: VINCULADO Y SIN TENSION : Falta de sin tensión continua las instalaciones por error humano.
C30: 141 | D30: 392 | E30: 291381 | F30: TRANSNOA | G30: VINCULADO Y SIN TENSION : Falta de sin tensión continua las instalaciones por error humano.
C31: 142 | D31: 393 | E31: 291382 | F31: TRANSNOA | G31: VINCULADO Y SIN TENSION : Falta de sin tensión continua las instalaciones por error humano.
C32: 143 | D32: 389 | E32: 291385 | F32: TRANSNOA | G32: VINCULADO Y SIN TENSION : Falta de sin tensión continua las instalaciones por error humano.
C33: 144 | D33: 395 | E33: 291386 | F33: TRANSNOA | G33: VINCULADO Y SIN TENSION : Falta de sin tensión continua las instalaciones por error humano.
C34: 145 | D34: 396 | E34: 291387 | F34: TRANSNOA | G34: VINCULADO Y SIN TENSION : Falta de sin tensión continua las instalaciones por error humano.
C35: 146 | D35: 387 | E35: 291388 | F35: TRANSNOA | G35: VINCULADO Y SIN TENSION : Falta de sin tensión continua las instalaciones por error humano.
C36: 147 | D36: 388 | E36: 291389 | F36: TRANSNOA | G36: VINCULADO Y SIN TENSION : Falta de sin tensión continua las instalaciones por error humano.
C37: 148 | D37: 517 | E37: 291780 | F37: TRANSNOA | G37: VINCULADO Y SIN TENSION : EDET informa falla en el interruptor 33 KV salida Trancas.
C38: 149 | D38: 519 | E38: 291781 | F38: TRANSNOA | G38: VINCULADO Y SIN TENSION : EDET informa falla en el interruptor 33 KV salida Trancas.
C39: 150 | D39: 518 | E39: 291782 | F39: TRANSNOA | G39: VINCULADO Y SIN TENSION : EDET informa falla en el interruptor 33 KV salida Trancas.
C40: 151 | D40: 696 | E40: 291783 | F40: TRANSNOA | G40: VINCULADO Y SIN TENSION : EDET informa falla en el interruptor 33 KV salida Trancas.
C41: 152 | D41: 519 | E41: 291789 | F41: TRANSNOA | G41: VINCULADO Y SIN TENSION Falla aislación en LAT 132 kV Cobos–Rosario de la Frontera y no actuación del interrup. ET Rosario de la Frontera salida 132 kV Cobos.
C42: 153 | D42: 518 | E42: 291790 | F42: TRANSNOA | G42: VINCULADO Y SIN TENSION Falla aislación en LAT 132 kV Cobos–Rosario de la Frontera y no actuación del interrup. ET Rosario de la Frontera salida 132 kV Cobos.

Sheet CAUSAS-VST-08 (4)
B2: ='TOT-0815'!B2 -> ANEXO V al Memorandum D.T.E.E. N° 526 / 2016
A4: ENTE NACIONAL REGULADOR
A5: DE LA ELECTRICIDAD
F8: SISTEMA DE TRANSPORTE DE ENERGÍA ELÉCTRICA POR DISTRIBUCIÓN TRONCAL - TRANSNEA S.A.
G11: Indisponibilidades Descartadas por Causa "Vinculado y Sin Tensión"
B14: ='TOT-0815'!B14 -> Desde el 01 al 31 de agosto de 2015
C17: Id | D17: ID EQUIPO | E17: INDISP | F17: AGENTE | G17: CAUSA
C19: 154 | D19: 696 | E19: 291791 | F19: TRANSNOA | G19: VINCULADO Y SIN TENSION Falla aislación en LAT 132 kV Cobos–Rosario de la Frontera y no actuación del interrup. ET Rosario de la Frontera salida 132 kV Cobos.
C20: 155 | D20: 2736 | E20: 291792 | F20: TRANSNOA | G20: VINCULADO Y SIN TENSION : Rotura de cadena de aisladores en Piquete Nº 10 en LAT 132 kV Tucumán Norte – Tucumán Oeste.
C21: 156 | D21: 2733 | E21: 291793 | F21: TRANSNOA | G21: VINCULADO Y SIN TENSION : Rotura de cadena de aisladores en Piquete Nº 10 en LAT 132 kV Tucumán Norte – Tucumán Oeste.
C22: 157 | D22: 2735 | E22: 291794 | F22: TRANSNOA | G22: VINCULADO Y SIN TENSION : Rotura de cadena de aisladores en Piquete Nº 10 en LAT 132 kV Tucumán Norte – Tucumán Oeste.
C23: 158 | D23: 2744 | E23: 291796 | F23: TRANSNOA | G23: VINCULADO Y SIN TENSION : Rotura de cadena de aisladores en Piquete Nº 10 en LAT 132 kV Tucumán Norte – Tucumán Oeste.
C24: 159 | D24: 5298 | E24: 291797 | F24: TRANSNOA | G24: VINCULADO Y SIN TENSION : Rotura de cadena de aisladores en Piquete Nº 10 en LAT 132 kV Tucumán Norte – Tucumán Oeste.
C25: 160 | D25: 1844 | E25: 291798 | F25: TRANSNOA | G25: VINCULADO Y SIN TENSION : Rotura de cadena de aisladores en Piquete Nº 10 en LAT 132 kV Tucumán Norte – Tucumán Oeste.
C26: 161 | D26: 3835 | E26: 291799 | F26: TRANSNOA | G26: VINCULADO Y SIN TENSION : Rotura de cadena de aisladores en Piquete Nº 10 en LAT 132 kV Tucumán Norte – Tucumán Oeste.
C27: 162 | D27: 4274 | E27: 291800 | F27: TRANSNOA | G27: VINCULADO Y SIN TENSION : Rotura de cadena de aisladores en Piquete Nº 10 en LAT 132 kV Tucumán Norte – Tucumán Oeste.
C28: 163 | D28: 4962 | E28: 291801 | F28: TRANSNOA | G28: VINCULADO Y SIN TENSION : Rotura de cadena de aisladores en Piquete Nº 10 en LAT 132 kV Tucumán Norte – Tucumán Oeste.
C29: 164 | D29: 2745 | E29: 291802 | F29: TRANSNOA | G29: VINCULADO Y SIN TENSION : Rotura de cadena de aisladores en Piquete Nº 10 en LAT 132 kV Tucumán Norte – Tucumán Oeste.
C30: 165 | D30: 2743 | E30: 291803 | F30: TRANSNOA | G30: VINCULADO Y SIN TENSION : Rotura de cadena de aisladores en Piquete Nº 10 en LAT 132 kV Tucumán Norte – Tucumán Oeste.
C31: 166 | D31: 2732 | E31: 291804 | F31: TRANSNOA | G31: VINCULADO Y SIN TENSION : Rotura de cadena de aisladores en Piquete Nº 10 en LAT 132 kV Tucumán Norte – Tucumán Oeste.
C32: 167 | D32: 2734 | E32: 291805 | F32: TRANSNOA | G32: VINCULADO Y SIN TENSION : Rotura de cadena de aisladores en Piquete Nº 10 en LAT 132 kV Tucumán Norte – Tucumán Oeste.
C33: 168 | D33: 4987 | E33: 291806 | F33: TRANSNOA | G33: VINCULADO Y SIN TENSION : Rotura de cadena de aisladores en Piquete Nº 10 en LAT 132 kV Tucumán Norte – Tucumán Oeste.
C34: 169 | D34: 4850 | E34: 291807 | F34: TRANSNOA | G34: VINCULADO Y SIN TENSION : Rotura de cadena de aisladores en Piquete Nº 10 en LAT 132 kV Tucumán Norte – Tucumán Oeste.
C35: 170 | D35: 4857 | E35: 291808 | F35: TRANSNOA | G35: VINCULADO Y SIN TENSION : Rotura de cadena de aisladores en Piquete Nº 10 en LAT 132 kV Tucumán Norte – Tucumán Oeste.
C36: 171 | D36: 5265 | E36: 291809 | F36: TRANSNOA | G36: VINCULADO Y SIN TENSION : Rotura de cadena de aisladores en Piquete Nº 10 en LAT 132 kV Tucumán Norte – Tucumán Oeste.
C37: 172 | D37: 5297 | E37: 291810 | F37: TRANSNOA | G37: VINCULADO Y SIN TENSION : Rotura de cadena de aisladores en Piquete Nº 10 en LAT 132 kV Tucumán Norte – Tucumán Oeste.
C38: 173 | D38: 2731 | E38: 291811 | F38: TRANSNOA | G38: VINCULADO Y SIN TENSION : Rotura de cadena de aisladores en Piquete Nº 10 en LAT 132 kV Tucumán Norte – Tucumán Oeste.
C39: 174 | D39: 2742 | E39: 291812 | F39: TRANSNOA | G39: VINCULADO Y SIN TENSION : Rotura de cadena de aisladores en Piquete Nº 10 en LAT 132 kV Tucumán Norte – Tucumán Oeste.
C40: 175 | D40: 5266 | E40: 291813 | F40: TRANSNOA | G40: VINCULADO Y SIN TENSION : Rotura de cadena de aisladores en Piquete Nº 10 en LAT 132 kV Tucumán Norte – Tucumán Oeste.
C41: 176 | D41: 3685 | E41: 291815 | F41: TRANSNOA | G41: VINCULADO Y SIN TENSION : Palomas que tomaron contacto con aisladores pasatapas de 33 KV del TRP Nº1
C42: 177 | D42: 3574 | E42: 291816 | F42: TRANSNOA | G42: VINCULADO Y SIN TENSION : Palomas que tomaron contacto con aisladores pasatapas de 33 KV del TRP Nº1

Sheet Tasa de Falla
B2: ='TOT-0815'!B2 -> ANEXO V al Memorandum D.T.E.E. N° 526 / 2016
A3: ENTE NACIONAL REGULADOR
A4: DE LA ELECTRICIDAD
B6: SISTEMA DE TRANSPORTE DE ENERGÍA ELÉCTRICA POR DISTRIBUCIÓN TRONCAL
B8: TRANSNOA S.A.
B10: INDISPONIBILIDADES FORZADAS DE LÍNEAS - TASA DE FALLA
B13: y | D13: Correspondiente al mes agosto de 2015
C15: N° | D15: LÍNEAS | E15: U [kV] | F15: Long. [km] | G15: 2014-08-01 | H15: 2014-09-01 | I15: 2014-10-01 | J15: 2014-11-01 | K15: 2014-12-01 | L15: 2015-01-01 | M15: 2015-02-01 | N15: 2015-03-01 | O15: 2015-04-01 | P15: 2015-05-01 | Q15: 2015-06-01 | R15: 2015-07-01 | S15: 2015-08-01
C17: ='[1]Tasa de Falla'!C17 -> 1 | D17: ='[1]Tasa de Falla'!D17 -> AGUA BLANCA - VILLA QUINTEROS | E17: ='[1]Tasa de Falla'!E17 -> 132 | F17: ='[1]Tasa de Falla'!F17 -> 23.8 | G17: =IF('[1]Tasa de Falla'!IO17=0,"",'[1]Tasa de Falla'!IO17) ->  | H17: =IF('[1]Tasa de Falla'!IP17=0,"",'[1]Tasa de Falla'!IP17) ->  | I17: =IF('[1]Tasa de Falla'!IQ17=0,"",'[1]Tasa de Falla'!IQ17) ->  | J17: =IF('[1]Tasa de Falla'!IR17=0,"",'[1]Tasa de Falla'!IR17) ->  | K17: =IF('[1]Tasa de Falla'!IS17=0,"",'[1]Tasa de Falla'!IS17) ->  | L17: =IF('[1]Tasa de Falla'!IT17=0,"",'[1]Tasa de Falla'!IT17) ->  | M17: =IF('[1]Tasa de Falla'!IU17=0,"",'[1]Tasa de Falla'!IU17) ->  | N17: =IF('[1]Tasa de Falla'!IV17=0,"",'[1]Tasa de Falla'!IV17) ->  | O17: =IF('[1]Tasa de Falla'!IW17=0,"",'[1]Tasa de Falla'!IW17) ->  | P17: =IF('[1]Tasa de Falla'!IX17=0,"",'[1]Tasa de Falla'!IX17) ->  | Q17: =IF('[1]Tasa de Falla'!IY17=0,"",'[1]Tasa de Falla'!IY17) ->  | R17: =IF('[1]Tasa de Falla'!IZ17=0,"",'[1]Tasa de Falla'!IZ17) -> 
C18: ='[1]Tasa de Falla'!C18 -> 2 | D18: ='[1]Tasa de Falla'!D18 -> AGUILARES - ESCABA | E18: ='[1]Tasa de Falla'!E18 -> 132 | F18: ='[1]Tasa de Falla'!F18 -> 27 | G18: =IF('[1]Tasa de Falla'!IO18=0,"",'[1]Tasa de Falla'!IO18) ->  | H18: =IF('[1]Tasa de Falla'!IP18=0,"",'[1]Tasa de Falla'!IP18) -> 1 | I18: =IF('[1]Tasa de Falla'!IQ18=0,"",'[1]Tasa de Falla'!IQ18) ->  | J18: =IF('[1]Tasa de Falla'!IR18=0,"",'[1]Tasa de Falla'!IR18) ->  | K18: =IF('[1]Tasa de Falla'!IS18=0,"",'[1]Tasa de Falla'!IS18) ->  | L18: =IF('[1]Tasa de Falla'!IT18=0,"",'[1]Tasa de Falla'!IT18) ->  | M18: =IF('[1]Tasa de Falla'!IU18=0,"",'[1]Tasa de Falla'!IU18) ->  | N18: =IF('[1]Tasa de Falla'!IV18=0,"",'[1]Tasa de Falla'!IV18) ->  | O18: =IF('[1]Tasa de Falla'!IW18=0,"",'[1]Tasa de Falla'!IW18) ->  | P18: =IF('[1]Tasa de Falla'!IX18=0,"",'[1]Tasa de Falla'!IX18) ->  | Q18: =IF('[1]Tasa de Falla'!IY18=0,"",'[1]Tasa de Falla'!IY18) ->  | R18: =IF('[1]Tasa de Falla'!IZ18=0,"",'[1]Tasa de Falla'!IZ18) -> 
C19: ='[1]Tasa de Falla'!C19 -> 3 | D19: ='[1]Tasa de Falla'!D19 -> CABRA CORRAL - SALTA SUR | E19: ='[1]Tasa de Falla'!E19 -> 132 | F19: ='[1]Tasa de Falla'!F19 -> 62 | G19: =IF('[1]Tasa de Falla'!IO19=0,"",'[1]Tasa de Falla'!IO19) -> XXXX | H19: =IF('[1]Tasa de Falla'!IP19=0,"",'[1]Tasa de Falla'!IP19) -> XXXX | I19: =IF('[1]Tasa de Falla'!IQ19=0,"",'[1]Tasa de Falla'!IQ19) -> XXXX | J19: =IF('[1]Tasa de Falla'!IR19=0,"",'[1]Tasa de Falla'!IR19) -> XXXX | K19: =IF('[1]Tasa de Falla'!IS19=0,"",'[1]Tasa de Falla'!IS19) -> XXXX | L19: =IF('[1]Tasa de Falla'!IT19=0,"",'[1]Tasa de Falla'!IT19) -> XXXX | M19: =IF('[1]Tasa de Falla'!IU19=0,"",'[1]Tasa de Falla'!IU19) -> XXXX | N19: =IF('[1]Tasa de Falla'!IV19=0,"",'[1]Tasa de Falla'!IV19) -> XXXX | O19: =IF('[1]Tasa de Falla'!IW19=0,"",'[1]Tasa de Falla'!IW19) -> XXXX | P19: =IF('[1]Tasa de Falla'!IX19=0,"",'[1]Tasa de Falla'!IX19) -> XXXX | Q19: =IF('[1]Tasa de Falla'!IY19=0,"",'[1]Tasa de Falla'!IY19) -> XXXX | R19: =IF('[1]Tasa de Falla'!IZ19=0,"",'[1]Tasa de Falla'!IZ19) -> XXXX
C20: ='[1]Tasa de Falla'!C20 -> 4 | D20: ='[1]Tasa de Falla'!D20 -> CEVIL POZO - TUCUMAN NORTE | E20: ='[1]Tasa de Falla'!E20 -> 132 | F20: ='[1]Tasa de Falla'!F20 -> 14.5 | G20: =IF('[1]Tasa de Falla'!IO20=0,"",'[1]Tasa de Falla'!IO20) ->  | H20: =IF('[1]Tasa de Falla'!IP20=0,"",'[1]Tasa de Falla'!IP20) ->  | I20: =IF('[1]Tasa de Falla'!IQ20=0,"",'[1]Tasa de Falla'!IQ20) ->  | J20: =IF('[1]Tasa de Falla'!IR20=0,"",'[1]Tasa de Falla'!IR20) ->  | K20: =IF('[1]Tasa de Falla'!IS20=0,"",'[1]Tasa de Falla'!IS20) ->  | L20: =IF('[1]Tasa de Falla'!IT20=0,"",'[1]Tasa de Falla'!IT20) ->  | M20: =IF('[1]Tasa de Falla'!IU20=0,"",'[1]Tasa de Falla'!IU20) ->  | N20: =IF('[1]Tasa de Falla'!IV20=0,"",'[1]Tasa de Falla'!IV20) ->  | O20: =IF('[1]Tasa de Falla'!IW20=0,"",'[1]Tasa de Falla'!IW20) ->  | P20: =IF('[1]Tasa de Falla'!IX20=0,"",'[1]Tasa de Falla'!IX20) ->  | Q20: =IF('[1]Tasa de Falla'!IY20=0,"",'[1]Tasa de Falla'!IY20) ->  | R20: =IF('[1]Tasa de Falla'!IZ20=0,"",'[1]Tasa de Falla'!IZ20) -> 
C21: ='[1]Tasa de Falla'!C21 -> 5 | D21: ='[1]Tasa de Falla'!D21 -> CAMPO SANTO - MINETTI | E21: ='[1]Tasa de Falla'!E21 -> 132 | F21: ='[1]Tasa de Falla'!F21 -> 29.9 | G21: =IF('[1]Tasa de Falla'!IO21=0,"",'[1]Tasa de Falla'!IO21) -> XXXX | H21: =IF('[1]Tasa de Falla'!IP21=0,"",'[1]Tasa de Falla'!IP21) -> XXXX | I21: =IF('[1]Tasa de Falla'!IQ21=0,"",'[1]Tasa de Falla'!IQ21) -> XXXX | J21: =IF('[1]Tasa de Falla'!IR21=0,"",'[1]Tasa de Falla'!IR21) -> XXXX | K21: =IF('[1]Tasa de Falla'!IS21=0,"",'[1]Tasa de Falla'!IS21) -> XXXX | L21: =IF('[1]Tasa de Falla'!IT21=0,"",'[1]Tasa de Falla'!IT21) -> XXXX | M21: =IF('[1]Tasa de Falla'!IU21=0,"",'[1]Tasa de Falla'!IU21) -> XXXX | N21: =IF('[1]Tasa de Falla'!IV21=0,"",'[1]Tasa de Falla'!IV21) -> XXXX | O21: =IF('[1]Tasa de Falla'!IW21=0,"",'[1]Tasa de Falla'!IW21) -> XXXX | P21: =IF('[1]Tasa de Falla'!IX21=0,"",'[1]Tasa de Falla'!IX21) -> XXXX | Q21: =IF('[1]Tasa de Falla'!IY21=0,"",'[1]Tasa de Falla'!IY21) -> XXXX | R21: =IF('[1]Tasa de Falla'!IZ21=0,"",'[1]Tasa de Falla'!IZ21) -> XXXX
C22: ='[1]Tasa de Falla'!C22 -> 6 | D22: ='[1]Tasa de Falla'!D22 -> ESCABA - HUACRA | E22: ='[1]Tasa de Falla'!E22 -> 132 | F22: ='[1]Tasa de Falla'!F22 -> 49.9 | G22: =IF('[1]Tasa de Falla'!IO22=0,"",'[1]Tasa de Falla'!IO22) -> XXXX | H22: =IF('[1]Tasa de Falla'!IP22=0,"",'[1]Tasa de Falla'!IP22) -> XXXX | I22: =IF('[1]Tasa de Falla'!IQ22=0,"",'[1]Tasa de Falla'!IQ22) -> XXXX | J22: =IF('[1]Tasa de Falla'!IR22=0,"",'[1]Tasa de Falla'!IR22) -> XXXX | K22: =IF('[1]Tasa de Falla'!IS22=0,"",'[1]Tasa de Falla'!IS22) -> XXXX | L22: =IF('[1]Tasa de Falla'!IT22=0,"",'[1]Tasa de Falla'!IT22) -> XXXX | M22: =IF('[1]Tasa de Falla'!IU22=0,"",'[1]Tasa de Falla'!IU22) -> XXXX | N22: =IF('[1]Tasa de Falla'!IV22=0,"",'[1]Tasa de Falla'!IV22) -> XXXX | O22: =IF('[1]Tasa de Falla'!IW22=0,"",'[1]Tasa de Falla'!IW22) -> XXXX | P22: =IF('[1]Tasa de Falla'!IX22=0,"",'[1]Tasa de Falla'!IX22) -> XXXX | Q22: =IF('[1]Tasa de Falla'!IY22=0,"",'[1]Tasa de Falla'!IY22) -> XXXX | R22: =IF('[1]Tasa de Falla'!IZ22=0,"",'[1]Tasa de Falla'!IZ22) -> XXXX
C23: ='[1]Tasa de Falla'!C23 -> 7 | D23: ='[1]Tasa de Falla'!D23 -> ESTATICA SUR - EL BRACHO | E23: ='[1]Tasa de Falla'!E23 -> 132 | F23: ='[1]Tasa de Falla'!F23 -> 19.6 | G23: =IF('[1]Tasa de Falla'!IO23=0,"",'[1]Tasa de Falla'!IO23) ->  | H23: =IF('[1]Tasa de Falla'!IP23=0,"",'[1]Tasa de Falla'!IP23) ->  | I23: =IF('[1]Tasa de Falla'!IQ23=0,"",'[1]Tasa de Falla'!IQ23) ->  | J23: =IF('[1]Tasa de Falla'!IR23=0,"",'[1]Tasa de Falla'!IR23) ->  | K23: =IF('[1]Tasa de Falla'!IS23=0,"",'[1]Tasa de Falla'!IS23) ->  | L23: =IF('[1]Tasa de Falla'!IT23=0,"",'[1]Tasa de Falla'!IT23) ->  | M23: =IF('[1]Tasa de Falla'!IU23=0,"",'[1]Tasa de Falla'!IU23) ->  | N23: =IF('[1]Tasa de Falla'!IV23=0,"",'[1]Tasa de Falla'!IV23) -> XXXX | O23: =IF('[1]Tasa de Falla'!IW23=0,"",'[1]Tasa de Falla'!IW23) -> XXXX | P23: =IF('[1]Tasa de Falla'!IX23=0,"",'[1]Tasa de Falla'!IX23) -> XXXX | Q23: =IF('[1]Tasa de Falla'!IY23=0,"",'[1]Tasa de Falla'!IY23) -> XXXX | R23: =IF('[1]Tasa de Falla'!IZ23=0,"",'[1]Tasa de Falla'!IZ23) -> XXXX
C24: ='[1]Tasa de Falla'!C24 -> 8 | D24: ='[1]Tasa de Falla'!D24 -> ESTATICA SUR - INDEPENDENCIA 1 (O.F.) | E24: ='[1]Tasa de Falla'!E24 -> 132 | F24: ='[1]Tasa de Falla'!F24 -> 2.6 | G24: =IF('[1]Tasa de Falla'!IO24=0,"",'[1]Tasa de Falla'!IO24) ->  | H24: =IF('[1]Tasa de Falla'!IP24=0,"",'[1]Tasa de Falla'!IP24) ->  | I24: =IF('[1]Tasa de Falla'!IQ24=0,"",'[1]Tasa de Falla'!IQ24) ->  | J24: =IF('[1]Tasa de Falla'!IR24=0,"",'[1]Tasa de Falla'!IR24) ->  | K24: =IF('[1]Tasa de Falla'!IS24=0,"",'[1]Tasa de Falla'!IS24) ->  | L24: =IF('[1]Tasa de Falla'!IT24=0,"",'[1]Tasa de Falla'!IT24) ->  | M24: =IF('[1]Tasa de Falla'!IU24=0,"",'[1]Tasa de Falla'!IU24) ->  | N24: =IF('[1]Tasa de Falla'!IV24=0,"",'[1]Tasa de Falla'!IV24) ->  | O24: =IF('[1]Tasa de Falla'!IW24=0,"",'[1]Tasa de Falla'!IW24) ->  | P24: =IF('[1]Tasa de Falla'!IX24=0,"",'[1]Tasa de Falla'!IX24) ->  | Q24: =IF('[1]Tasa de Falla'!IY24=0,"",'[1]Tasa de Falla'!IY24) ->  | R24: =IF('[1]Tasa de Falla'!IZ24=0,"",'[1]Tasa de Falla'!IZ24) -> 1
C25: ='[1]Tasa de Falla'!C25 -> 9 | D25: ='[1]Tasa de Falla'!D25 -> ESTATICA SUR - SARMIENTO "TRANSNOA S.A." | E25: ='[1]Tasa de Falla'!E25 -> 132 | F25: ='[1]Tasa de Falla'!F25 -> 4.4 | G25: =IF('[1]Tasa de Falla'!IO25=0,"",'[1]Tasa de Falla'!IO25) ->  | H25: =IF('[1]Tasa de Falla'!IP25=0,"",'[1]Tasa de Falla'!IP25) ->  | I25: =IF('[1]Tasa de Falla'!IQ25=0,"",'[1]Tasa de Falla'!IQ25) ->  | J25: =IF('[1]Tasa de Falla'!IR25=0,"",'[1]Tasa de Falla'!IR25) ->  | K25: =IF('[1]Tasa de Falla'!IS25=0,"",'[1]Tasa de Falla'!IS25) ->  | L25: =IF('[1]Tasa de Falla'!IT25=0,"",'[1]Tasa de Falla'!IT25) ->  | M25: =IF('[1]Tasa de Falla'!IU25=0,"",'[1]Tasa de Falla'!IU25) ->  | N25: =IF('[1]Tasa de Falla'!IV25=0,"",'[1]Tasa de Falla'!IV25) ->  | O25: =IF('[1]Tasa de Falla'!IW25=0,"",'[1]Tasa de Falla'!IW25) ->  | P25: =IF('[1]Tasa de Falla'!IX25=0,"",'[1]Tasa de Falla'!IX25) ->  | Q25: =IF('[1]Tasa de Falla'!IY25=0,"",'[1]Tasa de Falla'!IY25) ->  | R25: =IF('[1]Tasa de Falla'!IZ25=0,"",'[1]Tasa de Falla'!IZ25) -> 
C26: ='[1]Tasa de Falla'!C26 -> 10 | D26: ='[1]Tasa de Falla'!D26 -> GÜEMES - EL BRACHO | E26: ='[1]Tasa de Falla'!E26 -> 132 | F26: ='[1]Tasa de Falla'!F26 -> 308 | G26: =IF('[1]Tasa de Falla'!IO26=0,"",'[1]Tasa de Falla'!IO26) -> XXXX | H26: =IF('[1]Tasa de Falla'!IP26=0,"",'[1]Tasa de Falla'!IP26) -> XXXX | I26: =IF('[1]Tasa de Falla'!IQ26=0,"",'[1]Tasa de Falla'!IQ26) -> XXXX | J26: =IF('[1]Tasa de Falla'!IR26=0,"",'[1]Tasa de Falla'!IR26) -> XXXX | K26: =IF('[1]Tasa de Falla'!IS26=0,"",'[1]Tasa de Falla'!IS26) -> XXXX | L26: =IF('[1]Tasa de Falla'!IT26=0,"",'[1]Tasa de Falla'!IT26) -> XXXX | M26: =IF('[1]Tasa de Falla'!IU26=0,"",'[1]Tasa de Falla'!IU26) -> XXXX | N26: =IF('[1]Tasa de Falla'!IV26=0,"",'[1]Tasa de Falla'!IV26) -> XXXX | O26: =IF('[1]Tasa de Falla'!IW26=0,"",'[1]Tasa de Falla'!IW26) -> XXXX | P26: =IF('[1]Tasa de Falla'!IX26=0,"",'[1]Tasa de Falla'!IX26) -> XXXX | Q26: =IF('[1]Tasa de Falla'!IY26=0,"",'[1]Tasa de Falla'!IY26) -> XXXX | R26: =IF('[1]Tasa de Falla'!IZ26=0,"",'[1]Tasa de Falla'!IZ26) -> XXXX
C27: ='[1]Tasa de Falla'!C27 -> 11 | D27: ='[1]Tasa de Falla'!D27 -> CAMPO SANTO - GÜEMES | E27: ='[1]Tasa de Falla'!E27 -> 132 | F27: ='[1]Tasa de Falla'!F27 -> 6.2 | G27: =IF('[1]Tasa de Falla'!IO27=0,"",'[1]Tasa de Falla'!IO27) -> XXXX | H27: =IF('[1]Tasa de Falla'!IP27=0,"",'[1]Tasa de Falla'!IP27) -> XXXX | I27: =IF('[1]Tasa de Falla'!IQ27=0,"",'[1]Tasa de Falla'!IQ27) -> XXXX | J27: =IF('[1]Tasa de Falla'!IR27=0,"",'[1]Tasa de Falla'!IR27) -> XXXX | K27: =IF('[1]Tasa de Falla'!IS27=0,"",'[1]Tasa de Falla'!IS27) -> XXXX | L27: =IF('[1]Tasa de Falla'!IT27=0,"",'[1]Tasa de Falla'!IT27) -> XXXX | M27: =IF('[1]Tasa de Falla'!IU27=0,"",'[1]Tasa de Falla'!IU27) -> XXXX | N27: =IF('[1]Tasa de Falla'!IV27=0,"",'[1]Tasa de Falla'!IV27) -> XXXX | O27: =IF('[1]Tasa de Falla'!IW27=0,"",'[1]Tasa de Falla'!IW27) -> XXXX | P27: =IF('[1]Tasa de Falla'!IX27=0,"",'[1]Tasa de Falla'!IX27) -> XXXX | Q27: =IF('[1]Tasa de Falla'!IY27=0,"",'[1]Tasa de Falla'!IY27) -> XXXX | R27: =IF('[1]Tasa de Falla'!IZ27=0,"",'[1]Tasa de Falla'!IZ27) -> XXXX
C28: ='[1]Tasa de Falla'!C28 -> 12 | D28: ='[1]Tasa de Falla'!D28 -> GÜEMES - SAN JUANCITO | E28: ='[1]Tasa de Falla'!E28 -> 132 | F28: ='[1]Tasa de Falla'!F28 -> 36.24 | G28: =IF('[1]Tasa de Falla'!IO28=0,"",'[1]Tasa de Falla'!IO28) ->  | H28: =IF('[1]Tasa de Falla'!IP28=0,"",'[1]Tasa de Falla'!IP28) ->  | I28: =IF('[1]Tasa de Falla'!IQ28=0,"",'[1]Tasa de Falla'!IQ28) ->  | J28: =IF('[1]Tasa de Falla'!IR28=0,"",'[1]Tasa de Falla'!IR28) ->  | K28: =IF('[1]Tasa de Falla'!IS28=0,"",'[1]Tasa de Falla'!IS28) ->  | L28: =IF('[1]Tasa de Falla'!IT28=0,"",'[1]Tasa de Falla'!IT28) ->  | M28: =IF('[1]Tasa de Falla'!IU28=0,"",'[1]Tasa de Falla'!IU28) ->  | N28: =IF('[1]Tasa de Falla'!IV28=0,"",'[1]Tasa de Falla'!IV28) ->  | O28: =IF('[1]Tasa de Falla'!IW28=0,"",'[1]Tasa de Falla'!IW28) -> 3 | P28: =IF('[1]Tasa de Falla'!IX28=0,"",'[1]Tasa de Falla'!IX28) -> 1 | Q28: =IF('[1]Tasa de Falla'!IY28=0,"",'[1]Tasa de Falla'!IY28) ->  | R28: =IF('[1]Tasa de Falla'!IZ28=0,"",'[1]Tasa de Falla'!IZ28) -> 
C29: ='[1]Tasa de Falla'!C29 -> 13 | D29: ='[1]Tasa de Falla'!D29 -> CATAMARCA - HUACRA | E29: ='[1]Tasa de Falla'!E29 -> 132 | F29: ='[1]Tasa de Falla'!F29 -> 67.3 | G29: =IF('[1]Tasa de Falla'!IO29=0,"",'[1]Tasa de Falla'!IO29) ->  | H29: =IF('[1]Tasa de Falla'!IP29=0,"",'[1]Tasa de Falla'!IP29) ->  | I29: =IF('[1]Tasa de Falla'!IQ29=0,"",'[1]Tasa de Falla'!IQ29) ->  | J29: =IF('[1]Tasa de Falla'!IR29=0,"",'[1]Tasa de Falla'!IR29) ->  | K29: =IF('[1]Tasa de Falla'!IS29=0,"",'[1]Tasa de Falla'!IS29) ->  | L29: =IF('[1]Tasa de Falla'!IT29=0,"",'[1]Tasa de Falla'!IT29) ->  | M29: =IF('[1]Tasa de Falla'!IU29=0,"",'[1]Tasa de Falla'!IU29) ->  | N29: =IF('[1]Tasa de Falla'!IV29=0,"",'[1]Tasa de Falla'!IV29) ->  | O29: =IF('[1]Tasa de Falla'!IW29=0,"",'[1]Tasa de Falla'!IW29) -> 1 | P29: =IF('[1]Tasa de Falla'!IX29=0,"",'[1]Tasa de Falla'!IX29) ->  | Q29: =IF('[1]Tasa de Falla'!IY29=0,"",'[1]Tasa de Falla'!IY29) ->  | R29: =IF('[1]Tasa de Falla'!IZ29=0,"",'[1]Tasa de Falla'!IZ29) -> 
C30: ='[1]Tasa de Falla'!C30 -> 14 | D30: ='[1]Tasa de Falla'!D30 -> HUACRA - LA CALERA | E30: ='[1]Tasa de Falla'!E30 -> 132 | F30: ='[1]Tasa de Falla'!F30 -> 91.2 | G30: =IF('[1]Tasa de Falla'!IO30=0,"",'[1]Tasa de Falla'!IO30) ->  | H30: =IF('[1]Tasa de Falla'!IP30=0,"",'[1]Tasa de Falla'!IP30) ->  | I30: =IF('[1]Tasa de Falla'!IQ30=0,"",'[1]Tasa de Falla'!IQ30) ->  | J30: =IF('[1]Tasa de Falla'!IR30=0,"",'[1]Tasa de Falla'!IR30) ->  | K30: =IF('[1]Tasa de Falla'!IS30=0,"",'[1]Tasa de Falla'!IS30) ->  | L30: =IF('[1]Tasa de Falla'!IT30=0,"",'[1]Tasa de Falla'!IT30) ->  | M30: =IF('[1]Tasa de Falla'!IU30=0,"",'[1]Tasa de Falla'!IU30) ->  | N30: =IF('[1]Tasa de Falla'!IV30=0,"",'[1]Tasa de Falla'!IV30) ->  | O30: =IF('[1]Tasa de Falla'!IW30=0,"",'[1]Tasa de Falla'!IW30) ->  | P30: =IF('[1]Tasa de Falla'!IX30=0,"",'[1]Tasa de Falla'!IX30) -> 1 | Q30: =IF('[1]Tasa de Falla'!IY30=0,"",'[1]Tasa de Falla'!IY30) ->  | R30: =IF('[1]Tasa de Falla'!IZ30=0,"",'[1]Tasa de Falla'!IZ30) -> 
C31: ='[1]Tasa de Falla'!C31 -> 15 | D31: ='[1]Tasa de Falla'!D31 -> AGUA BLANCA - INDEPENDENCIA | E31: ='[1]Tasa de Falla'!E31 -> 132 | F31: ='[1]Tasa de Falla'!F31 -> 34.14 | G31: =IF('[1]Tasa de Falla'!IO31=0,"",'[1]Tasa de Falla'!IO31) ->  | H31: =IF('[1]Tasa de Falla'!IP31=0,"",'[1]Tasa de Falla'!IP31) ->  | I31: =IF('[1]Tasa de Falla'!IQ31=0,"",'[1]Tasa de Falla'!IQ31) -> 1 | J31: =IF('[1]Tasa de Falla'!IR31=0,"",'[1]Tasa de Falla'!IR31) ->  | K31: =IF('[1]Tasa de Falla'!IS31=0,"",'[1]Tasa de Falla'!IS31) ->  | L31: =IF('[1]Tasa de Falla'!IT31=0,"",'[1]Tasa de Falla'!IT31) -> 1 | M31: =IF('[1]Tasa de Falla'!IU31=0,"",'[1]Tasa de Falla'!IU31) ->  | N31: =IF('[1]Tasa de Falla'!IV31=0,"",'[1]Tasa de Falla'!IV31) ->  | O31: =IF('[1]Tasa de Falla'!IW31=0,"",'[1]Tasa de Falla'!IW31) ->  | P31: =IF('[1]Tasa de Falla'!IX31=0,"",'[1]Tasa de Falla'!IX31) ->  | Q31: =IF('[1]Tasa de Falla'!IY31=0,"",'[1]Tasa de Falla'!IY31) ->  | R31: =IF('[1]Tasa de Falla'!IZ31=0,"",'[1]Tasa de Falla'!IZ31) -> 
C32: ='[1]Tasa de Falla'!C32 -> 16 | D32: ='[1]Tasa de Falla'!D32 -> INDEPENDENCIA - EL BRACHO 1 | E32: ='[1]Tasa de Falla'!E32 -> 132 | F32: ='[1]Tasa de Falla'!F32 -> 17.1 | G32: =IF('[1]Tasa de Falla'!IO32=0,"",'[1]Tasa de Falla'!IO32) ->  | H32: =IF('[1]Tasa de Falla'!IP32=0,"",'[1]Tasa de Falla'!IP32) ->  | I32: =IF('[1]Tasa de Falla'!IQ32=0,"",'[1]Tasa de Falla'!IQ32) ->  | J32: =IF('[1]Tasa de Falla'!IR32=0,"",'[1]Tasa de Falla'!IR32) ->  | K32: =IF('[1]Tasa de Falla'!IS32=0,"",'[1]Tasa de Falla'!IS32) ->  | L32: =IF('[1]Tasa de Falla'!IT32=0,"",'[1]Tasa de Falla'!IT32) -> 1 | M32: =IF('[1]Tasa de Falla'!IU32=0,"",'[1]Tasa de Falla'!IU32) ->  | N32: =IF('[1]Tasa de Falla'!IV32=0,"",'[1]Tasa de Falla'!IV32) ->  | O32: =IF('[1]Tasa de Falla'!IW32=0,"",'[1]Tasa de Falla'!IW32) ->  | P32: =IF('[1]Tasa de Falla'!IX32=0,"",'[1]Tasa de Falla'!IX32) ->  | Q32: =IF('[1]Tasa de Falla'!IY32=0,"",'[1]Tasa de Falla'!IY32) ->  | R32: =IF('[1]Tasa de Falla'!IZ32=0,"",'[1]Tasa de Falla'!IZ32) -> 
C33: ='[1]Tasa de Falla'!C33 -> 17 | D33: ='[1]Tasa de Falla'!D33 -> INDEPENDENCIA - LULES - PAPEL TUCUMAN | E33: ='[1]Tasa de Falla'!E33 -> 132 | F33: ='[1]Tasa de Falla'!F33 -> 19.3 | G33: =IF('[1]Tasa de Falla'!IO33=0,"",'[1]Tasa de Falla'!IO33) ->  | H33: =IF('[1]Tasa de Falla'!IP33=0,"",'[1]Tasa de Falla'!IP33) ->  | I33: =IF('[1]Tasa de Falla'!IQ33=0,"",'[1]Tasa de Falla'!IQ33) ->  | J33: =IF('[1]Tasa de Falla'!IR33=0,"",'[1]Tasa de Falla'!IR33) ->  | K33: =IF('[1]Tasa de Falla'!IS33=0,"",'[1]Tasa de Falla'!IS33) ->  | L33: =IF('[1]Tasa de Falla'!IT33=0,"",'[1]Tasa de Falla'!IT33) ->  | M33: =IF('[1]Tasa de Falla'!IU33=0,"",'[1]Tasa de Falla'!IU33) ->  | N33: =IF('[1]Tasa de Falla'!IV33=0,"",'[1]Tasa de Falla'!IV33) ->  | O33: =IF('[1]Tasa de Falla'!IW33=0,"",'[1]Tasa de Falla'!IW33) ->  | P33: =IF('[1]Tasa de Falla'!IX33=0,"",'[1]Tasa de Falla'!IX33) ->  | Q33: =IF('[1]Tasa de Falla'!IY33=0,"",'[1]Tasa de Falla'!IY33) ->  | R33: =IF('[1]Tasa de Falla'!IZ33=0,"",'[1]Tasa de Falla'!IZ33) -> 
C34: ='[1]Tasa de Falla'!C34 -> 18 | D34: ='[1]Tasa de Falla'!D34 -> FRIAS - LA CALERA NOA. | E34: ='[1]Tasa de Falla'!E34 -> 132 | F34: ='[1]Tasa de Falla'!F34 -> 27.3 | G34: =IF('[1]Tasa de Falla'!IO34=0,"",'[1]Tasa de Falla'!IO34) ->  | H34: =IF('[1]Tasa de Falla'!IP34=0,"",'[1]Tasa de Falla'!IP34) ->  | I34: =IF('[1]Tasa de Falla'!IQ34=0,"",'[1]Tasa de Falla'!IQ34) ->  | J34: =IF('[1]Tasa de Falla'!IR34=0,"",'[1]Tasa de Falla'!IR34) ->  | K34: =IF('[1]Tasa de Falla'!IS34=0,"",'[1]Tasa de Falla'!IS34) -> 1 | L34: =IF('[1]Tasa de Falla'!IT34=0,"",'[1]Tasa de Falla'!IT34) ->  | M34: =IF('[1]Tasa de Falla'!IU34=0,"",'[1]Tasa de Falla'!IU34) ->  | N34: =IF('[1]Tasa de Falla'!IV34=0,"",'[1]Tasa de Falla'!IV34) ->  | O34: =IF('[1]Tasa de Falla'!IW34=0,"",'[1]Tasa de Falla'!IW34) ->  | P34: =IF('[1]Tasa de Falla'!IX34=0,"",'[1]Tasa de Falla'!IX34) ->  | Q34: =IF('[1]Tasa de Falla'!IY34=0,"",'[1]Tasa de Falla'!IY34) ->  | R34: =IF('[1]Tasa de Falla'!IZ34=0,"",'[1]Tasa de Falla'!IZ34) -> 
C35: ='[1]Tasa de Falla'!C35 -> 19 | D35: ='[1]Tasa de Falla'!D35 -> LA BANDA - SANTIAGO CENTRO | E35: ='[1]Tasa de Falla'!E35 -> 132 | F35: ='[1]Tasa de Falla'!F35 -> 10.91 | G35: =IF('[1]Tasa de Falla'!IO35=0,"",'[1]Tasa de Falla'!IO35) ->  | H35: =IF('[1]Tasa de Falla'!IP35=0,"",'[1]Tasa de Falla'!IP35) ->  | I35: =IF('[1]Tasa de Falla'!IQ35=0,"",'[1]Tasa de Falla'!IQ35) ->  | J35: =IF('[1]Tasa de Falla'!IR35=0,"",'[1]Tasa de Falla'!IR35) ->  | K35: =IF('[1]Tasa de Falla'!IS35=0,"",'[1]Tasa de Falla'!IS35) ->  | L35: =IF('[1]Tasa de Falla'!IT35=0,"",'[1]Tasa de Falla'!IT35) ->  | M35: =IF('[1]Tasa de Falla'!IU35=0,"",'[1]Tasa de Falla'!IU35) ->  | N35: =IF('[1]Tasa de Falla'!IV35=0,"",'[1]Tasa de Falla'!IV35) -> 1 | O35: =IF('[1]Tasa de Falla'!IW35=0,"",'[1]Tasa de Falla'!IW35) ->  | P35: =IF('[1]Tasa de Falla'!IX35=0,"",'[1]Tasa de Falla'!IX35) ->  | Q35: =IF('[1]Tasa de Falla'!IY35=0,"",'[1]Tasa de Falla'!IY35) ->  | R35: =IF('[1]Tasa de Falla'!IZ35=0,"",'[1]Tasa de Falla'!IZ35) -> 
C36: ='[1]Tasa de Falla'!C36 -> 20 | D36: ='[1]Tasa de Falla'!D36 -> LIBERTADOR NOA. - PICHANAL | E36: ='[1]Tasa de Falla'!E36 -> 132 | F36: ='[1]Tasa de Falla'!F36 -> 76 | G36: =IF('[1]Tasa de Falla'!IO36=0,"",'[1]Tasa de Falla'!IO36) -> 1 | H36: =IF('[1]Tasa de Falla'!IP36=0,"",'[1]Tasa de Falla'!IP36) ->  | I36: =IF('[1]Tasa de Falla'!IQ36=0,"",'[1]Tasa de Falla'!IQ36) ->  | J36: =IF('[1]Tasa de Falla'!IR36=0,"",'[1]Tasa de Falla'!IR36) -> 2 | K36: =IF('[1]Tasa de Falla'!IS36=0,"",'[1]Tasa de Falla'!IS36) ->  | L36: =IF('[1]Tasa de Falla'!IT36=0,"",'[1]Tasa de Falla'!IT36) -> 1 | M36: =IF('[1]Tasa de Falla'!IU36=0,"",'[1]Tasa de Falla'!IU36) -> 1 | N36: =IF('[1]Tasa de Falla'!IV36=0,"",'[1]Tasa de Falla'!IV36) -> 4 | O36: =IF('[1]Tasa de Falla'!IW36=0,"",'[1]Tasa de Falla'!IW36) ->  | P36: =IF('[1]Tasa de Falla'!IX36=0,"",'[1]Tasa de Falla'!IX36) ->  | Q36: =IF('[1]Tasa de Falla'!IY36=0,"",'[1]Tasa de Falla'!IY36) ->  | R36: =IF('[1]Tasa de Falla'!IZ36=0,"",'[1]Tasa de Falla'!IZ36) -> 
C37: ='[1]Tasa de Falla'!C37 -> 21 | D37: ='[1]Tasa de Falla'!D37 -> GÜEMES - METAN | E37: ='[1]Tasa de Falla'!E37 -> 132 | F37: ='[1]Tasa de Falla'!F37 -> 97.13 | G37: =IF('[1]Tasa de Falla'!IO37=0,"",'[1]Tasa de Falla'!IO37) -> XXXX | H37: =IF('[1]Tasa de Falla'!IP37=0,"",'[1]Tasa de Falla'!IP37) -> XXXX | I37: =IF('[1]Tasa de Falla'!IQ37=0,"",'[1]Tasa de Falla'!IQ37) -> XXXX | J37: =IF('[1]Tasa de Falla'!IR37=0,"",'[1]Tasa de Falla'!IR37) -> XXXX | K37: =IF('[1]Tasa de Falla'!IS37=0,"",'[1]Tasa de Falla'!IS37) -> XXXX | L37: =IF('[1]Tasa de Falla'!IT37=0,"",'[1]Tasa de Falla'!IT37) -> XXXX | M37: =IF('[1]Tasa de Falla'!IU37=0,"",'[1]Tasa de Falla'!IU37) -> XXXX | N37: =IF('[1]Tasa de Falla'!IV37=0,"",'[1]Tasa de Falla'!IV37) -> XXXX | O37: =IF('[1]Tasa de Falla'!IW37=0,"",'[1]Tasa de Falla'!IW37) -> XXXX | P37: =IF('[1]Tasa de Falla'!IX37=0,"",'[1]Tasa de Falla'!IX37) -> XXXX | Q37: =IF('[1]Tasa de Falla'!IY37=0,"",'[1]Tasa de Falla'!IY37) -> XXXX | R37: =IF('[1]Tasa de Falla'!IZ37=0,"",'[1]Tasa de Falla'!IZ37) -> XXXX
C38: ='[1]Tasa de Falla'!C38 -> 22 | D38: ='[1]Tasa de Falla'!D38 -> MINETTI - SAN JUANCITO | E38: ='[1]Tasa de Falla'!E38 -> 132 | F38: ='[1]Tasa de Falla'!F38 -> 26 | G38: =IF('[1]Tasa de Falla'!IO38=0,"",'[1]Tasa de Falla'!IO38) ->  | H38: =IF('[1]Tasa de Falla'!IP38=0,"",'[1]Tasa de Falla'!IP38) ->  | I38: =IF('[1]Tasa de Falla'!IQ38=0,"",'[1]Tasa de Falla'!IQ38) ->  | J38: =IF('[1]Tasa de Falla'!IR38=0,"",'[1]Tasa de Falla'!IR38) ->  | K38: =IF('[1]Tasa de Falla'!IS38=0,"",'[1]Tasa de Falla'!IS38) ->  | L38: =IF('[1]Tasa de Falla'!IT38=0,"",'[1]Tasa de Falla'!IT38) ->  | M38: =IF('[1]Tasa de Falla'!IU38=0,"",'[1]Tasa de Falla'!IU38) ->  | N38: =IF('[1]Tasa de Falla'!IV38=0,"",'[1]Tasa de Falla'!IV38) ->  | O38: =IF('[1]Tasa de Falla'!IW38=0,"",'[1]Tasa de Falla'!IW38) ->  | P38: =IF('[1]Tasa de Falla'!IX38=0,"",'[1]Tasa de Falla'!IX38) -> 2 | Q38: =IF('[1]Tasa de Falla'!IY38=0,"",'[1]Tasa de Falla'!IY38) ->  | R38: =IF('[1]Tasa de Falla'!IZ38=0,"",'[1]Tasa de Falla'!IZ38) -> 
C39: ='[1]Tasa de Falla'!C39 -> 23 | D39: ='[1]Tasa de Falla'!D39 -> PALPALA - JUJUY SUR | E39: ='[1]Tasa de Falla'!E39 -> 132 | F39: ='[1]Tasa de Falla'!F39 -> 14 | G39: =IF('[1]Tasa de Falla'!IO39=0,"",'[1]Tasa de Falla'!IO39) -> XXXX | H39: =IF('[1]Tasa de Falla'!IP39=0,"",'[1]Tasa de Falla'!IP39) -> XXXX | I39: =IF('[1]Tasa de Falla'!IQ39=0,"",'[1]Tasa de Falla'!IQ39) -> XXXX | J39: =IF('[1]Tasa de Falla'!IR39=0,"",'[1]Tasa de Falla'!IR39) -> XXXX | K39: =IF('[1]Tasa de Falla'!IS39=0,"",'[1]Tasa de Falla'!IS39) -> XXXX | L39: =IF('[1]Tasa de Falla'!IT39=0,"",'[1]Tasa de Falla'!IT39) -> XXXX | M39: =IF('[1]Tasa de Falla'!IU39=0,"",'[1]Tasa de Falla'!IU39) -> XXXX | N39: =IF('[1]Tasa de Falla'!IV39=0,"",'[1]Tasa de Falla'!IV39) -> XXXX | O39: =IF('[1]Tasa de Falla'!IW39=0,"",'[1]Tasa de Falla'!IW39) -> XXXX | P39: =IF('[1]Tasa de Falla'!IX39=0,"",'[1]Tasa de Falla'!IX39) -> XXXX | Q39: =IF('[1]Tasa de Falla'!IY39=0,"",'[1]Tasa de Falla'!IY39) -> XXXX | R39: =IF('[1]Tasa de Falla'!IZ39=0,"",'[1]Tasa de Falla'!IZ39) -> XXXX
C40: ='[1]Tasa de Falla'!C40 -> 24 | D40: ='[1]Tasa de Falla'!D40 -> ORAN - PICHANAL | E40: ='[1]Tasa de Falla'!E40 -> 132 | F40: ='[1]Tasa de Falla'!F40 -> 17 | G40: =IF('[1]Tasa de Falla'!IO40=0,"",'[1]Tasa de Falla'!IO40) -> XXXX | H40: =IF('[1]Tasa de Falla'!IP40=0,"",'[1]Tasa de Falla'!IP40) -> XXXX | I40: =IF('[1]Tasa de Falla'!IQ40=0,"",'[1]Tasa de Falla'!IQ40) -> XXXX | J40: =IF('[1]Tasa de Falla'!IR40=0,"",'[1]Tasa de Falla'!IR40) -> XXXX | K40: =IF('[1]Tasa de Falla'!IS40=0,"",'[1]Tasa de Falla'!IS40) -> XXXX | L40: =IF('[1]Tasa de Falla'!IT40=0,"",'[1]Tasa de Falla'!IT40) -> XXXX | M40: =IF('[1]Tasa de Falla'!IU40=0,"",'[1]Tasa de Falla'!IU40) -> XXXX | N40: =IF('[1]Tasa de Falla'!IV40=0,"",'[1]Tasa de Falla'!IV40) -> XXXX | O40: =IF('[1]Tasa de Falla'!IW40=0,"",'[1]Tasa de Falla'!IW40) -> XXXX | P40: =IF('[1]Tasa de Falla'!IX40=0,"",'[1]Tasa de Falla'!IX40) -> XXXX | Q40: =IF('[1]Tasa de Falla'!IY40=0,"",'[1]Tasa de Falla'!IY40) -> XXXX | R40: =IF('[1]Tasa de Falla'!IZ40=0,"",'[1]Tasa de Falla'!IZ40) -> XXXX
C41: ='[1]Tasa de Falla'!C41 -> 25 | D41: ='[1]Tasa de Falla'!D41 -> PICHANAL - TARTAGAL | E41: ='[1]Tasa de Falla'!E41 -> 132 | F41: ='[1]Tasa de Falla'!F41 -> 105 | G41: =IF('[1]Tasa de Falla'!IO41=0,"",'[1]Tasa de Falla'!IO41) ->  | H41: =IF('[1]Tasa de Falla'!IP41=0,"",'[1]Tasa de Falla'!IP41) ->  | I41: =IF('[1]Tasa de Falla'!IQ41=0,"",'[1]Tasa de Falla'!IQ41) -> 1 | J41: =IF('[1]Tasa de Falla'!IR41=0,"",'[1]Tasa de Falla'!IR41) -> 1 | K41: =IF('[1]Tasa de Falla'!IS41=0,"",'[1]Tasa de Falla'!IS41) ->  | L41: =IF('[1]Tasa de Falla'!IT41=0,"",'[1]Tasa de Falla'!IT41) ->  | M41: =IF('[1]Tasa de Falla'!IU41=0,"",'[1]Tasa de Falla'!IU41) ->  | N41: =IF('[1]Tasa de Falla'!IV41=0,"",'[1]Tasa de Falla'!IV41) -> XXXX | O41: =IF('[1]Tasa de Falla'!IW41=0,"",'[1]Tasa de Falla'!IW41) -> XXXX | P41: =IF('[1]Tasa de Falla'!IX41=0,"",'[1]Tasa de Falla'!IX41) -> XXXX | Q41: =IF('[1]Tasa de Falla'!IY41=0,"",'[1]Tasa de Falla'!IY41) -> XXXX | R41: =IF('[1]Tasa de Falla'!IZ41=0,"",'[1]Tasa de Falla'!IZ41) -> XXXX
C42: ='[1]Tasa de Falla'!C42 -> 26 | D42: ='[1]Tasa de Falla'!D42 -> C.H. RIO HONDO - LA BANDA | E42: ='[1]Tasa de Falla'!E42 -> 132 | F42: ='[1]Tasa de Falla'!F42 -> 76.5 | G42: =IF('[1]Tasa de Falla'!IO42=0,"",'[1]Tasa de Falla'!IO42) -> 1 | H42: =IF('[1]Tasa de Falla'!IP42=0,"",'[1]Tasa de Falla'!IP42) -> 1 | I42: =IF('[1]Tasa de Falla'!IQ42=0,"",'[1]Tasa de Falla'!IQ42) ->  | J42: =IF('[1]Tasa de Falla'!IR42=0,"",'[1]Tasa de Falla'!IR42) ->  | K42: =IF('[1]Tasa de Falla'!IS42=0,"",'[1]Tasa de Falla'!IS42) ->  | L42: =IF('[1]Tasa de Falla'!IT42=0,"",'[1]Tasa de Falla'!IT42) -> 2 | M42: =IF('[1]Tasa de Falla'!IU42=0,"",'[1]Tasa de Falla'!IU42) ->  | N42: =IF('[1]Tasa de Falla'!IV42=0,"",'[1]Tasa de Falla'!IV42) -> 1 | O42: =IF('[1]Tasa de Falla'!IW42=0,"",'[1]Tasa de Falla'!IW42) ->  | P42: =IF('[1]Tasa de Falla'!IX42=0,"",'[1]Tasa de Falla'!IX42) ->  | Q42: =IF('[1]Tasa de Falla'!IY42=0,"",'[1]Tasa de Falla'!IY42) ->  | R42: =IF('[1]Tasa de Falla'!IZ42=0,"",'[1]Tasa de Falla'!IZ42) -> 
C43: ='[1]Tasa de Falla'!C43 -> 27 | D43: ='[1]Tasa de Falla'!D43 -> LA RIOJA - RECREO 2 | E43: ='[1]Tasa de Falla'!E43 -> 132 | F43: ='[1]Tasa de Falla'!F43 -> 220 | G43: =IF('[1]Tasa de Falla'!IO43=0,"",'[1]Tasa de Falla'!IO43) -> XXXX | H43: =IF('[1]Tasa de Falla'!IP43=0,"",'[1]Tasa de Falla'!IP43) -> XXXX | I43: =IF('[1]Tasa de Falla'!IQ43=0,"",'[1]Tasa de Falla'!IQ43) -> XXXX | J43: =IF('[1]Tasa de Falla'!IR43=0,"",'[1]Tasa de Falla'!IR43) -> XXXX | K43: =IF('[1]Tasa de Falla'!IS43=0,"",'[1]Tasa de Falla'!IS43) -> XXXX | L43: =IF('[1]Tasa de Falla'!IT43=0,"",'[1]Tasa de Falla'!IT43) -> XXXX | M43: =IF('[1]Tasa de Falla'!IU43=0,"",'[1]Tasa de Falla'!IU43) -> XXXX | N43: =IF('[1]Tasa de Falla'!IV43=0,"",'[1]Tasa de Falla'!IV43) -> XXXX | O43: =IF('[1]Tasa de Falla'!IW43=0,"",'[1]Tasa de Falla'!IW43) -> XXXX | P43: =IF('[1]Tasa de Falla'!IX43=0,"",'[1]Tasa de Falla'!IX43) -> XXXX | Q43: =IF('[1]Tasa de Falla'!IY43=0,"",'[1]Tasa de Falla'!IY43) -> XXXX | R43: =IF('[1]Tasa de Falla'!IZ43=0,"",'[1]Tasa de Falla'!IZ43) -> XXXX
C44: ='[1]Tasa de Falla'!C44 -> 28 | D44: ='[1]Tasa de Falla'!D44 -> CAMPO SANTO - SALTA SUR | E44: ='[1]Tasa de Falla'!E44 -> 132 | F44: ='[1]Tasa de Falla'!F44 -> 40.92 | G44: =IF('[1]Tasa de Falla'!IO44=0,"",'[1]Tasa de Falla'!IO44) -> XXXX | H44: =IF('[1]Tasa de Falla'!IP44=0,"",'[1]Tasa de Falla'!IP44) -> XXXX | I44: =IF('[1]Tasa de Falla'!IQ44=0,"",'[1]Tasa de Falla'!IQ44) -> XXXX | J44: =IF('[1]Tasa de Falla'!IR44=0,"",'[1]Tasa de Falla'!IR44) -> XXXX | K44: =IF('[1]Tasa de Falla'!IS44=0,"",'[1]Tasa de Falla'!IS44) -> XXXX | L44: =IF('[1]Tasa de Falla'!IT44=0,"",'[1]Tasa de Falla'!IT44) -> XXXX | M44: =IF('[1]Tasa de Falla'!IU44=0,"",'[1]Tasa de Falla'!IU44) -> XXXX | N44: =IF('[1]Tasa de Falla'!IV44=0,"",'[1]Tasa de Falla'!IV44) -> XXXX | O44: =IF('[1]Tasa de Falla'!IW44=0,"",'[1]Tasa de Falla'!IW44) -> XXXX | P44: =IF('[1]Tasa de Falla'!IX44=0,"",'[1]Tasa de Falla'!IX44) -> XXXX | Q44: =IF('[1]Tasa de Falla'!IY44=0,"",'[1]Tasa de Falla'!IY44) -> XXXX | R44: =IF('[1]Tasa de Falla'!IZ44=0,"",'[1]Tasa de Falla'!IZ44) -> XXXX
C45: ='[1]Tasa de Falla'!C45 -> 29 | D45: ='[1]Tasa de Falla'!D45 -> PALPALA - SAN JUANCITO | E45: ='[1]Tasa de Falla'!E45 -> 132 | F45: ='[1]Tasa de Falla'!F45 -> 23.9 | G45: =IF('[1]Tasa de Falla'!IO45=0,"",'[1]Tasa de Falla'!IO45) ->  | H45: =IF('[1]Tasa de Falla'!IP45=0,"",'[1]Tasa de Falla'!IP45) ->  | I45: =IF('[1]Tasa de Falla'!IQ45=0,"",'[1]Tasa de Falla'!IQ45) ->  | J45: =IF('[1]Tasa de Falla'!IR45=0,"",'[1]Tasa de Falla'!IR45) ->  | K45: =IF('[1]Tasa de Falla'!IS45=0,"",'[1]Tasa de Falla'!IS45) ->  | L45: =IF('[1]Tasa de Falla'!IT45=0,"",'[1]Tasa de Falla'!IT45) -> 2 | M45: =IF('[1]Tasa de Falla'!IU45=0,"",'[1]Tasa de Falla'!IU45) ->  | N45: =IF('[1]Tasa de Falla'!IV45=0,"",'[1]Tasa de Falla'!IV45) ->  | O45: =IF('[1]Tasa de Falla'!IW45=0,"",'[1]Tasa de Falla'!IW45) -> 2 | P45: =IF('[1]Tasa de Falla'!IX45=0,"",'[1]Tasa de Falla'!IX45) -> 2 | Q45: =IF('[1]Tasa de Falla'!IY45=0,"",'[1]Tasa de Falla'!IY45) ->  | R45: =IF('[1]Tasa de Falla'!IZ45=0,"",'[1]Tasa de Falla'!IZ45) -> 
C46: ='[1]Tasa de Falla'!C46 -> 30 | D46: ='[1]Tasa de Falla'!D46 -> SAN JUANCITO - SAN PEDRO JUJUY | E46: ='[1]Tasa de Falla'!E46 -> 132 | F46: ='[1]Tasa de Falla'!F46 -> 27 | G46: =IF('[1]Tasa de Falla'!IO46=0,"",'[1]Tasa de Falla'!IO46) ->  | H46: =IF('[1]Tasa de Falla'!IP46=0,"",'[1]Tasa de Falla'!IP46) ->  | I46: =IF('[1]Tasa de Falla'!IQ46=0,"",'[1]Tasa de Falla'!IQ46) ->  | J46: =IF('[1]Tasa de Falla'!IR46=0,"",'[1]Tasa de Falla'!IR46) ->  | K46: =IF('[1]Tasa de Falla'!IS46=0,"",'[1]Tasa de Falla'!IS46) ->  | L46: =IF('[1]Tasa de Falla'!IT46=0,"",'[1]Tasa de Falla'!IT46) ->  | M46: =IF('[1]Tasa de Falla'!IU46=0,"",'[1]Tasa de Falla'!IU46) ->  | N46: =IF('[1]Tasa de Falla'!IV46=0,"",'[1]Tasa de Falla'!IV46) ->  | O46: =IF('[1]Tasa de Falla'!IW46=0,"",'[1]Tasa de Falla'!IW46) ->  | P46: =IF('[1]Tasa de Falla'!IX46=0,"",'[1]Tasa de Falla'!IX46) ->  | Q46: =IF('[1]Tasa de Falla'!IY46=0,"",'[1]Tasa de Falla'!IY46) ->  | R46: =IF('[1]Tasa de Falla'!IZ46=0,"",'[1]Tasa de Falla'!IZ46) -> 
C47: ='[1]Tasa de Falla'!C47 -> 31 | D47: ='[1]Tasa de Falla'!D47 -> SAN MARTIN - CATAMARCA | E47: ='[1]Tasa de Falla'!E47 -> 132 | F47: ='[1]Tasa de Falla'!F47 -> 88 | G47: =IF('[1]Tasa de Falla'!IO47=0,"",'[1]Tasa de Falla'!IO47) -> XXXX | H47: =IF('[1]Tasa de Falla'!IP47=0,"",'[1]Tasa de Falla'!IP47) -> XXXX | I47: =IF('[1]Tasa de Falla'!IQ47=0,"",'[1]Tasa de Falla'!IQ47) -> XXXX | J47: =IF('[1]Tasa de Falla'!IR47=0,"",'[1]Tasa de Falla'!IR47) -> XXXX | K47: =IF('[1]Tasa de Falla'!IS47=0,"",'[1]Tasa de Falla'!IS47) -> XXXX | L47: =IF('[1]Tasa de Falla'!IT47=0,"",'[1]Tasa de Falla'!IT47) -> XXXX | M47: =IF('[1]Tasa de Falla'!IU47=0,"",'[1]Tasa de Falla'!IU47) -> XXXX | N47: =IF('[1]Tasa de Falla'!IV47=0,"",'[1]Tasa de Falla'!IV47) -> XXXX | O47: =IF('[1]Tasa de Falla'!IW47=0,"",'[1]Tasa de Falla'!IW47) -> XXXX | P47: =IF('[1]Tasa de Falla'!IX47=0,"",'[1]Tasa de Falla'!IX47) -> XXXX | Q47: =IF('[1]Tasa de Falla'!IY47=0,"",'[1]Tasa de Falla'!IY47) -> XXXX | R47: =IF('[1]Tasa de Falla'!IZ47=0,"",'[1]Tasa de Falla'!IZ47) -> XXXX
C48: ='[1]Tasa de Falla'!C48 -> 32 | D48: ='[1]Tasa de Falla'!D48 -> SAN MARTIN - RECREO | E48: ='[1]Tasa de Falla'!E48 -> 132 | F48: ='[1]Tasa de Falla'!F48 -> 115 | G48: =IF('[1]Tasa de Falla'!IO48=0,"",'[1]Tasa de Falla'!IO48) -> XXXX | H48: =IF('[1]Tasa de Falla'!IP48=0,"",'[1]Tasa de Falla'!IP48) -> XXXX | I48: =IF('[1]Tasa de Falla'!IQ48=0,"",'[1]Tasa de Falla'!IQ48) -> XXXX | J48: =IF('[1]Tasa de Falla'!IR48=0,"",'[1]Tasa de Falla'!IR48) -> XXXX | K48: =IF('[1]Tasa de Falla'!IS48=0,"",'[1]Tasa de Falla'!IS48) -> XXXX | L48: =IF('[1]Tasa de Falla'!IT48=0,"",'[1]Tasa de Falla'!IT48) -> XXXX | M48: =IF('[1]Tasa de Falla'!IU48=0,"",'[1]Tasa de Falla'!IU48) -> XXXX | N48: =IF('[1]Tasa de Falla'!IV48=0,"",'[1]Tasa de Falla'!IV48) -> XXXX | O48: =IF('[1]Tasa de Falla'!IW48=0,"",'[1]Tasa de Falla'!IW48) -> XXXX | P48: =IF('[1]Tasa de Falla'!IX48=0,"",'[1]Tasa de Falla'!IX48) -> XXXX | Q48: =IF('[1]Tasa de Falla'!IY48=0,"",'[1]Tasa de Falla'!IY48) -> XXXX | R48: =IF('[1]Tasa de Falla'!IZ48=0,"",'[1]Tasa de Falla'!IZ48) -> XXXX
C49: ='[1]Tasa de Falla'!C49 -> 33 | D49: ='[1]Tasa de Falla'!D49 -> SAN MARTIN C. - LA RIOJA | E49: ='[1]Tasa de Falla'!E49 -> 132 | F49: ='[1]Tasa de Falla'!F49 -> 105 | G49: =IF('[1]Tasa de Falla'!IO49=0,"",'[1]Tasa de Falla'!IO49) -> XXXX | H49: =IF('[1]Tasa de Falla'!IP49=0,"",'[1]Tasa de Falla'!IP49) -> XXXX | I49: =IF('[1]Tasa de Falla'!IQ49=0,"",'[1]Tasa de Falla'!IQ49) -> XXXX | J49: =IF('[1]Tasa de Falla'!IR49=0,"",'[1]Tasa de Falla'!IR49) -> XXXX | K49: =IF('[1]Tasa de Falla'!IS49=0,"",'[1]Tasa de Falla'!IS49) -> XXXX | L49: =IF('[1]Tasa de Falla'!IT49=0,"",'[1]Tasa de Falla'!IT49) -> XXXX | M49: =IF('[1]Tasa de Falla'!IU49=0,"",'[1]Tasa de Falla'!IU49) -> XXXX | N49: =IF('[1]Tasa de Falla'!IV49=0,"",'[1]Tasa de Falla'!IV49) -> XXXX | O49: =IF('[1]Tasa de Falla'!IW49=0,"",'[1]Tasa de Falla'!IW49) -> XXXX | P49: =IF('[1]Tasa de Falla'!IX49=0,"",'[1]Tasa de Falla'!IX49) -> XXXX | Q49: =IF('[1]Tasa de Falla'!IY49=0,"",'[1]Tasa de Falla'!IY49) -> XXXX | R49: =IF('[1]Tasa de Falla'!IZ49=0,"",'[1]Tasa de Falla'!IZ49) -> XXXX
C50: ='[1]Tasa de Falla'!C50 -> 34 | D50: ='[1]Tasa de Falla'!D50 -> SAN PEDRO JUJUY - LIBERTADOR NOA. | E50: ='[1]Tasa de Falla'!E50 -> 132 | F50: ='[1]Tasa de Falla'!F50 -> 49 | G50: =IF('[1]Tasa de Falla'!IO50=0,"",'[1]Tasa de Falla'!IO50) ->  | H50: =IF('[1]Tasa de Falla'!IP50=0,"",'[1]Tasa de Falla'!IP50) ->  | I50: =IF('[1]Tasa de Falla'!IQ50=0,"",'[1]Tasa de Falla'!IQ50) ->  | J50: =IF('[1]Tasa de Falla'!IR50=0,"",'[1]Tasa de Falla'!IR50) -> 1 | K50: =IF('[1]Tasa de Falla'!IS50=0,"",'[1]Tasa de Falla'!IS50) ->  | L50: =IF('[1]Tasa de Falla'!IT50=0,"",'[1]Tasa de Falla'!IT50) ->  | M50: =IF('[1]Tasa de Falla'!IU50=0,"",'[1]Tasa de Falla'!IU50) ->  | N50: =IF('[1]Tasa de Falla'!IV50=0,"",'[1]Tasa de Falla'!IV50) ->  | O50: =IF('[1]Tasa de Falla'!IW50=0,"",'[1]Tasa de Falla'!IW50) ->  | P50: =IF('[1]Tasa de Falla'!IX50=0,"",'[1]Tasa de Falla'!IX50) ->  | Q50: =IF('[1]Tasa de Falla'!IY50=0,"",'[1]Tasa de Falla'!IY50) ->  | R50: =IF('[1]Tasa de Falla'!IZ50=0,"",'[1]Tasa de Falla'!IZ50) -> 
C51: ='[1]Tasa de Falla'!C51 -> 35 | D51: ='[1]Tasa de Falla'!D51 -> TUCUMAN NORTE - EL BRACHO | E51: ='[1]Tasa de Falla'!E51 -> 132 | F51: ='[1]Tasa de Falla'!F51 -> 31.5 | G51: =IF('[1]Tasa de Falla'!IO51=0,"",'[1]Tasa de Falla'!IO51) ->  | H51: =IF('[1]Tasa de Falla'!IP51=0,"",'[1]Tasa de Falla'!IP51) ->  | I51: =IF('[1]Tasa de Falla'!IQ51=0,"",'[1]Tasa de Falla'!IQ51) ->  | J51: =IF('[1]Tasa de Falla'!IR51=0,"",'[1]Tasa de Falla'!IR51) -> 1 | K51: =IF('[1]Tasa de Falla'!IS51=0,"",'[1]Tasa de Falla'!IS51) ->  | L51: =IF('[1]Tasa de Falla'!IT51=0,"",'[1]Tasa de Falla'!IT51) ->  | M51: =IF('[1]Tasa de Falla'!IU51=0,"",'[1]Tasa de Falla'!IU51) ->  | N51: =IF('[1]Tasa de Falla'!IV51=0,"",'[1]Tasa de Falla'!IV51) ->  | O51: =IF('[1]Tasa de Falla'!IW51=0,"",'[1]Tasa de Falla'!IW51) ->  | P51: =IF('[1]Tasa de Falla'!IX51=0,"",'[1]Tasa de Falla'!IX51) ->  | Q51: =IF('[1]Tasa de Falla'!IY51=0,"",'[1]Tasa de Falla'!IY51) ->  | R51: =IF('[1]Tasa de Falla'!IZ51=0,"",'[1]Tasa de Falla'!IZ51) -> 
C52: ='[1]Tasa de Falla'!C52 -> 36 | D52: ='[1]Tasa de Falla'!D52 -> C.H. EL CADILLAL - TUCUMAN NORTE | E52: ='[1]Tasa de Falla'!E52 -> 132 | F52: ='[1]Tasa de Falla'!F52 -> 21.8 | G52: =IF('[1]Tasa de Falla'!IO52=0,"",'[1]Tasa de Falla'!IO52) ->  | H52: =IF('[1]Tasa de Falla'!IP52=0,"",'[1]Tasa de Falla'!IP52) ->  | I52: =IF('[1]Tasa de Falla'!IQ52=0,"",'[1]Tasa de Falla'!IQ52) ->  | J52: =IF('[1]Tasa de Falla'!IR52=0,"",'[1]Tasa de Falla'!IR52) ->  | K52: =IF('[1]Tasa de Falla'!IS52=0,"",'[1]Tasa de Falla'!IS52) ->  | L52: =IF('[1]Tasa de Falla'!IT52=0,"",'[1]Tasa de Falla'!IT52) -> 1 | M52: =IF('[1]Tasa de Falla'!IU52=0,"",'[1]Tasa de Falla'!IU52) -> 2 | N52: =IF('[1]Tasa de Falla'!IV52=0,"",'[1]Tasa de Falla'!IV52) ->  | O52: =IF('[1]Tasa de Falla'!IW52=0,"",'[1]Tasa de Falla'!IW52) -> 1 | P52: =IF('[1]Tasa de Falla'!IX52=0,"",'[1]Tasa de Falla'!IX52) ->  | Q52: =IF('[1]Tasa de Falla'!IY52=0,"",'[1]Tasa de Falla'!IY52) ->  | R52: =IF('[1]Tasa de Falla'!IZ52=0,"",'[1]Tasa de Falla'!IZ52) -> 
C53: ='[1]Tasa de Falla'!C53 -> 37 | D53: ='[1]Tasa de Falla'!D53 -> TUCUMAN NORTE - CABRA CORRAL | E53: ='[1]Tasa de Falla'!E53 -> 132 | F53: ='[1]Tasa de Falla'!F53 -> 190 | G53: =IF('[1]Tasa de Falla'!IO53=0,"",'[1]Tasa de Falla'!IO53) -> XXXX | H53: =IF('[1]Tasa de Falla'!IP53=0,"",'[1]Tasa de Falla'!IP53) -> XXXX | I53: =IF('[1]Tasa de Falla'!IQ53=0,"",'[1]Tasa de Falla'!IQ53) -> XXXX | J53: =IF('[1]Tasa de Falla'!IR53=0,"",'[1]Tasa de Falla'!IR53) -> XXXX | K53: =IF('[1]Tasa de Falla'!IS53=0,"",'[1]Tasa de Falla'!IS53) -> XXXX | L53: =IF('[1]Tasa de Falla'!IT53=0,"",'[1]Tasa de Falla'!IT53) -> XXXX | M53: =IF('[1]Tasa de Falla'!IU53=0,"",'[1]Tasa de Falla'!IU53) -> XXXX | N53: =IF('[1]Tasa de Falla'!IV53=0,"",'[1]Tasa de Falla'!IV53) -> XXXX | O53: =IF('[1]Tasa de Falla'!IW53=0,"",'[1]Tasa de Falla'!IW53) -> XXXX | P53: =IF('[1]Tasa de Falla'!IX53=0,"",'[1]Tasa de Falla'!IX53) -> XXXX | Q53: =IF('[1]Tasa de Falla'!IY53=0,"",'[1]Tasa de Falla'!IY53) -> XXXX | R53: =IF('[1]Tasa de Falla'!IZ53=0,"",'[1]Tasa de Falla'!IZ53) -> XXXX
C54: ='[1]Tasa de Falla'!C54 -> 38 | D54: ='[1]Tasa de Falla'!D54 -> METAN - TUCUMAN NORTE | E54: ='[1]Tasa de Falla'!E54 -> 132 | F54: ='[1]Tasa de Falla'!F54 -> 155.6 | G54: =IF('[1]Tasa de Falla'!IO54=0,"",'[1]Tasa de Falla'!IO54) ->  | H54: =IF('[1]Tasa de Falla'!IP54=0,"",'[1]Tasa de Falla'!IP54) ->  | I54: =IF('[1]Tasa de Falla'!IQ54=0,"",'[1]Tasa de Falla'!IQ54) ->  | J54: =IF('[1]Tasa de Falla'!IR54=0,"",'[1]Tasa de Falla'!IR54) -> 1 | K54: =IF('[1]Tasa de Falla'!IS54=0,"",'[1]Tasa de Falla'!IS54) -> 1 | L54: =IF('[1]Tasa de Falla'!IT54=0,"",'[1]Tasa de Falla'!IT54) -> 1 | M54: =IF('[1]Tasa de Falla'!IU54=0,"",'[1]Tasa de Falla'!IU54) ->  | N54: =IF('[1]Tasa de Falla'!IV54=0,"",'[1]Tasa de Falla'!IV54) ->  | O54: =IF('[1]Tasa de Falla'!IW54=0,"",'[1]Tasa de Falla'!IW54) ->  | P54: =IF('[1]Tasa de Falla'!IX54=0,"",'[1]Tasa de Falla'!IX54) ->  | Q54: =IF('[1]Tasa de Falla'!IY54=0,"",'[1]Tasa de Falla'!IY54) ->  | R54: =IF('[1]Tasa de Falla'!IZ54=0,"",'[1]Tasa de Falla'!IZ54) -> 
C55: ='[1]Tasa de Falla'!C55 -> 39 | D55: ='[1]Tasa de Falla'!D55 -> SARMIENTO - TUCUMAN NORTE (O.F.) | E55: ='[1]Tasa de Falla'!E55 -> 132 | F55: ='[1]Tasa de Falla'!F55 -> 3.3 | G55: =IF('[1]Tasa de Falla'!IO55=0,"",'[1]Tasa de Falla'!IO55) ->  | H55: =IF('[1]Tasa de Falla'!IP55=0,"",'[1]Tasa de Falla'!IP55) ->  | I55: =IF('[1]Tasa de Falla'!IQ55=0,"",'[1]Tasa de Falla'!IQ55) ->  | J55: =IF('[1]Tasa de Falla'!IR55=0,"",'[1]Tasa de Falla'!IR55) ->  | K55: =IF('[1]Tasa de Falla'!IS55=0,"",'[1]Tasa de Falla'!IS55) ->  | L55: =IF('[1]Tasa de Falla'!IT55=0,"",'[1]Tasa de Falla'!IT55) ->  | M55: =IF('[1]Tasa de Falla'!IU55=0,"",'[1]Tasa de Falla'!IU55) ->  | N55: =IF('[1]Tasa de Falla'!IV55=0,"",'[1]Tasa de Falla'!IV55) ->  | O55: =IF('[1]Tasa de Falla'!IW55=0,"",'[1]Tasa de Falla'!IW55) ->  | P55: =IF('[1]Tasa de Falla'!IX55=0,"",'[1]Tasa de Falla'!IX55) ->  | Q55: =IF('[1]Tasa de Falla'!IY55=0,"",'[1]Tasa de Falla'!IY55) ->  | R55: =IF('[1]Tasa de Falla'!IZ55=0,"",'[1]Tasa de Falla'!IZ55) -> 
C56: ='[1]Tasa de Falla'!C56 -> 40 | D56: ='[1]Tasa de Falla'!D56 -> TUCUMAN OESTE - TUCUMAN NORTE | E56: ='[1]Tasa de Falla'!E56 -> 132 | F56: ='[1]Tasa de Falla'!F56 -> 7 | G56: =IF('[1]Tasa de Falla'!IO56=0,"",'[1]Tasa de Falla'!IO56) -> 1 | H56: =IF('[1]Tasa de Falla'!IP56=0,"",'[1]Tasa de Falla'!IP56) ->  | I56: =IF('[1]Tasa de Falla'!IQ56=0,"",'[1]Tasa de Falla'!IQ56) ->  | J56: =IF('[1]Tasa de Falla'!IR56=0,"",'[1]Tasa de Falla'!IR56) -> 1 | K56: =IF('[1]Tasa de Falla'!IS56=0,"",'[1]Tasa de Falla'!IS56) ->  | L56: =IF('[1]Tasa de Falla'!IT56=0,"",'[1]Tasa de Falla'!IT56) ->  | M56: =IF('[1]Tasa de Falla'!IU56=0,"",'[1]Tasa de Falla'!IU56) ->  | N56: =IF('[1]Tasa de Falla'!IV56=0,"",'[1]Tasa de Falla'!IV56) ->  | O56: =IF('[1]Tasa de Falla'!IW56=0,"",'[1]Tasa de Falla'!IW56) ->  | P56: =IF('[1]Tasa de Falla'!IX56=0,"",'[1]Tasa de Falla'!IX56) ->  | Q56: =IF('[1]Tasa de Falla'!IY56=0,"",'[1]Tasa de Falla'!IY56) ->  | R56: =IF('[1]Tasa de Falla'!IZ56=0,"",'[1]Tasa de Falla'!IZ56) -> 1
C57: ='[1]Tasa de Falla'!C57 -> 41 | D57: ='[1]Tasa de Falla'!D57 -> AGUILARES - VILLA QUINTEROS | E57: ='[1]Tasa de Falla'!E57 -> 132 | F57: ='[1]Tasa de Falla'!F57 -> 21 | G57: =IF('[1]Tasa de Falla'!IO57=0,"",'[1]Tasa de Falla'!IO57) ->  | H57: =IF('[1]Tasa de Falla'!IP57=0,"",'[1]Tasa de Falla'!IP57) ->  | I57: =IF('[1]Tasa de Falla'!IQ57=0,"",'[1]Tasa de Falla'!IQ57) ->  | J57: =IF('[1]Tasa de Falla'!IR57=0,"",'[1]Tasa de Falla'!IR57) ->  | K57: =IF('[1]Tasa de Falla'!IS57=0,"",'[1]Tasa de Falla'!IS57) ->  | L57: =IF('[1]Tasa de Falla'!IT57=0,"",'[1]Tasa de Falla'!IT57) ->  | M57: =IF('[1]Tasa de Falla'!IU57=0,"",'[1]Tasa de Falla'!IU57) ->  | N57: =IF('[1]Tasa de Falla'!IV57=0,"",'[1]Tasa de Falla'!IV57) ->  | O57: =IF('[1]Tasa de Falla'!IW57=0,"",'[1]Tasa de Falla'!IW57) -> 1 | P57: =IF('[1]Tasa de Falla'!IX57=0,"",'[1]Tasa de Falla'!IX57) ->  | Q57: =IF('[1]Tasa de Falla'!IY57=0,"",'[1]Tasa de Falla'!IY57) ->  | R57: =IF('[1]Tasa de Falla'!IZ57=0,"",'[1]Tasa de Falla'!IZ57) -> 
C58: ='[1]Tasa de Falla'!C58 -> 42 | D58: ='[1]Tasa de Falla'!D58 -> C.H. PUEBLO VIEJO - VILLA QUINTEROS | E58: ='[1]Tasa de Falla'!E58 -> 132 | F58: ='[1]Tasa de Falla'!F58 -> 24.5 | G58: =IF('[1]Tasa de Falla'!IO58=0,"",'[1]Tasa de Falla'!IO58) ->  | H58: =IF('[1]Tasa de Falla'!IP58=0,"",'[1]Tasa de Falla'!IP58) ->  | I58: =IF('[1]Tasa de Falla'!IQ58=0,"",'[1]Tasa de Falla'!IQ58) ->  | J58: =IF('[1]Tasa de Falla'!IR58=0,"",'[1]Tasa de Falla'!IR58) -> 3 | K58: =IF('[1]Tasa de Falla'!IS58=0,"",'[1]Tasa de Falla'!IS58) ->  | L58: =IF('[1]Tasa de Falla'!IT58=0,"",'[1]Tasa de Falla'!IT58) ->  | M58: =IF('[1]Tasa de Falla'!IU58=0,"",'[1]Tasa de Falla'!IU58) ->  | N58: =IF('[1]Tasa de Falla'!IV58=0,"",'[1]Tasa de Falla'!IV58) -> 1 | O58: =IF('[1]Tasa de Falla'!IW58=0,"",'[1]Tasa de Falla'!IW58) ->  | P58: =IF('[1]Tasa de Falla'!IX58=0,"",'[1]Tasa de Falla'!IX58) ->  | Q58: =IF('[1]Tasa de Falla'!IY58=0,"",'[1]Tasa de Falla'!IY58) ->  | R58: =IF('[1]Tasa de Falla'!IZ58=0,"",'[1]Tasa de Falla'!IZ58) -> 
C59: ='[1]Tasa de Falla'!C59 -> 43 | D59: ='[1]Tasa de Falla'!D59 -> C.H. RIO HONDO - VILLA QUINTEROS | E59: ='[1]Tasa de Falla'!E59 -> 132 | F59: ='[1]Tasa de Falla'!F59 -> 75.4 | G59: =IF('[1]Tasa de Falla'!IO59=0,"",'[1]Tasa de Falla'!IO59) ->  | H59: =IF('[1]Tasa de Falla'!IP59=0,"",'[1]Tasa de Falla'!IP59) ->  | I59: =IF('[1]Tasa de Falla'!IQ59=0,"",'[1]Tasa de Falla'!IQ59) ->  | J59: =IF('[1]Tasa de Falla'!IR59=0,"",'[1]Tasa de Falla'!IR59) ->  | K59: =IF('[1]Tasa de Falla'!IS59=0,"",'[1]Tasa de Falla'!IS59) ->  | L59: =IF('[1]Tasa de Falla'!IT59=0,"",'[1]Tasa de Falla'!IT59) ->  | M59: =IF('[1]Tasa de Falla'!IU59=0,"",'[1]Tasa de Falla'!IU59) ->  | N59: =IF('[1]Tasa de Falla'!IV59=0,"",'[1]Tasa de Falla'!IV59) ->  | O59: =IF('[1]Tasa de Falla'!IW59=0,"",'[1]Tasa de Falla'!IW59) ->  | P59: =IF('[1]Tasa de Falla'!IX59=0,"",'[1]Tasa de Falla'!IX59) ->  | Q59: =IF('[1]Tasa de Falla'!IY59=0,"",'[1]Tasa de Falla'!IY59) ->  | R59: =IF('[1]Tasa de Falla'!IZ59=0,"",'[1]Tasa de Falla'!IZ59) -> 
C60: ='[1]Tasa de Falla'!C60 -> 44 | D60: ='[1]Tasa de Falla'!D60 -> C.H. RIO HONDO - SANTIAGO CENTRO | E60: ='[1]Tasa de Falla'!E60 -> 132 | F60: ='[1]Tasa de Falla'!F60 -> 79 | G60: =IF('[1]Tasa de Falla'!IO60=0,"",'[1]Tasa de Falla'!IO60) -> XXXX | H60: =IF('[1]Tasa de Falla'!IP60=0,"",'[1]Tasa de Falla'!IP60) -> XXXX | I60: =IF('[1]Tasa de Falla'!IQ60=0,"",'[1]Tasa de Falla'!IQ60) -> XXXX | J60: =IF('[1]Tasa de Falla'!IR60=0,"",'[1]Tasa de Falla'!IR60) -> XXXX | K60: =IF('[1]Tasa de Falla'!IS60=0,"",'[1]Tasa de Falla'!IS60) -> XXXX | L60: =IF('[1]Tasa de Falla'!IT60=0,"",'[1]Tasa de Falla'!IT60) -> XXXX | M60: =IF('[1]Tasa de Falla'!IU60=0,"",'[1]Tasa de Falla'!IU60) -> XXXX | N60: =IF('[1]Tasa de Falla'!IV60=0,"",'[1]Tasa de Falla'!IV60) -> XXXX | O60: =IF('[1]Tasa de Falla'!IW60=0,"",'[1]Tasa de Falla'!IW60) -> XXXX | P60: =IF('[1]Tasa de Falla'!IX60=0,"",'[1]Tasa de Falla'!IX60) -> XXXX | Q60: =IF('[1]Tasa de Falla'!IY60=0,"",'[1]Tasa de Falla'!IY60) -> XXXX | R60: =IF('[1]Tasa de Falla'!IZ60=0,"",'[1]Tasa de Falla'!IZ60) -> XXXX
C61: ='[1]Tasa de Falla'!C61 -> 45 | D61: ='[1]Tasa de Falla'!D61 -> C.H. RIO HONDO - EL BRACHO | E61: ='[1]Tasa de Falla'!E61 -> 132 | F61: ='[1]Tasa de Falla'!F61 -> 80.66 | G61: =IF('[1]Tasa de Falla'!IO61=0,"",'[1]Tasa de Falla'!IO61) ->  | H61: =IF('[1]Tasa de Falla'!IP61=0,"",'[1]Tasa de Falla'!IP61) ->  | I61: =IF('[1]Tasa de Falla'!IQ61=0,"",'[1]Tasa de Falla'!IQ61) ->  | J61: =IF('[1]Tasa de Falla'!IR61=0,"",'[1]Tasa de Falla'!IR61) ->  | K61: =IF('[1]Tasa de Falla'!IS61=0,"",'[1]Tasa de Falla'!IS61) -> XXXX | L61: =IF('[1]Tasa de Falla'!IT61=0,"",'[1]Tasa de Falla'!IT61) -> XXXX | M61: =IF('[1]Tasa de Falla'!IU61=0,"",'[1]Tasa de Falla'!IU61) -> XXXX | N61: =IF('[1]Tasa de Falla'!IV61=0,"",'[1]Tasa de Falla'!IV61) -> XXXX | O61: =IF('[1]Tasa de Falla'!IW61=0,"",'[1]Tasa de Falla'!IW61) -> XXXX | P61: =IF('[1]Tasa de Falla'!IX61=0,"",'[1]Tasa de Falla'!IX61) -> XXXX | Q61: =IF('[1]Tasa de Falla'!IY61=0,"",'[1]Tasa de Falla'!IY61) -> XXXX | R61: =IF('[1]Tasa de Falla'!IZ61=0,"",'[1]Tasa de Falla'!IZ61) -> XXXX
C62: ='[1]Tasa de Falla'!C62 -> 46 | D62: ='[1]Tasa de Falla'!D62 -> SALTA SUR - SALTA NORTE | E62: ='[1]Tasa de Falla'!E62 -> 132 | F62: ='[1]Tasa de Falla'!F62 -> 10 | G62: =IF('[1]Tasa de Falla'!IO62=0,"",'[1]Tasa de Falla'!IO62) ->  | H62: =IF('[1]Tasa de Falla'!IP62=0,"",'[1]Tasa de Falla'!IP62) ->  | I62: =IF('[1]Tasa de Falla'!IQ62=0,"",'[1]Tasa de Falla'!IQ62) ->  | J62: =IF('[1]Tasa de Falla'!IR62=0,"",'[1]Tasa de Falla'!IR62) ->  | K62: =IF('[1]Tasa de Falla'!IS62=0,"",'[1]Tasa de Falla'!IS62) ->  | L62: =IF('[1]Tasa de Falla'!IT62=0,"",'[1]Tasa de Falla'!IT62) ->  | M62: =IF('[1]Tasa de Falla'!IU62=0,"",'[1]Tasa de Falla'!IU62) ->  | N62: =IF('[1]Tasa de Falla'!IV62=0,"",'[1]Tasa de Falla'!IV62) ->  | O62: =IF('[1]Tasa de Falla'!IW62=0,"",'[1]Tasa de Falla'!IW62) ->  | P62: =IF('[1]Tasa de Falla'!IX62=0,"",'[1]Tasa de Falla'!IX62) ->  | Q62: =IF('[1]Tasa de Falla'!IY62=0,"",'[1]Tasa de Falla'!IY62) ->  | R62: =IF('[1]Tasa de Falla'!IZ62=0,"",'[1]Tasa de Falla'!IZ62) -> 
C63: ='[1]Tasa de Falla'!C63 -> 47 | D63: ='[1]Tasa de Falla'!D63 -> PALPALA - JUJUY ESTE | E63: ='[1]Tasa de Falla'!E63 -> 132 | F63: ='[1]Tasa de Falla'!F63 -> 12.3 | G63: =IF('[1]Tasa de Falla'!IO63=0,"",'[1]Tasa de Falla'!IO63) ->  | H63: =IF('[1]Tasa de Falla'!IP63=0,"",'[1]Tasa de Falla'!IP63) ->  | I63: =IF('[1]Tasa de Falla'!IQ63=0,"",'[1]Tasa de Falla'!IQ63) ->  | J63: =IF('[1]Tasa de Falla'!IR63=0,"",'[1]Tasa de Falla'!IR63) ->  | K63: =IF('[1]Tasa de Falla'!IS63=0,"",'[1]Tasa de Falla'!IS63) ->  | L63: =IF('[1]Tasa de Falla'!IT63=0,"",'[1]Tasa de Falla'!IT63) -> 1 | M63: =IF('[1]Tasa de Falla'!IU63=0,"",'[1]Tasa de Falla'!IU63) ->  | N63: =IF('[1]Tasa de Falla'!IV63=0,"",'[1]Tasa de Falla'!IV63) ->  | O63: =IF('[1]Tasa de Falla'!IW63=0,"",'[1]Tasa de Falla'!IW63) -> 1 | P63: =IF('[1]Tasa de Falla'!IX63=0,"",'[1]Tasa de Falla'!IX63) ->  | Q63: =IF('[1]Tasa de Falla'!IY63=0,"",'[1]Tasa de Falla'!IY63) ->  | R63: =IF('[1]Tasa de Falla'!IZ63=0,"",'[1]Tasa de Falla'!IZ63) -> 
C64: ='[1]Tasa de Falla'!C64 -> 48 | D64: ='[1]Tasa de Falla'!D64 -> JUJUY ESTE - JUJUY SUR | E64: ='[1]Tasa de Falla'!E64 -> 132 | F64: ='[1]Tasa de Falla'!F64 -> 4.3 | G64: =IF('[1]Tasa de Falla'!IO64=0,"",'[1]Tasa de Falla'!IO64) ->  | H64: =IF('[1]Tasa de Falla'!IP64=0,"",'[1]Tasa de Falla'!IP64) ->  | I64: =IF('[1]Tasa de Falla'!IQ64=0,"",'[1]Tasa de Falla'!IQ64) ->  | J64: =IF('[1]Tasa de Falla'!IR64=0,"",'[1]Tasa de Falla'!IR64) ->  | K64: =IF('[1]Tasa de Falla'!IS64=0,"",'[1]Tasa de Falla'!IS64) ->  | L64: =IF('[1]Tasa de Falla'!IT64=0,"",'[1]Tasa de Falla'!IT64) ->  | M64: =IF('[1]Tasa de Falla'!IU64=0,"",'[1]Tasa de Falla'!IU64) ->  | N64: =IF('[1]Tasa de Falla'!IV64=0,"",'[1]Tasa de Falla'!IV64) ->  | O64: =IF('[1]Tasa de Falla'!IW64=0,"",'[1]Tasa de Falla'!IW64) ->  | P64: =IF('[1]Tasa de Falla'!IX64=0,"",'[1]Tasa de Falla'!IX64) ->  | Q64: =IF('[1]Tasa de Falla'!IY64=0,"",'[1]Tasa de Falla'!IY64) ->  | R64: =IF('[1]Tasa de Falla'!IZ64=0,"",'[1]Tasa de Falla'!IZ64) -> 
C65: ='[1]Tasa de Falla'!C65 -> 49 | D65: ='[1]Tasa de Falla'!D65 -> CEVIL POZO - GUEMES | E65: ='[1]Tasa de Falla'!E65 -> 132 | F65: ='[1]Tasa de Falla'!F65 -> 291 | G65: =IF('[1]Tasa de Falla'!IO65=0,"",'[1]Tasa de Falla'!IO65) -> XXXX | H65: =IF('[1]Tasa de Falla'!IP65=0,"",'[1]Tasa de Falla'!IP65) -> XXXX | I65: =IF('[1]Tasa de Falla'!IQ65=0,"",'[1]Tasa de Falla'!IQ65) -> XXXX | J65: =IF('[1]Tasa de Falla'!IR65=0,"",'[1]Tasa de Falla'!IR65) -> XXXX | K65: =IF('[1]Tasa de Falla'!IS65=0,"",'[1]Tasa de Falla'!IS65) -> XXXX | L65: =IF('[1]Tasa de Falla'!IT65=0,"",'[1]Tasa de Falla'!IT65) -> XXXX | M65: =IF('[1]Tasa de Falla'!IU65=0,"",'[1]Tasa de Falla'!IU65) -> XXXX | N65: =IF('[1]Tasa de Falla'!IV65=0,"",'[1]Tasa de Falla'!IV65) -> XXXX | O65: =IF('[1]Tasa de Falla'!IW65=0,"",'[1]Tasa de Falla'!IW65) -> XXXX | P65: =IF('[1]Tasa de Falla'!IX65=0,"",'[1]Tasa de Falla'!IX65) -> XXXX | Q65: =IF('[1]Tasa de Falla'!IY65=0,"",'[1]Tasa de Falla'!IY65) -> XXXX | R65: =IF('[1]Tasa de Falla'!IZ65=0,"",'[1]Tasa de Falla'!IZ65) -> XXXX
C66: ='[1]Tasa de Falla'!C66 -> 50 | D66: ='[1]Tasa de Falla'!D66 -> CEVIL POZO - EL BRACHO | E66: ='[1]Tasa de Falla'!E66 -> 132 | F66: ='[1]Tasa de Falla'!F66 -> 17 | G66: =IF('[1]Tasa de Falla'!IO66=0,"",'[1]Tasa de Falla'!IO66) ->  | H66: =IF('[1]Tasa de Falla'!IP66=0,"",'[1]Tasa de Falla'!IP66) ->  | I66: =IF('[1]Tasa de Falla'!IQ66=0,"",'[1]Tasa de Falla'!IQ66) ->  | J66: =IF('[1]Tasa de Falla'!IR66=0,"",'[1]Tasa de Falla'!IR66) ->  | K66: =IF('[1]Tasa de Falla'!IS66=0,"",'[1]Tasa de Falla'!IS66) ->  | L66: =IF('[1]Tasa de Falla'!IT66=0,"",'[1]Tasa de Falla'!IT66) ->  | M66: =IF('[1]Tasa de Falla'!IU66=0,"",'[1]Tasa de Falla'!IU66) ->  | N66: =IF('[1]Tasa de Falla'!IV66=0,"",'[1]Tasa de Falla'!IV66) ->  | O66: =IF('[1]Tasa de Falla'!IW66=0,"",'[1]Tasa de Falla'!IW66) ->  | P66: =IF('[1]Tasa de Falla'!IX66=0,"",'[1]Tasa de Falla'!IX66) ->  | Q66: =IF('[1]Tasa de Falla'!IY66=0,"",'[1]Tasa de Falla'!IY66) ->  | R66: =IF('[1]Tasa de Falla'!IZ66=0,"",'[1]Tasa de Falla'!IZ66) -> 
C67: ='[1]Tasa de Falla'!C67 -> 0 | D67: ='[1]Tasa de Falla'!D67 -> 0 | E67: ='[1]Tasa de Falla'!E67 -> 0 | F67: ='[1]Tasa de Falla'!F67 -> 0 | G67: =IF('[1]Tasa de Falla'!IO67=0,"",'[1]Tasa de Falla'!IO67) ->  | H67: =IF('[1]Tasa de Falla'!IP67=0,"",'[1]Tasa de Falla'!IP67) ->  | I67: =IF('[1]Tasa de Falla'!IQ67=0,"",'[1]Tasa de Falla'!IQ67) ->  | J67: =IF('[1]Tasa de Falla'!IR67=0,"",'[1]Tasa de Falla'!IR67) ->  | K67: =IF('[1]Tasa de Falla'!IS67=0,"",'[1]Tasa de Falla'!IS67) ->  | L67: =IF('[1]Tasa de Falla'!IT67=0,"",'[1]Tasa de Falla'!IT67) ->  | M67: =IF('[1]Tasa de Falla'!IU67=0,"",'[1]Tasa de Falla'!IU67) ->  | N67: =IF('[1]Tasa de Falla'!IV67=0,"",'[1]Tasa de Falla'!IV67) ->  | O67: =IF('[1]Tasa de Falla'!IW67=0,"",'[1]Tasa de Falla'!IW67) ->  | P67: =IF('[1]Tasa de Falla'!IX67=0,"",'[1]Tasa de Falla'!IX67) ->  | Q67: =IF('[1]Tasa de Falla'!IY67=0,"",'[1]Tasa de Falla'!IY67) ->  | R67: =IF('[1]Tasa de Falla'!IZ67=0,"",'[1]Tasa de Falla'!IZ67) -> 
C68: ='[1]Tasa de Falla'!C68 -> 51 | D68: ='[1]Tasa de Falla'!D68 -> METAN - EL TUNAL | E68: ='[1]Tasa de Falla'!E68 -> 132 | F68: ='[1]Tasa de Falla'!F68 -> 75.6 | G68: =IF('[1]Tasa de Falla'!IO68=0,"",'[1]Tasa de Falla'!IO68) ->  | H68: =IF('[1]Tasa de Falla'!IP68=0,"",'[1]Tasa de Falla'!IP68) ->  | I68: =IF('[1]Tasa de Falla'!IQ68=0,"",'[1]Tasa de Falla'!IQ68) ->  | J68: =IF('[1]Tasa de Falla'!IR68=0,"",'[1]Tasa de Falla'!IR68) ->  | K68: =IF('[1]Tasa de Falla'!IS68=0,"",'[1]Tasa de Falla'!IS68) ->  | L68: =IF('[1]Tasa de Falla'!IT68=0,"",'[1]Tasa de Falla'!IT68) ->  | M68: =IF('[1]Tasa de Falla'!IU68=0,"",'[1]Tasa de Falla'!IU68) ->  | N68: =IF('[1]Tasa de Falla'!IV68=0,"",'[1]Tasa de Falla'!IV68) ->  | O68: =IF('[1]Tasa de Falla'!IW68=0,"",'[1]Tasa de Falla'!IW68) ->  | P68: =IF('[1]Tasa de Falla'!IX68=0,"",'[1]Tasa de Falla'!IX68) ->  | Q68: =IF('[1]Tasa de Falla'!IY68=0,"",'[1]Tasa de Falla'!IY68) ->  | R68: =IF('[1]Tasa de Falla'!IZ68=0,"",'[1]Tasa de Falla'!IZ68) -> 
C69: ='[1]Tasa de Falla'!C69 -> 52 | D69: ='[1]Tasa de Falla'!D69 -> EL TUNAL - J.V. GONZALEZ | E69: ='[1]Tasa de Falla'!E69 -> 132 | F69: ='[1]Tasa de Falla'!F69 -> 41.4 | G69: =IF('[1]Tasa de Falla'!IO69=0,"",'[1]Tasa de Falla'!IO69) ->  | H69: =IF('[1]Tasa de Falla'!IP69=0,"",'[1]Tasa de Falla'!IP69) ->  | I69: =IF('[1]Tasa de Falla'!IQ69=0,"",'[1]Tasa de Falla'!IQ69) ->  | J69: =IF('[1]Tasa de Falla'!IR69=0,"",'[1]Tasa de Falla'!IR69) ->  | K69: =IF('[1]Tasa de Falla'!IS69=0,"",'[1]Tasa de Falla'!IS69) ->  | L69: =IF('[1]Tasa de Falla'!IT69=0,"",'[1]Tasa de Falla'!IT69) ->  | M69: =IF('[1]Tasa de Falla'!IU69=0,"",'[1]Tasa de Falla'!IU69) ->  | N69: =IF('[1]Tasa de Falla'!IV69=0,"",'[1]Tasa de Falla'!IV69) ->  | O69: =IF('[1]Tasa de Falla'!IW69=0,"",'[1]Tasa de Falla'!IW69) ->  | P69: =IF('[1]Tasa de Falla'!IX69=0,"",'[1]Tasa de Falla'!IX69) ->  | Q69: =IF('[1]Tasa de Falla'!IY69=0,"",'[1]Tasa de Falla'!IY69) ->  | R69: =IF('[1]Tasa de Falla'!IZ69=0,"",'[1]Tasa de Falla'!IZ69) -> 
C70: ='[1]Tasa de Falla'!C70 -> 0 | D70: ='[1]Tasa de Falla'!D70 -> 0 | E70: ='[1]Tasa de Falla'!E70 -> 0 | F70: ='[1]Tasa de Falla'!F70 -> 0 | G70: =IF('[1]Tasa de Falla'!IO70=0,"",'[1]Tasa de Falla'!IO70) ->  | H70: =IF('[1]Tasa de Falla'!IP70=0,"",'[1]Tasa de Falla'!IP70) ->  | I70: =IF('[1]Tasa de Falla'!IQ70=0,"",'[1]Tasa de Falla'!IQ70) ->  | J70: =IF('[1]Tasa de Falla'!IR70=0,"",'[1]Tasa de Falla'!IR70) ->  | K70: =IF('[1]Tasa de Falla'!IS70=0,"",'[1]Tasa de Falla'!IS70) ->  | L70: =IF('[1]Tasa de Falla'!IT70=0,"",'[1]Tasa de Falla'!IT70) ->  | M70: =IF('[1]Tasa de Falla'!IU70=0,"",'[1]Tasa de Falla'!IU70) ->  | N70: =IF('[1]Tasa de Falla'!IV70=0,"",'[1]Tasa de Falla'!IV70) ->  | O70: =IF('[1]Tasa de Falla'!IW70=0,"",'[1]Tasa de Falla'!IW70) ->  | P70: =IF('[1]Tasa de Falla'!IX70=0,"",'[1]Tasa de Falla'!IX70) ->  | Q70: =IF('[1]Tasa de Falla'!IY70=0,"",'[1]Tasa de Falla'!IY70) ->  | R70: =IF('[1]Tasa de Falla'!IZ70=0,"",'[1]Tasa de Falla'!IZ70) -> 
C71: ='[1]Tasa de Falla'!C71 -> 53 | D71: ='[1]Tasa de Falla'!D71 -> LOS PIZARROS - ESCABA | E71: ='[1]Tasa de Falla'!E71 -> 132 | F71: ='[1]Tasa de Falla'!F71 -> 21.4 | G71: =IF('[1]Tasa de Falla'!IO71=0,"",'[1]Tasa de Falla'!IO71) ->  | H71: =IF('[1]Tasa de Falla'!IP71=0,"",'[1]Tasa de Falla'!IP71) ->  | I71: =IF('[1]Tasa de Falla'!IQ71=0,"",'[1]Tasa de Falla'!IQ71) ->  | J71: =IF('[1]Tasa de Falla'!IR71=0,"",'[1]Tasa de Falla'!IR71) -> 1 | K71: =IF('[1]Tasa de Falla'!IS71=0,"",'[1]Tasa de Falla'!IS71) ->  | L71: =IF('[1]Tasa de Falla'!IT71=0,"",'[1]Tasa de Falla'!IT71) -> 1 | M71: =IF('[1]Tasa de Falla'!IU71=0,"",'[1]Tasa de Falla'!IU71) ->  | N71: =IF('[1]Tasa de Falla'!IV71=0,"",'[1]Tasa de Falla'!IV71) -> 1 | O71: =IF('[1]Tasa de Falla'!IW71=0,"",'[1]Tasa de Falla'!IW71) ->  | P71: =IF('[1]Tasa de Falla'!IX71=0,"",'[1]Tasa de Falla'!IX71) ->  | Q71: =IF('[1]Tasa de Falla'!IY71=0,"",'[1]Tasa de Falla'!IY71) ->  | R71: =IF('[1]Tasa de Falla'!IZ71=0,"",'[1]Tasa de Falla'!IZ71) -> 
C72: ='[1]Tasa de Falla'!C72 -> 54 | D72: ='[1]Tasa de Falla'!D72 -> LOS PIZARROS - LA COCHA | E72: ='[1]Tasa de Falla'!E72 -> 132 | F72: ='[1]Tasa de Falla'!F72 -> 6.5 | G72: =IF('[1]Tasa de Falla'!IO72=0,"",'[1]Tasa de Falla'!IO72) ->  | H72: =IF('[1]Tasa de Falla'!IP72=0,"",'[1]Tasa de Falla'!IP72) ->  | I72: =IF('[1]Tasa de Falla'!IQ72=0,"",'[1]Tasa de Falla'!IQ72) ->  | J72: =IF('[1]Tasa de Falla'!IR72=0,"",'[1]Tasa de Falla'!IR72) ->  | K72: =IF('[1]Tasa de Falla'!IS72=0,"",'[1]Tasa de Falla'!IS72) ->  | L72: =IF('[1]Tasa de Falla'!IT72=0,"",'[1]Tasa de Falla'!IT72) ->  | M72: =IF('[1]Tasa de Falla'!IU72=0,"",'[1]Tasa de Falla'!IU72) ->  | N72: =IF('[1]Tasa de Falla'!IV72=0,"",'[1]Tasa de Falla'!IV72) ->  | O72: =IF('[1]Tasa de Falla'!IW72=0,"",'[1]Tasa de Falla'!IW72) ->  | P72: =IF('[1]Tasa de Falla'!IX72=0,"",'[1]Tasa de Falla'!IX72) ->  | Q72: =IF('[1]Tasa de Falla'!IY72=0,"",'[1]Tasa de Falla'!IY72) ->  | R72: =IF('[1]Tasa de Falla'!IZ72=0,"",'[1]Tasa de Falla'!IZ72) -> 
C73: ='[1]Tasa de Falla'!C73 -> 55 | D73: ='[1]Tasa de Falla'!D73 -> HUACRA - LOS PIZARROS | E73: ='[1]Tasa de Falla'!E73 -> 132 | F73: ='[1]Tasa de Falla'!F73 -> 28.5 | G73: =IF('[1]Tasa de Falla'!IO73=0,"",'[1]Tasa de Falla'!IO73) ->  | H73: =IF('[1]Tasa de Falla'!IP73=0,"",'[1]Tasa de Falla'!IP73) ->  | I73: =IF('[1]Tasa de Falla'!IQ73=0,"",'[1]Tasa de Falla'!IQ73) ->  | J73: =IF('[1]Tasa de Falla'!IR73=0,"",'[1]Tasa de Falla'!IR73) ->  | K73: =IF('[1]Tasa de Falla'!IS73=0,"",'[1]Tasa de Falla'!IS73) ->  | L73: =IF('[1]Tasa de Falla'!IT73=0,"",'[1]Tasa de Falla'!IT73) -> 1 | M73: =IF('[1]Tasa de Falla'!IU73=0,"",'[1]Tasa de Falla'!IU73) -> 1 | N73: =IF('[1]Tasa de Falla'!IV73=0,"",'[1]Tasa de Falla'!IV73) ->  | O73: =IF('[1]Tasa de Falla'!IW73=0,"",'[1]Tasa de Falla'!IW73) ->  | P73: =IF('[1]Tasa de Falla'!IX73=0,"",'[1]Tasa de Falla'!IX73) ->  | Q73: =IF('[1]Tasa de Falla'!IY73=0,"",'[1]Tasa de Falla'!IY73) ->  | R73: =IF('[1]Tasa de Falla'!IZ73=0,"",'[1]Tasa de Falla'!IZ73) -> 
C74: ='[1]Tasa de Falla'!C74 -> 56 | D74: ='[1]Tasa de Falla'!D74 -> CEVIL POZO - AVELLANEDA | E74: ='[1]Tasa de Falla'!E74 -> 132 | F74: ='[1]Tasa de Falla'!F74 -> 8 | G74: =IF('[1]Tasa de Falla'!IO74=0,"",'[1]Tasa de Falla'!IO74) ->  | H74: =IF('[1]Tasa de Falla'!IP74=0,"",'[1]Tasa de Falla'!IP74) ->  | I74: =IF('[1]Tasa de Falla'!IQ74=0,"",'[1]Tasa de Falla'!IQ74) ->  | J74: =IF('[1]Tasa de Falla'!IR74=0,"",'[1]Tasa de Falla'!IR74) ->  | K74: =IF('[1]Tasa de Falla'!IS74=0,"",'[1]Tasa de Falla'!IS74) ->  | L74: =IF('[1]Tasa de Falla'!IT74=0,"",'[1]Tasa de Falla'!IT74) ->  | M74: =IF('[1]Tasa de Falla'!IU74=0,"",'[1]Tasa de Falla'!IU74) ->  | N74: =IF('[1]Tasa de Falla'!IV74=0,"",'[1]Tasa de Falla'!IV74) ->  | O74: =IF('[1]Tasa de Falla'!IW74=0,"",'[1]Tasa de Falla'!IW74) ->  | P74: =IF('[1]Tasa de Falla'!IX74=0,"",'[1]Tasa de Falla'!IX74) ->  | Q74: =IF('[1]Tasa de Falla'!IY74=0,"",'[1]Tasa de Falla'!IY74) ->  | R74: =IF('[1]Tasa de Falla'!IZ74=0,"",'[1]Tasa de Falla'!IZ74) -> 
C75: ='[1]Tasa de Falla'!C75 -> 57 | D75: ='[1]Tasa de Falla'!D75 -> CABRA CORRAL - SALTA ESTE | E75: ='[1]Tasa de Falla'!E75 -> 132 | F75: ='[1]Tasa de Falla'!F75 -> 55 | G75: =IF('[1]Tasa de Falla'!IO75=0,"",'[1]Tasa de Falla'!IO75) ->  | H75: =IF('[1]Tasa de Falla'!IP75=0,"",'[1]Tasa de Falla'!IP75) ->  | I75: =IF('[1]Tasa de Falla'!IQ75=0,"",'[1]Tasa de Falla'!IQ75) ->  | J75: =IF('[1]Tasa de Falla'!IR75=0,"",'[1]Tasa de Falla'!IR75) -> 1 | K75: =IF('[1]Tasa de Falla'!IS75=0,"",'[1]Tasa de Falla'!IS75) ->  | L75: =IF('[1]Tasa de Falla'!IT75=0,"",'[1]Tasa de Falla'!IT75) ->  | M75: =IF('[1]Tasa de Falla'!IU75=0,"",'[1]Tasa de Falla'!IU75) -> 1 | N75: =IF('[1]Tasa de Falla'!IV75=0,"",'[1]Tasa de Falla'!IV75) ->  | O75: =IF('[1]Tasa de Falla'!IW75=0,"",'[1]Tasa de Falla'!IW75) -> 1 | P75: =IF('[1]Tasa de Falla'!IX75=0,"",'[1]Tasa de Falla'!IX75) ->  | Q75: =IF('[1]Tasa de Falla'!IY75=0,"",'[1]Tasa de Falla'!IY75) ->  | R75: =IF('[1]Tasa de Falla'!IZ75=0,"",'[1]Tasa de Falla'!IZ75) -> 1
C76: ='[1]Tasa de Falla'!C76 -> 58 | D76: ='[1]Tasa de Falla'!D76 -> SALTA ESTE - SALTA SUR | E76: ='[1]Tasa de Falla'!E76 -> 132 | F76: ='[1]Tasa de Falla'!F76 -> 7 | G76: =IF('[1]Tasa de Falla'!IO76=0,"",'[1]Tasa de Falla'!IO76) ->  | H76: =IF('[1]Tasa de Falla'!IP76=0,"",'[1]Tasa de Falla'!IP76) ->  | I76: =IF('[1]Tasa de Falla'!IQ76=0,"",'[1]Tasa de Falla'!IQ76) ->  | J76: =IF('[1]Tasa de Falla'!IR76=0,"",'[1]Tasa de Falla'!IR76) ->  | K76: =IF('[1]Tasa de Falla'!IS76=0,"",'[1]Tasa de Falla'!IS76) ->  | L76: =IF('[1]Tasa de Falla'!IT76=0,"",'[1]Tasa de Falla'!IT76) ->  | M76: =IF('[1]Tasa de Falla'!IU76=0,"",'[1]Tasa de Falla'!IU76) ->  | N76: =IF('[1]Tasa de Falla'!IV76=0,"",'[1]Tasa de Falla'!IV76) ->  | O76: =IF('[1]Tasa de Falla'!IW76=0,"",'[1]Tasa de Falla'!IW76) ->  | P76: =IF('[1]Tasa de Falla'!IX76=0,"",'[1]Tasa de Falla'!IX76) ->  | Q76: =IF('[1]Tasa de Falla'!IY76=0,"",'[1]Tasa de Falla'!IY76) ->  | R76: =IF('[1]Tasa de Falla'!IZ76=0,"",'[1]Tasa de Falla'!IZ76) -> 
C77: ='[1]Tasa de Falla'!C77 -> 59 | D77: ='[1]Tasa de Falla'!D77 -> V. QUINTEROS - ACONQUIJA - ANDALGALA | E77: ='[1]Tasa de Falla'!E77 -> 132 | F77: ='[1]Tasa de Falla'!F77 -> 102 | G77: =IF('[1]Tasa de Falla'!IO77=0,"",'[1]Tasa de Falla'!IO77) ->  | H77: =IF('[1]Tasa de Falla'!IP77=0,"",'[1]Tasa de Falla'!IP77) ->  | I77: =IF('[1]Tasa de Falla'!IQ77=0,"",'[1]Tasa de Falla'!IQ77) -> 1 | J77: =IF('[1]Tasa de Falla'!IR77=0,"",'[1]Tasa de Falla'!IR77) ->  | K77: =IF('[1]Tasa de Falla'!IS77=0,"",'[1]Tasa de Falla'!IS77) ->  | L77: =IF('[1]Tasa de Falla'!IT77=0,"",'[1]Tasa de Falla'!IT77) ->  | M77: =IF('[1]Tasa de Falla'!IU77=0,"",'[1]Tasa de Falla'!IU77) -> 2 | N77: =IF('[1]Tasa de Falla'!IV77=0,"",'[1]Tasa de Falla'!IV77) -> 1 | O77: =IF('[1]Tasa de Falla'!IW77=0,"",'[1]Tasa de Falla'!IW77) ->  | P77: =IF('[1]Tasa de Falla'!IX77=0,"",'[1]Tasa de Falla'!IX77) ->  | Q77: =IF('[1]Tasa de Falla'!IY77=0,"",'[1]Tasa de Falla'!IY77) ->  | R77: =IF('[1]Tasa de Falla'!IZ77=0,"",'[1]Tasa de Falla'!IZ77) -> 
C78: ='[1]Tasa de Falla'!C78 -> 60 | D78: ='[1]Tasa de Falla'!D78 -> ANDALGALA - BELEN | E78: ='[1]Tasa de Falla'!E78 -> 132 | F78: ='[1]Tasa de Falla'!F78 -> 80.3 | G78: =IF('[1]Tasa de Falla'!IO78=0,"",'[1]Tasa de Falla'!IO78) ->  | H78: =IF('[1]Tasa de Falla'!IP78=0,"",'[1]Tasa de Falla'!IP78) ->  | I78: =IF('[1]Tasa de Falla'!IQ78=0,"",'[1]Tasa de Falla'!IQ78) ->  | J78: =IF('[1]Tasa de Falla'!IR78=0,"",'[1]Tasa de Falla'!IR78) ->  | K78: =IF('[1]Tasa de Falla'!IS78=0,"",'[1]Tasa de Falla'!IS78) ->  | L78: =IF('[1]Tasa de Falla'!IT78=0,"",'[1]Tasa de Falla'!IT78) ->  | M78: =IF('[1]Tasa de Falla'!IU78=0,"",'[1]Tasa de Falla'!IU78) -> 1 | N78: =IF('[1]Tasa de Falla'!IV78=0,"",'[1]Tasa de Falla'!IV78) ->  | O78: =IF('[1]Tasa de Falla'!IW78=0,"",'[1]Tasa de Falla'!IW78) ->  | P78: =IF('[1]Tasa de Falla'!IX78=0,"",'[1]Tasa de Falla'!IX78) ->  | Q78: =IF('[1]Tasa de Falla'!IY78=0,"",'[1]Tasa de Falla'!IY78) ->  | R78: =IF('[1]Tasa de Falla'!IZ78=0,"",'[1]Tasa de Falla'!IZ78) -> 
C79: ='[1]Tasa de Falla'!C79 -> 61 | D79: ='[1]Tasa de Falla'!D79 -> TUCUMAN NORTE - TRANCAS | E79: ='[1]Tasa de Falla'!E79 -> 132 | F79: ='[1]Tasa de Falla'!F79 -> 75 | G79: =IF('[1]Tasa de Falla'!IO79=0,"",'[1]Tasa de Falla'!IO79) ->  | H79: =IF('[1]Tasa de Falla'!IP79=0,"",'[1]Tasa de Falla'!IP79) ->  | I79: =IF('[1]Tasa de Falla'!IQ79=0,"",'[1]Tasa de Falla'!IQ79) ->  | J79: =IF('[1]Tasa de Falla'!IR79=0,"",'[1]Tasa de Falla'!IR79) ->  | K79: =IF('[1]Tasa de Falla'!IS79=0,"",'[1]Tasa de Falla'!IS79) ->  | L79: =IF('[1]Tasa de Falla'!IT79=0,"",'[1]Tasa de Falla'!IT79) ->  | M79: =IF('[1]Tasa de Falla'!IU79=0,"",'[1]Tasa de Falla'!IU79) ->  | N79: =IF('[1]Tasa de Falla'!IV79=0,"",'[1]Tasa de Falla'!IV79) ->  | O79: =IF('[1]Tasa de Falla'!IW79=0,"",'[1]Tasa de Falla'!IW79) ->  | P79: =IF('[1]Tasa de Falla'!IX79=0,"",'[1]Tasa de Falla'!IX79) ->  | Q79: =IF('[1]Tasa de Falla'!IY79=0,"",'[1]Tasa de Falla'!IY79) ->  | R79: =IF('[1]Tasa de Falla'!IZ79=0,"",'[1]Tasa de Falla'!IZ79) -> 1
C80: ='[1]Tasa de Falla'!C80 -> 62 | D80: ='[1]Tasa de Falla'!D80 -> CABRA CORRAL - TRANCAS | E80: ='[1]Tasa de Falla'!E80 -> 132 | F80: ='[1]Tasa de Falla'!F80 -> 115 | G80: =IF('[1]Tasa de Falla'!IO80=0,"",'[1]Tasa de Falla'!IO80) -> XXXX | H80: =IF('[1]Tasa de Falla'!IP80=0,"",'[1]Tasa de Falla'!IP80) -> XXXX | I80: =IF('[1]Tasa de Falla'!IQ80=0,"",'[1]Tasa de Falla'!IQ80) -> XXXX | J80: =IF('[1]Tasa de Falla'!IR80=0,"",'[1]Tasa de Falla'!IR80) -> XXXX | K80: =IF('[1]Tasa de Falla'!IS80=0,"",'[1]Tasa de Falla'!IS80) -> XXXX | L80: =IF('[1]Tasa de Falla'!IT80=0,"",'[1]Tasa de Falla'!IT80) -> XXXX | M80: =IF('[1]Tasa de Falla'!IU80=0,"",'[1]Tasa de Falla'!IU80) -> XXXX | N80: =IF('[1]Tasa de Falla'!IV80=0,"",'[1]Tasa de Falla'!IV80) -> XXXX | O80: =IF('[1]Tasa de Falla'!IW80=0,"",'[1]Tasa de Falla'!IW80) -> XXXX | P80: =IF('[1]Tasa de Falla'!IX80=0,"",'[1]Tasa de Falla'!IX80) -> XXXX | Q80: =IF('[1]Tasa de Falla'!IY80=0,"",'[1]Tasa de Falla'!IY80) -> XXXX | R80: =IF('[1]Tasa de Falla'!IZ80=0,"",'[1]Tasa de Falla'!IZ80) -> XXXX
C81: ='[1]Tasa de Falla'!C81 -> 63 | D81: ='[1]Tasa de Falla'!D81 -> LAS MADERAS - JUJUY SUR | E81: ='[1]Tasa de Falla'!E81 -> 132 | F81: ='[1]Tasa de Falla'!F81 -> 27.6 | G81: =IF('[1]Tasa de Falla'!IO81=0,"",'[1]Tasa de Falla'!IO81) ->  | H81: =IF('[1]Tasa de Falla'!IP81=0,"",'[1]Tasa de Falla'!IP81) ->  | I81: =IF('[1]Tasa de Falla'!IQ81=0,"",'[1]Tasa de Falla'!IQ81) ->  | J81: =IF('[1]Tasa de Falla'!IR81=0,"",'[1]Tasa de Falla'!IR81) ->  | K81: =IF('[1]Tasa de Falla'!IS81=0,"",'[1]Tasa de Falla'!IS81) ->  | L81: =IF('[1]Tasa de Falla'!IT81=0,"",'[1]Tasa de Falla'!IT81) -> 1 | M81: =IF('[1]Tasa de Falla'!IU81=0,"",'[1]Tasa de Falla'!IU81) ->  | N81: =IF('[1]Tasa de Falla'!IV81=0,"",'[1]Tasa de Falla'!IV81) ->  | O81: =IF('[1]Tasa de Falla'!IW81=0,"",'[1]Tasa de Falla'!IW81) ->  | P81: =IF('[1]Tasa de Falla'!IX81=0,"",'[1]Tasa de Falla'!IX81) ->  | Q81: =IF('[1]Tasa de Falla'!IY81=0,"",'[1]Tasa de Falla'!IY81) ->  | R81: =IF('[1]Tasa de Falla'!IZ81=0,"",'[1]Tasa de Falla'!IZ81) -> 
C82: ='[1]Tasa de Falla'!C82 -> 64 | D82: ='[1]Tasa de Falla'!D82 -> BELEN - TINOGASTA | E82: ='[1]Tasa de Falla'!E82 -> 132 | F82: ='[1]Tasa de Falla'!F82 -> 72 | G82: =IF('[1]Tasa de Falla'!IO82=0,"",'[1]Tasa de Falla'!IO82) ->  | H82: =IF('[1]Tasa de Falla'!IP82=0,"",'[1]Tasa de Falla'!IP82) ->  | I82: =IF('[1]Tasa de Falla'!IQ82=0,"",'[1]Tasa de Falla'!IQ82) ->  | J82: =IF('[1]Tasa de Falla'!IR82=0,"",'[1]Tasa de Falla'!IR82) ->  | K82: =IF('[1]Tasa de Falla'!IS82=0,"",'[1]Tasa de Falla'!IS82) -> 1 | L82: =IF('[1]Tasa de Falla'!IT82=0,"",'[1]Tasa de Falla'!IT82) ->  | M82: =IF('[1]Tasa de Falla'!IU82=0,"",'[1]Tasa de Falla'!IU82) ->  | N82: =IF('[1]Tasa de Falla'!IV82=0,"",'[1]Tasa de Falla'!IV82) ->  | O82: =IF('[1]Tasa de Falla'!IW82=0,"",'[1]Tasa de Falla'!IW82) ->  | P82: =IF('[1]Tasa de Falla'!IX82=0,"",'[1]Tasa de Falla'!IX82) ->  | Q82: =IF('[1]Tasa de Falla'!IY82=0,"",'[1]Tasa de Falla'!IY82) ->  | R82: =IF('[1]Tasa de Falla'!IZ82=0,"",'[1]Tasa de Falla'!IZ82) -> 
C83: ='[1]Tasa de Falla'!C83 -> 65 | D83: ='[1]Tasa de Falla'!D83 -> BURRUYACU - CEVIL POZO | E83: ='[1]Tasa de Falla'!E83 -> 132 | F83: ='[1]Tasa de Falla'!F83 -> 56 | G83: =IF('[1]Tasa de Falla'!IO83=0,"",'[1]Tasa de Falla'!IO83) ->  | H83: =IF('[1]Tasa de Falla'!IP83=0,"",'[1]Tasa de Falla'!IP83) ->  | I83: =IF('[1]Tasa de Falla'!IQ83=0,"",'[1]Tasa de Falla'!IQ83) ->  | J83: =IF('[1]Tasa de Falla'!IR83=0,"",'[1]Tasa de Falla'!IR83) -> 1 | K83: =IF('[1]Tasa de Falla'!IS83=0,"",'[1]Tasa de Falla'!IS83) ->  | L83: =IF('[1]Tasa de Falla'!IT83=0,"",'[1]Tasa de Falla'!IT83) ->  | M83: =IF('[1]Tasa de Falla'!IU83=0,"",'[1]Tasa de Falla'!IU83) -> 1 | N83: =IF('[1]Tasa de Falla'!IV83=0,"",'[1]Tasa de Falla'!IV83) -> 1 | O83: =IF('[1]Tasa de Falla'!IW83=0,"",'[1]Tasa de Falla'!IW83) ->  | P83: =IF('[1]Tasa de Falla'!IX83=0,"",'[1]Tasa de Falla'!IX83) ->  | Q83: =IF('[1]Tasa de Falla'!IY83=0,"",'[1]Tasa de Falla'!IY83) ->  | R83: =IF('[1]Tasa de Falla'!IZ83=0,"",'[1]Tasa de Falla'!IZ83) -> 
C84: ='[1]Tasa de Falla'!C84 -> 66 | D84: ='[1]Tasa de Falla'!D84 -> GÜEMES - BURRUYACU | E84: ='[1]Tasa de Falla'!E84 -> 132 | F84: ='[1]Tasa de Falla'!F84 -> 235.1 | G84: =IF('[1]Tasa de Falla'!IO84=0,"",'[1]Tasa de Falla'!IO84) -> XXXX | H84: =IF('[1]Tasa de Falla'!IP84=0,"",'[1]Tasa de Falla'!IP84) -> XXXX | I84: =IF('[1]Tasa de Falla'!IQ84=0,"",'[1]Tasa de Falla'!IQ84) -> XXXX | J84: =IF('[1]Tasa de Falla'!IR84=0,"",'[1]Tasa de Falla'!IR84) -> XXXX | K84: =IF('[1]Tasa de Falla'!IS84=0,"",'[1]Tasa de Falla'!IS84) -> XXXX | L84: =IF('[1]Tasa de Falla'!IT84=0,"",'[1]Tasa de Falla'!IT84) -> XXXX | M84: =IF('[1]Tasa de Falla'!IU84=0,"",'[1]Tasa de Falla'!IU84) -> XXXX | N84: =IF('[1]Tasa de Falla'!IV84=0,"",'[1]Tasa de Falla'!IV84) -> XXXX | O84: =IF('[1]Tasa de Falla'!IW84=0,"",'[1]Tasa de Falla'!IW84) -> XXXX | P84: =IF('[1]Tasa de Falla'!IX84=0,"",'[1]Tasa de Falla'!IX84) -> XXXX | Q84: =IF('[1]Tasa de Falla'!IY84=0,"",'[1]Tasa de Falla'!IY84) -> XXXX | R84: =IF('[1]Tasa de Falla'!IZ84=0,"",'[1]Tasa de Falla'!IZ84) -> XXXX
C85: ='[1]Tasa de Falla'!C85 -> 67 | D85: ='[1]Tasa de Falla'!D85 -> FRIAS - RECREO | E85: ='[1]Tasa de Falla'!E85 -> 132 | F85: ='[1]Tasa de Falla'!F85 -> 74.54 | G85: =IF('[1]Tasa de Falla'!IO85=0,"",'[1]Tasa de Falla'!IO85) ->  | H85: =IF('[1]Tasa de Falla'!IP85=0,"",'[1]Tasa de Falla'!IP85) ->  | I85: =IF('[1]Tasa de Falla'!IQ85=0,"",'[1]Tasa de Falla'!IQ85) ->  | J85: =IF('[1]Tasa de Falla'!IR85=0,"",'[1]Tasa de Falla'!IR85) ->  | K85: =IF('[1]Tasa de Falla'!IS85=0,"",'[1]Tasa de Falla'!IS85) ->  | L85: =IF('[1]Tasa de Falla'!IT85=0,"",'[1]Tasa de Falla'!IT85) ->  | M85: =IF('[1]Tasa de Falla'!IU85=0,"",'[1]Tasa de Falla'!IU85) ->  | N85: =IF('[1]Tasa de Falla'!IV85=0,"",'[1]Tasa de Falla'!IV85) ->  | O85: =IF('[1]Tasa de Falla'!IW85=0,"",'[1]Tasa de Falla'!IW85) ->  | P85: =IF('[1]Tasa de Falla'!IX85=0,"",'[1]Tasa de Falla'!IX85) ->  | Q85: =IF('[1]Tasa de Falla'!IY85=0,"",'[1]Tasa de Falla'!IY85) ->  | R85: =IF('[1]Tasa de Falla'!IZ85=0,"",'[1]Tasa de Falla'!IZ85) -> 
C86: ='[1]Tasa de Falla'!C86 -> 68 | D86: ='[1]Tasa de Falla'!D86 -> RECREO - LA RIOJA 1 | E86: ='[1]Tasa de Falla'!E86 -> 132 | F86: ='[1]Tasa de Falla'!F86 -> 221 | G86: =IF('[1]Tasa de Falla'!IO86=0,"",'[1]Tasa de Falla'!IO86) ->  | H86: =IF('[1]Tasa de Falla'!IP86=0,"",'[1]Tasa de Falla'!IP86) ->  | I86: =IF('[1]Tasa de Falla'!IQ86=0,"",'[1]Tasa de Falla'!IQ86) ->  | J86: =IF('[1]Tasa de Falla'!IR86=0,"",'[1]Tasa de Falla'!IR86) ->  | K86: =IF('[1]Tasa de Falla'!IS86=0,"",'[1]Tasa de Falla'!IS86) ->  | L86: =IF('[1]Tasa de Falla'!IT86=0,"",'[1]Tasa de Falla'!IT86) -> 1 | M86: =IF('[1]Tasa de Falla'!IU86=0,"",'[1]Tasa de Falla'!IU86) -> 1 | N86: =IF('[1]Tasa de Falla'!IV86=0,"",'[1]Tasa de Falla'!IV86) ->  | O86: =IF('[1]Tasa de Falla'!IW86=0,"",'[1]Tasa de Falla'!IW86) ->  | P86: =IF('[1]Tasa de Falla'!IX86=0,"",'[1]Tasa de Falla'!IX86) ->  | Q86: =IF('[1]Tasa de Falla'!IY86=0,"",'[1]Tasa de Falla'!IY86) -> 1 | R86: =IF('[1]Tasa de Falla'!IZ86=0,"",'[1]Tasa de Falla'!IZ86) -> 1
C87: ='[1]Tasa de Falla'!C87 -> 69 | D87: ='[1]Tasa de Falla'!D87 -> RECREO - LA RIOJA 2 | E87: ='[1]Tasa de Falla'!E87 -> 132 | F87: ='[1]Tasa de Falla'!F87 -> 220 | G87: =IF('[1]Tasa de Falla'!IO87=0,"",'[1]Tasa de Falla'!IO87) ->  | H87: =IF('[1]Tasa de Falla'!IP87=0,"",'[1]Tasa de Falla'!IP87) ->  | I87: =IF('[1]Tasa de Falla'!IQ87=0,"",'[1]Tasa de Falla'!IQ87) ->  | J87: =IF('[1]Tasa de Falla'!IR87=0,"",'[1]Tasa de Falla'!IR87) ->  | K87: =IF('[1]Tasa de Falla'!IS87=0,"",'[1]Tasa de Falla'!IS87) -> 1 | L87: =IF('[1]Tasa de Falla'!IT87=0,"",'[1]Tasa de Falla'!IT87) ->  | M87: =IF('[1]Tasa de Falla'!IU87=0,"",'[1]Tasa de Falla'!IU87) -> 1 | N87: =IF('[1]Tasa de Falla'!IV87=0,"",'[1]Tasa de Falla'!IV87) ->  | O87: =IF('[1]Tasa de Falla'!IW87=0,"",'[1]Tasa de Falla'!IW87) ->  | P87: =IF('[1]Tasa de Falla'!IX87=0,"",'[1]Tasa de Falla'!IX87) -> 1 | Q87: =IF('[1]Tasa de Falla'!IY87=0,"",'[1]Tasa de Falla'!IY87) -> 1 | R87: =IF('[1]Tasa de Falla'!IZ87=0,"",'[1]Tasa de Falla'!IZ87) -> 
C88: ='[1]Tasa de Falla'!C88 -> 70 | D88: ='[1]Tasa de Falla'!D88 -> RECREO - CATAMARCA | E88: ='[1]Tasa de Falla'!E88 -> 132 | F88: ='[1]Tasa de Falla'!F88 -> 203 | G88: =IF('[1]Tasa de Falla'!IO88=0,"",'[1]Tasa de Falla'!IO88) -> 1 | H88: =IF('[1]Tasa de Falla'!IP88=0,"",'[1]Tasa de Falla'!IP88) ->  | I88: =IF('[1]Tasa de Falla'!IQ88=0,"",'[1]Tasa de Falla'!IQ88) ->  | J88: =IF('[1]Tasa de Falla'!IR88=0,"",'[1]Tasa de Falla'!IR88) ->  | K88: =IF('[1]Tasa de Falla'!IS88=0,"",'[1]Tasa de Falla'!IS88) ->  | L88: =IF('[1]Tasa de Falla'!IT88=0,"",'[1]Tasa de Falla'!IT88) -> 2 | M88: =IF('[1]Tasa de Falla'!IU88=0,"",'[1]Tasa de Falla'!IU88) ->  | N88: =IF('[1]Tasa de Falla'!IV88=0,"",'[1]Tasa de Falla'!IV88) ->  | O88: =IF('[1]Tasa de Falla'!IW88=0,"",'[1]Tasa de Falla'!IW88) -> 1 | P88: =IF('[1]Tasa de Falla'!IX88=0,"",'[1]Tasa de Falla'!IX88) ->  | Q88: =IF('[1]Tasa de Falla'!IY88=0,"",'[1]Tasa de Falla'!IY88) ->  | R88: =IF('[1]Tasa de Falla'!IZ88=0,"",'[1]Tasa de Falla'!IZ88) -> 
C89: ='[1]Tasa de Falla'!C89 -> 71 | D89: ='[1]Tasa de Falla'!D89 -> CABRA CORRAL - EL CARRIL | E89: ='[1]Tasa de Falla'!E89 -> 132 | F89: ='[1]Tasa de Falla'!F89 -> 33.75 | G89: =IF('[1]Tasa de Falla'!IO89=0,"",'[1]Tasa de Falla'!IO89) ->  | H89: =IF('[1]Tasa de Falla'!IP89=0,"",'[1]Tasa de Falla'!IP89) ->  | I89: =IF('[1]Tasa de Falla'!IQ89=0,"",'[1]Tasa de Falla'!IQ89) ->  | J89: =IF('[1]Tasa de Falla'!IR89=0,"",'[1]Tasa de Falla'!IR89) -> 1 | K89: =IF('[1]Tasa de Falla'!IS89=0,"",'[1]Tasa de Falla'!IS89) ->  | L89: =IF('[1]Tasa de Falla'!IT89=0,"",'[1]Tasa de Falla'!IT89) ->  | M89: =IF('[1]Tasa de Falla'!IU89=0,"",'[1]Tasa de Falla'!IU89) ->  | N89: =IF('[1]Tasa de Falla'!IV89=0,"",'[1]Tasa de Falla'!IV89) ->  | O89: =IF('[1]Tasa de Falla'!IW89=0,"",'[1]Tasa de Falla'!IW89) ->  | P89: =IF('[1]Tasa de Falla'!IX89=0,"",'[1]Tasa de Falla'!IX89) ->  | Q89: =IF('[1]Tasa de Falla'!IY89=0,"",'[1]Tasa de Falla'!IY89) ->  | R89: =IF('[1]Tasa de Falla'!IZ89=0,"",'[1]Tasa de Falla'!IZ89) -> 1
C90: ='[1]Tasa de Falla'!C90 -> 72 | D90: ='[1]Tasa de Falla'!D90 -> PAMPA GRANDE - CABRA CORRAL | E90: ='[1]Tasa de Falla'!E90 -> 132 | F90: ='[1]Tasa de Falla'!F90 -> 60 | G90: =IF('[1]Tasa de Falla'!IO90=0,"",'[1]Tasa de Falla'!IO90) -> 1 | H90: =IF('[1]Tasa de Falla'!IP90=0,"",'[1]Tasa de Falla'!IP90) ->  | I90: =IF('[1]Tasa de Falla'!IQ90=0,"",'[1]Tasa de Falla'!IQ90) ->  | J90: =IF('[1]Tasa de Falla'!IR90=0,"",'[1]Tasa de Falla'!IR90) ->  | K90: =IF('[1]Tasa de Falla'!IS90=0,"",'[1]Tasa de Falla'!IS90) ->  | L90: =IF('[1]Tasa de Falla'!IT90=0,"",'[1]Tasa de Falla'!IT90) ->  | M90: =IF('[1]Tasa de Falla'!IU90=0,"",'[1]Tasa de Falla'!IU90) -> 1 | N90: =IF('[1]Tasa de Falla'!IV90=0,"",'[1]Tasa de Falla'!IV90) -> 1 | O90: =IF('[1]Tasa de Falla'!IW90=0,"",'[1]Tasa de Falla'!IW90) -> 1 | P90: =IF('[1]Tasa de Falla'!IX90=0,"",'[1]Tasa de Falla'!IX90) ->  | Q90: =IF('[1]Tasa de Falla'!IY90=0,"",'[1]Tasa de Falla'!IY90) ->  | R90: =IF('[1]Tasa de Falla'!IZ90=0,"",'[1]Tasa de Falla'!IZ90) -> 1
C91: ='[1]Tasa de Falla'!C91 -> 73 | D91: ='[1]Tasa de Falla'!D91 -> PAMPA GRANDE - CAFAYATE | E91: ='[1]Tasa de Falla'!E91 -> 132 | F91: ='[1]Tasa de Falla'!F91 -> 63 | G91: =IF('[1]Tasa de Falla'!IO91=0,"",'[1]Tasa de Falla'!IO91) -> 1 | H91: =IF('[1]Tasa de Falla'!IP91=0,"",'[1]Tasa de Falla'!IP91) ->  | I91: =IF('[1]Tasa de Falla'!IQ91=0,"",'[1]Tasa de Falla'!IQ91) ->  | J91: =IF('[1]Tasa de Falla'!IR91=0,"",'[1]Tasa de Falla'!IR91) ->  | K91: =IF('[1]Tasa de Falla'!IS91=0,"",'[1]Tasa de Falla'!IS91) ->  | L91: =IF('[1]Tasa de Falla'!IT91=0,"",'[1]Tasa de Falla'!IT91) ->  | M91: =IF('[1]Tasa de Falla'!IU91=0,"",'[1]Tasa de Falla'!IU91) ->  | N91: =IF('[1]Tasa de Falla'!IV91=0,"",'[1]Tasa de Falla'!IV91) ->  | O91: =IF('[1]Tasa de Falla'!IW91=0,"",'[1]Tasa de Falla'!IW91) ->  | P91: =IF('[1]Tasa de Falla'!IX91=0,"",'[1]Tasa de Falla'!IX91) ->  | Q91: =IF('[1]Tasa de Falla'!IY91=0,"",'[1]Tasa de Falla'!IY91) ->  | R91: =IF('[1]Tasa de Falla'!IZ91=0,"",'[1]Tasa de Falla'!IZ91) -> 
C92: ='[1]Tasa de Falla'!C92 -> 74 | D92: ='[1]Tasa de Falla'!D92 -> PAMPA GRANDE - TRANCAS | E92: ='[1]Tasa de Falla'!E92 -> 132 | F92: ='[1]Tasa de Falla'!F92 -> 55 | G92: =IF('[1]Tasa de Falla'!IO92=0,"",'[1]Tasa de Falla'!IO92) ->  | H92: =IF('[1]Tasa de Falla'!IP92=0,"",'[1]Tasa de Falla'!IP92) ->  | I92: =IF('[1]Tasa de Falla'!IQ92=0,"",'[1]Tasa de Falla'!IQ92) ->  | J92: =IF('[1]Tasa de Falla'!IR92=0,"",'[1]Tasa de Falla'!IR92) ->  | K92: =IF('[1]Tasa de Falla'!IS92=0,"",'[1]Tasa de Falla'!IS92) ->  | L92: =IF('[1]Tasa de Falla'!IT92=0,"",'[1]Tasa de Falla'!IT92) ->  | M92: =IF('[1]Tasa de Falla'!IU92=0,"",'[1]Tasa de Falla'!IU92) ->  | N92: =IF('[1]Tasa de Falla'!IV92=0,"",'[1]Tasa de Falla'!IV92) ->  | O92: =IF('[1]Tasa de Falla'!IW92=0,"",'[1]Tasa de Falla'!IW92) ->  | P92: =IF('[1]Tasa de Falla'!IX92=0,"",'[1]Tasa de Falla'!IX92) ->  | Q92: =IF('[1]Tasa de Falla'!IY92=0,"",'[1]Tasa de Falla'!IY92) ->  | R92: =IF('[1]Tasa de Falla'!IZ92=0,"",'[1]Tasa de Falla'!IZ92) -> 
C93: ='[1]Tasa de Falla'!C93 -> 75 | D93: ='[1]Tasa de Falla'!D93 -> SANTIAGO CENTRO - FERNANDEZ - SUNCHO CORRAL | E93: ='[1]Tasa de Falla'!E93 -> 132 | F93: ='[1]Tasa de Falla'!F93 -> 103 | G93: =IF('[1]Tasa de Falla'!IO93=0,"",'[1]Tasa de Falla'!IO93) ->  | H93: =IF('[1]Tasa de Falla'!IP93=0,"",'[1]Tasa de Falla'!IP93) ->  | I93: =IF('[1]Tasa de Falla'!IQ93=0,"",'[1]Tasa de Falla'!IQ93) ->  | J93: =IF('[1]Tasa de Falla'!IR93=0,"",'[1]Tasa de Falla'!IR93) ->  | K93: =IF('[1]Tasa de Falla'!IS93=0,"",'[1]Tasa de Falla'!IS93) ->  | L93: =IF('[1]Tasa de Falla'!IT93=0,"",'[1]Tasa de Falla'!IT93) ->  | M93: =IF('[1]Tasa de Falla'!IU93=0,"",'[1]Tasa de Falla'!IU93) ->  | N93: =IF('[1]Tasa de Falla'!IV93=0,"",'[1]Tasa de Falla'!IV93) ->  | O93: =IF('[1]Tasa de Falla'!IW93=0,"",'[1]Tasa de Falla'!IW93) ->  | P93: =IF('[1]Tasa de Falla'!IX93=0,"",'[1]Tasa de Falla'!IX93) ->  | Q93: =IF('[1]Tasa de Falla'!IY93=0,"",'[1]Tasa de Falla'!IY93) ->  | R93: =IF('[1]Tasa de Falla'!IZ93=0,"",'[1]Tasa de Falla'!IZ93) -> 
C94: ='[1]Tasa de Falla'!C94 -> 76 | D94: ='[1]Tasa de Falla'!D94 -> SUNCHO CORRAL - ANATUYA | E94: ='[1]Tasa de Falla'!E94 -> 132 | F94: ='[1]Tasa de Falla'!F94 -> 81 | G94: =IF('[1]Tasa de Falla'!IO94=0,"",'[1]Tasa de Falla'!IO94) ->  | H94: =IF('[1]Tasa de Falla'!IP94=0,"",'[1]Tasa de Falla'!IP94) ->  | I94: =IF('[1]Tasa de Falla'!IQ94=0,"",'[1]Tasa de Falla'!IQ94) ->  | J94: =IF('[1]Tasa de Falla'!IR94=0,"",'[1]Tasa de Falla'!IR94) -> 2 | K94: =IF('[1]Tasa de Falla'!IS94=0,"",'[1]Tasa de Falla'!IS94) -> 1 | L94: =IF('[1]Tasa de Falla'!IT94=0,"",'[1]Tasa de Falla'!IT94) ->  | M94: =IF('[1]Tasa de Falla'!IU94=0,"",'[1]Tasa de Falla'!IU94) ->  | N94: =IF('[1]Tasa de Falla'!IV94=0,"",'[1]Tasa de Falla'!IV94) ->  | O94: =IF('[1]Tasa de Falla'!IW94=0,"",'[1]Tasa de Falla'!IW94) ->  | P94: =IF('[1]Tasa de Falla'!IX94=0,"",'[1]Tasa de Falla'!IX94) ->  | Q94: =IF('[1]Tasa de Falla'!IY94=0,"",'[1]Tasa de Falla'!IY94) ->  | R94: =IF('[1]Tasa de Falla'!IZ94=0,"",'[1]Tasa de Falla'!IZ94) -> 
C95: ='[1]Tasa de Falla'!C95 -> 77 | D95: ='[1]Tasa de Falla'!D95 -> LAS MADERAS - GÜEMES SALTA | E95: ='[1]Tasa de Falla'!E95 -> 132 | F95: ='[1]Tasa de Falla'!F95 -> 42 | G95: =IF('[1]Tasa de Falla'!IO95=0,"",'[1]Tasa de Falla'!IO95) ->  | H95: =IF('[1]Tasa de Falla'!IP95=0,"",'[1]Tasa de Falla'!IP95) ->  | I95: =IF('[1]Tasa de Falla'!IQ95=0,"",'[1]Tasa de Falla'!IQ95) ->  | J95: =IF('[1]Tasa de Falla'!IR95=0,"",'[1]Tasa de Falla'!IR95) -> 1 | K95: =IF('[1]Tasa de Falla'!IS95=0,"",'[1]Tasa de Falla'!IS95) ->  | L95: =IF('[1]Tasa de Falla'!IT95=0,"",'[1]Tasa de Falla'!IT95) ->  | M95: =IF('[1]Tasa de Falla'!IU95=0,"",'[1]Tasa de Falla'!IU95) ->  | N95: =IF('[1]Tasa de Falla'!IV95=0,"",'[1]Tasa de Falla'!IV95) ->  | O95: =IF('[1]Tasa de Falla'!IW95=0,"",'[1]Tasa de Falla'!IW95) ->  | P95: =IF('[1]Tasa de Falla'!IX95=0,"",'[1]Tasa de Falla'!IX95) ->  | Q95: =IF('[1]Tasa de Falla'!IY95=0,"",'[1]Tasa de Falla'!IY95) ->  | R95: =IF('[1]Tasa de Falla'!IZ95=0,"",'[1]Tasa de Falla'!IZ95) -> 
C96: ='[1]Tasa de Falla'!C96 -> 78 | D96: ='[1]Tasa de Falla'!D96 -> INDEPENDENCIA - EL BRACHO 2 | E96: ='[1]Tasa de Falla'!E96 -> 132 | F96: ='[1]Tasa de Falla'!F96 -> 17.1 | G96: =IF('[1]Tasa de Falla'!IO96=0,"",'[1]Tasa de Falla'!IO96) ->  | H96: =IF('[1]Tasa de Falla'!IP96=0,"",'[1]Tasa de Falla'!IP96) ->  | I96: =IF('[1]Tasa de Falla'!IQ96=0,"",'[1]Tasa de Falla'!IQ96) ->  | J96: =IF('[1]Tasa de Falla'!IR96=0,"",'[1]Tasa de Falla'!IR96) ->  | K96: =IF('[1]Tasa de Falla'!IS96=0,"",'[1]Tasa de Falla'!IS96) ->  | L96: =IF('[1]Tasa de Falla'!IT96=0,"",'[1]Tasa de Falla'!IT96) ->  | M96: =IF('[1]Tasa de Falla'!IU96=0,"",'[1]Tasa de Falla'!IU96) ->  | N96: =IF('[1]Tasa de Falla'!IV96=0,"",'[1]Tasa de Falla'!IV96) -> 1 | O96: =IF('[1]Tasa de Falla'!IW96=0,"",'[1]Tasa de Falla'!IW96) ->  | P96: =IF('[1]Tasa de Falla'!IX96=0,"",'[1]Tasa de Falla'!IX96) ->  | Q96: =IF('[1]Tasa de Falla'!IY96=0,"",'[1]Tasa de Falla'!IY96) ->  | R96: =IF('[1]Tasa de Falla'!IZ96=0,"",'[1]Tasa de Falla'!IZ96) -> 1
C97: ='[1]Tasa de Falla'!C97 -> 79 | D97: ='[1]Tasa de Falla'!D97 -> GÜEMES - SALTA NORTE | E97: ='[1]Tasa de Falla'!E97 -> 132 | F97: ='[1]Tasa de Falla'!F97 -> 39 | G97: =IF('[1]Tasa de Falla'!IO97=0,"",'[1]Tasa de Falla'!IO97) -> XXXX | H97: =IF('[1]Tasa de Falla'!IP97=0,"",'[1]Tasa de Falla'!IP97) -> XXXX | I97: =IF('[1]Tasa de Falla'!IQ97=0,"",'[1]Tasa de Falla'!IQ97) -> XXXX | J97: =IF('[1]Tasa de Falla'!IR97=0,"",'[1]Tasa de Falla'!IR97) -> XXXX | K97: =IF('[1]Tasa de Falla'!IS97=0,"",'[1]Tasa de Falla'!IS97) -> XXXX | L97: =IF('[1]Tasa de Falla'!IT97=0,"",'[1]Tasa de Falla'!IT97) -> XXXX | M97: =IF('[1]Tasa de Falla'!IU97=0,"",'[1]Tasa de Falla'!IU97) -> XXXX | N97: =IF('[1]Tasa de Falla'!IV97=0,"",'[1]Tasa de Falla'!IV97) -> XXXX | O97: =IF('[1]Tasa de Falla'!IW97=0,"",'[1]Tasa de Falla'!IW97) -> XXXX | P97: =IF('[1]Tasa de Falla'!IX97=0,"",'[1]Tasa de Falla'!IX97) -> XXXX | Q97: =IF('[1]Tasa de Falla'!IY97=0,"",'[1]Tasa de Falla'!IY97) -> XXXX | R97: =IF('[1]Tasa de Falla'!IZ97=0,"",'[1]Tasa de Falla'!IZ97) -> XXXX
C98: ='[1]Tasa de Falla'!C98 -> 80 | D98: ='[1]Tasa de Falla'!D98 -> BURRUYACU - COBOS | E98: ='[1]Tasa de Falla'!E98 -> 132 | F98: ='[1]Tasa de Falla'!F98 -> 229.5 | G98: =IF('[1]Tasa de Falla'!IO98=0,"",'[1]Tasa de Falla'!IO98) -> XXXX | H98: =IF('[1]Tasa de Falla'!IP98=0,"",'[1]Tasa de Falla'!IP98) -> XXXX | I98: =IF('[1]Tasa de Falla'!IQ98=0,"",'[1]Tasa de Falla'!IQ98) -> XXXX | J98: =IF('[1]Tasa de Falla'!IR98=0,"",'[1]Tasa de Falla'!IR98) -> XXXX | K98: =IF('[1]Tasa de Falla'!IS98=0,"",'[1]Tasa de Falla'!IS98) -> XXXX | L98: =IF('[1]Tasa de Falla'!IT98=0,"",'[1]Tasa de Falla'!IT98) -> XXXX | M98: =IF('[1]Tasa de Falla'!IU98=0,"",'[1]Tasa de Falla'!IU98) -> XXXX | N98: =IF('[1]Tasa de Falla'!IV98=0,"",'[1]Tasa de Falla'!IV98) -> XXXX | O98: =IF('[1]Tasa de Falla'!IW98=0,"",'[1]Tasa de Falla'!IW98) -> XXXX | P98: =IF('[1]Tasa de Falla'!IX98=0,"",'[1]Tasa de Falla'!IX98) -> XXXX | Q98: =IF('[1]Tasa de Falla'!IY98=0,"",'[1]Tasa de Falla'!IY98) -> XXXX | R98: =IF('[1]Tasa de Falla'!IZ98=0,"",'[1]Tasa de Falla'!IZ98) -> XXXX
C99: ='[1]Tasa de Falla'!C99 -> 81 | D99: ='[1]Tasa de Falla'!D99 -> METAN - COBOS | E99: ='[1]Tasa de Falla'!E99 -> 132 | F99: ='[1]Tasa de Falla'!F99 -> 89.2 | G99: =IF('[1]Tasa de Falla'!IO99=0,"",'[1]Tasa de Falla'!IO99) ->  | H99: =IF('[1]Tasa de Falla'!IP99=0,"",'[1]Tasa de Falla'!IP99) ->  | I99: =IF('[1]Tasa de Falla'!IQ99=0,"",'[1]Tasa de Falla'!IQ99) ->  | J99: =IF('[1]Tasa de Falla'!IR99=0,"",'[1]Tasa de Falla'!IR99) ->  | K99: =IF('[1]Tasa de Falla'!IS99=0,"",'[1]Tasa de Falla'!IS99) ->  | L99: =IF('[1]Tasa de Falla'!IT99=0,"",'[1]Tasa de Falla'!IT99) ->  | M99: =IF('[1]Tasa de Falla'!IU99=0,"",'[1]Tasa de Falla'!IU99) ->  | N99: =IF('[1]Tasa de Falla'!IV99=0,"",'[1]Tasa de Falla'!IV99) ->  | O99: =IF('[1]Tasa de Falla'!IW99=0,"",'[1]Tasa de Falla'!IW99) ->  | P99: =IF('[1]Tasa de Falla'!IX99=0,"",'[1]Tasa de Falla'!IX99) ->  | Q99: =IF('[1]Tasa de Falla'!IY99=0,"",'[1]Tasa de Falla'!IY99) ->  | R99: =IF('[1]Tasa de Falla'!IZ99=0,"",'[1]Tasa de Falla'!IZ99) -> 
C100: ='[1]Tasa de Falla'!C100 -> 82 | D100: ='[1]Tasa de Falla'!D100 -> AÑATUYA - BANDERA | E100: ='[1]Tasa de Falla'!E100 -> 132 | F100: ='[1]Tasa de Falla'!F100 -> 76 | G100: =IF('[1]Tasa de Falla'!IO100=0,"",'[1]Tasa de Falla'!IO100) ->  | H100: =IF('[1]Tasa de Falla'!IP100=0,"",'[1]Tasa de Falla'!IP100) ->  | I100: =IF('[1]Tasa de Falla'!IQ100=0,"",'[1]Tasa de Falla'!IQ100) ->  | J100: =IF('[1]Tasa de Falla'!IR100=0,"",'[1]Tasa de Falla'!IR100) ->  | K100: =IF('[1]Tasa de Falla'!IS100=0,"",'[1]Tasa de Falla'!IS100) -> 2 | L100: =IF('[1]Tasa de Falla'!IT100=0,"",'[1]Tasa de Falla'!IT100) ->  | M100: =IF('[1]Tasa de Falla'!IU100=0,"",'[1]Tasa de Falla'!IU100) ->  | N100: =IF('[1]Tasa de Falla'!IV100=0,"",'[1]Tasa de Falla'!IV100) -> 1 | O100: =IF('[1]Tasa de Falla'!IW100=0,"",'[1]Tasa de Falla'!IW100) ->  | P100: =IF('[1]Tasa de Falla'!IX100=0,"",'[1]Tasa de Falla'!IX100) ->  | Q100: =IF('[1]Tasa de Falla'!IY100=0,"",'[1]Tasa de Falla'!IY100) ->  | R100: =IF('[1]Tasa de Falla'!IZ100=0,"",'[1]Tasa de Falla'!IZ100) -> 
C101: ='[1]Tasa de Falla'!C101 -> 84 | D101: ='[1]Tasa de Falla'!D101 -> GÜEMES SALTA - COBOS 1 | E101: ='[1]Tasa de Falla'!E101 -> 132 | F101: ='[1]Tasa de Falla'!F101 -> 12.1 | G101: =IF('[1]Tasa de Falla'!IO101=0,"",'[1]Tasa de Falla'!IO101) ->  | H101: =IF('[1]Tasa de Falla'!IP101=0,"",'[1]Tasa de Falla'!IP101) ->  | I101: =IF('[1]Tasa de Falla'!IQ101=0,"",'[1]Tasa de Falla'!IQ101) ->  | J101: =IF('[1]Tasa de Falla'!IR101=0,"",'[1]Tasa de Falla'!IR101) ->  | K101: =IF('[1]Tasa de Falla'!IS101=0,"",'[1]Tasa de Falla'!IS101) ->  | L101: =IF('[1]Tasa de Falla'!IT101=0,"",'[1]Tasa de Falla'!IT101) ->  | M101: =IF('[1]Tasa de Falla'!IU101=0,"",'[1]Tasa de Falla'!IU101) ->  | N101: =IF('[1]Tasa de Falla'!IV101=0,"",'[1]Tasa de Falla'!IV101) ->  | O101: =IF('[1]Tasa de Falla'!IW101=0,"",'[1]Tasa de Falla'!IW101) ->  | P101: =IF('[1]Tasa de Falla'!IX101=0,"",'[1]Tasa de Falla'!IX101) ->  | Q101: =IF('[1]Tasa de Falla'!IY101=0,"",'[1]Tasa de Falla'!IY101) ->  | R101: =IF('[1]Tasa de Falla'!IZ101=0,"",'[1]Tasa de Falla'!IZ101) -> 
C102: ='[1]Tasa de Falla'!C102 -> 85 | D102: ='[1]Tasa de Falla'!D102 -> GÜEMES SALTA - COBOS 2 | E102: ='[1]Tasa de Falla'!E102 -> 132 | F102: ='[1]Tasa de Falla'!F102 -> 12.1 | G102: =IF('[1]Tasa de Falla'!IO102=0,"",'[1]Tasa de Falla'!IO102) ->  | H102: =IF('[1]Tasa de Falla'!IP102=0,"",'[1]Tasa de Falla'!IP102) ->  | I102: =IF('[1]Tasa de Falla'!IQ102=0,"",'[1]Tasa de Falla'!IQ102) ->  | J102: =IF('[1]Tasa de Falla'!IR102=0,"",'[1]Tasa de Falla'!IR102) ->  | K102: =IF('[1]Tasa de Falla'!IS102=0,"",'[1]Tasa de Falla'!IS102) ->  | L102: =IF('[1]Tasa de Falla'!IT102=0,"",'[1]Tasa de Falla'!IT102) ->  | M102: =IF('[1]Tasa de Falla'!IU102=0,"",'[1]Tasa de Falla'!IU102) ->  | N102: =IF('[1]Tasa de Falla'!IV102=0,"",'[1]Tasa de Falla'!IV102) ->  | O102: =IF('[1]Tasa de Falla'!IW102=0,"",'[1]Tasa de Falla'!IW102) ->  | P102: =IF('[1]Tasa de Falla'!IX102=0,"",'[1]Tasa de Falla'!IX102) ->  | Q102: =IF('[1]Tasa de Falla'!IY102=0,"",'[1]Tasa de Falla'!IY102) ->  | R102: =IF('[1]Tasa de Falla'!IZ102=0,"",'[1]Tasa de Falla'!IZ102) -> 1
C103: ='[1]Tasa de Falla'!C103 -> 86 | D103: ='[1]Tasa de Falla'!D103 -> EL BRACHO - LA BANDA | E103: ='[1]Tasa de Falla'!E103 -> 132 | F103: ='[1]Tasa de Falla'!F103 -> 133.5 | G103: =IF('[1]Tasa de Falla'!IO103=0,"",'[1]Tasa de Falla'!IO103) -> XXXX | H103: =IF('[1]Tasa de Falla'!IP103=0,"",'[1]Tasa de Falla'!IP103) -> XXXX | I103: =IF('[1]Tasa de Falla'!IQ103=0,"",'[1]Tasa de Falla'!IQ103) -> XXXX | J103: =IF('[1]Tasa de Falla'!IR103=0,"",'[1]Tasa de Falla'!IR103) -> XXXX | K103: =IF('[1]Tasa de Falla'!IS103=0,"",'[1]Tasa de Falla'!IS103) -> XXXX | L103: =IF('[1]Tasa de Falla'!IT103=0,"",'[1]Tasa de Falla'!IT103) -> XXXX | M103: =IF('[1]Tasa de Falla'!IU103=0,"",'[1]Tasa de Falla'!IU103) -> XXXX | N103: =IF('[1]Tasa de Falla'!IV103=0,"",'[1]Tasa de Falla'!IV103) -> XXXX | O103: =IF('[1]Tasa de Falla'!IW103=0,"",'[1]Tasa de Falla'!IW103) -> XXXX | P103: =IF('[1]Tasa de Falla'!IX103=0,"",'[1]Tasa de Falla'!IX103) -> XXXX | Q103: =IF('[1]Tasa de Falla'!IY103=0,"",'[1]Tasa de Falla'!IY103) -> XXXX | R103: =IF('[1]Tasa de Falla'!IZ103=0,"",'[1]Tasa de Falla'!IZ103) -> XXXX
C104: ='[1]Tasa de Falla'!C104 -> 87 | D104: ='[1]Tasa de Falla'!D104 -> SANTIAGO OESTE - SANTIAGO SUR | E104: ='[1]Tasa de Falla'!E104 -> 132 | F104: ='[1]Tasa de Falla'!F104 -> 10.6 | G104: =IF('[1]Tasa de Falla'!IO104=0,"",'[1]Tasa de Falla'!IO104) ->  | H104: =IF('[1]Tasa de Falla'!IP104=0,"",'[1]Tasa de Falla'!IP104) ->  | I104: =IF('[1]Tasa de Falla'!IQ104=0,"",'[1]Tasa de Falla'!IQ104) ->  | J104: =IF('[1]Tasa de Falla'!IR104=0,"",'[1]Tasa de Falla'!IR104) ->  | K104: =IF('[1]Tasa de Falla'!IS104=0,"",'[1]Tasa de Falla'!IS104) -> 1 | L104: =IF('[1]Tasa de Falla'!IT104=0,"",'[1]Tasa de Falla'!IT104) ->  | M104: =IF('[1]Tasa de Falla'!IU104=0,"",'[1]Tasa de Falla'!IU104) ->  | N104: =IF('[1]Tasa de Falla'!IV104=0,"",'[1]Tasa de Falla'!IV104) ->  | O104: =IF('[1]Tasa de Falla'!IW104=0,"",'[1]Tasa de Falla'!IW104) ->  | P104: =IF('[1]Tasa de Falla'!IX104=0,"",'[1]Tasa de Falla'!IX104) ->  | Q104: =IF('[1]Tasa de Falla'!IY104=0,"",'[1]Tasa de Falla'!IY104) ->  | R104: =IF('[1]Tasa de Falla'!IZ104=0,"",'[1]Tasa de Falla'!IZ104) -> 
C105: ='[1]Tasa de Falla'!C105 -> 88 | D105: ='[1]Tasa de Falla'!D105 -> SANTIAGO SUR - SANTIAGO CENTRO | E105: ='[1]Tasa de Falla'!E105 -> 132 | F105: ='[1]Tasa de Falla'!F105 -> 4 | G105: =IF('[1]Tasa de Falla'!IO105=0,"",'[1]Tasa de Falla'!IO105) ->  | H105: =IF('[1]Tasa de Falla'!IP105=0,"",'[1]Tasa de Falla'!IP105) ->  | I105: =IF('[1]Tasa de Falla'!IQ105=0,"",'[1]Tasa de Falla'!IQ105) ->  | J105: =IF('[1]Tasa de Falla'!IR105=0,"",'[1]Tasa de Falla'!IR105) ->  | K105: =IF('[1]Tasa de Falla'!IS105=0,"",'[1]Tasa de Falla'!IS105) ->  | L105: =IF('[1]Tasa de Falla'!IT105=0,"",'[1]Tasa de Falla'!IT105) ->  | M105: =IF('[1]Tasa de Falla'!IU105=0,"",'[1]Tasa de Falla'!IU105) ->  | N105: =IF('[1]Tasa de Falla'!IV105=0,"",'[1]Tasa de Falla'!IV105) ->  | O105: =IF('[1]Tasa de Falla'!IW105=0,"",'[1]Tasa de Falla'!IW105) ->  | P105: =IF('[1]Tasa de Falla'!IX105=0,"",'[1]Tasa de Falla'!IX105) ->  | Q105: =IF('[1]Tasa de Falla'!IY105=0,"",'[1]Tasa de Falla'!IY105) ->  | R105: =IF('[1]Tasa de Falla'!IZ105=0,"",'[1]Tasa de Falla'!IZ105) -> 
C106: ='[1]Tasa de Falla'!C106 -> 89 | D106: ='[1]Tasa de Falla'!D106 -> C.H. RIO HONDO - SANTIAGO OESTE | E106: ='[1]Tasa de Falla'!E106 -> 132 | F106: ='[1]Tasa de Falla'!F106 -> 69.8 | G106: =IF('[1]Tasa de Falla'!IO106=0,"",'[1]Tasa de Falla'!IO106) ->  | H106: =IF('[1]Tasa de Falla'!IP106=0,"",'[1]Tasa de Falla'!IP106) ->  | I106: =IF('[1]Tasa de Falla'!IQ106=0,"",'[1]Tasa de Falla'!IQ106) ->  | J106: =IF('[1]Tasa de Falla'!IR106=0,"",'[1]Tasa de Falla'!IR106) ->  | K106: =IF('[1]Tasa de Falla'!IS106=0,"",'[1]Tasa de Falla'!IS106) -> 1 | L106: =IF('[1]Tasa de Falla'!IT106=0,"",'[1]Tasa de Falla'!IT106) ->  | M106: =IF('[1]Tasa de Falla'!IU106=0,"",'[1]Tasa de Falla'!IU106) ->  | N106: =IF('[1]Tasa de Falla'!IV106=0,"",'[1]Tasa de Falla'!IV106) ->  | O106: =IF('[1]Tasa de Falla'!IW106=0,"",'[1]Tasa de Falla'!IW106) ->  | P106: =IF('[1]Tasa de Falla'!IX106=0,"",'[1]Tasa de Falla'!IX106) ->  | Q106: =IF('[1]Tasa de Falla'!IY106=0,"",'[1]Tasa de Falla'!IY106) ->  | R106: =IF('[1]Tasa de Falla'!IZ106=0,"",'[1]Tasa de Falla'!IZ106) -> 
C107: ='[1]Tasa de Falla'!C107 -> 90 | D107: ='[1]Tasa de Falla'!D107 -> GÜEMES - MINETTI | E107: ='[1]Tasa de Falla'!E107 -> 132 | F107: ='[1]Tasa de Falla'!F107 -> 36.1 | G107: =IF('[1]Tasa de Falla'!IO107=0,"",'[1]Tasa de Falla'!IO107) ->  | H107: =IF('[1]Tasa de Falla'!IP107=0,"",'[1]Tasa de Falla'!IP107) ->  | I107: =IF('[1]Tasa de Falla'!IQ107=0,"",'[1]Tasa de Falla'!IQ107) ->  | J107: =IF('[1]Tasa de Falla'!IR107=0,"",'[1]Tasa de Falla'!IR107) ->  | K107: =IF('[1]Tasa de Falla'!IS107=0,"",'[1]Tasa de Falla'!IS107) ->  | L107: =IF('[1]Tasa de Falla'!IT107=0,"",'[1]Tasa de Falla'!IT107) ->  | M107: =IF('[1]Tasa de Falla'!IU107=0,"",'[1]Tasa de Falla'!IU107) ->  | N107: =IF('[1]Tasa de Falla'!IV107=0,"",'[1]Tasa de Falla'!IV107) ->  | O107: =IF('[1]Tasa de Falla'!IW107=0,"",'[1]Tasa de Falla'!IW107) -> 2 | P107: =IF('[1]Tasa de Falla'!IX107=0,"",'[1]Tasa de Falla'!IX107) -> 3 | Q107: =IF('[1]Tasa de Falla'!IY107=0,"",'[1]Tasa de Falla'!IY107) ->  | R107: =IF('[1]Tasa de Falla'!IZ107=0,"",'[1]Tasa de Falla'!IZ107) -> 
C108: ='[1]Tasa de Falla'!C108 -> 91 | D108: ='[1]Tasa de Falla'!D108 -> GÜEMES - SALTA NORTE | E108: ='[1]Tasa de Falla'!E108 -> 132 | F108: ='[1]Tasa de Falla'!F108 -> 38.97 | G108: =IF('[1]Tasa de Falla'!IO108=0,"",'[1]Tasa de Falla'!IO108) ->  | H108: =IF('[1]Tasa de Falla'!IP108=0,"",'[1]Tasa de Falla'!IP108) ->  | I108: =IF('[1]Tasa de Falla'!IQ108=0,"",'[1]Tasa de Falla'!IQ108) -> 1 | J108: =IF('[1]Tasa de Falla'!IR108=0,"",'[1]Tasa de Falla'!IR108) ->  | K108: =IF('[1]Tasa de Falla'!IS108=0,"",'[1]Tasa de Falla'!IS108) ->  | L108: =IF('[1]Tasa de Falla'!IT108=0,"",'[1]Tasa de Falla'!IT108) ->  | M108: =IF('[1]Tasa de Falla'!IU108=0,"",'[1]Tasa de Falla'!IU108) ->  | N108: =IF('[1]Tasa de Falla'!IV108=0,"",'[1]Tasa de Falla'!IV108) ->  | O108: =IF('[1]Tasa de Falla'!IW108=0,"",'[1]Tasa de Falla'!IW108) ->  | P108: =IF('[1]Tasa de Falla'!IX108=0,"",'[1]Tasa de Falla'!IX108) ->  | Q108: =IF('[1]Tasa de Falla'!IY108=0,"",'[1]Tasa de Falla'!IY108) ->  | R108: =IF('[1]Tasa de Falla'!IZ108=0,"",'[1]Tasa de Falla'!IZ108) -> 
C109: ='[1]Tasa de Falla'!C109 -> 92 | D109: ='[1]Tasa de Falla'!D109 -> BURRUYACU - R. DE LA FRONTERA | E109: ='[1]Tasa de Falla'!E109 -> 132 | F109: ='[1]Tasa de Falla'!F109 -> 99.1 | G109: =IF('[1]Tasa de Falla'!IO109=0,"",'[1]Tasa de Falla'!IO109) ->  | H109: =IF('[1]Tasa de Falla'!IP109=0,"",'[1]Tasa de Falla'!IP109) ->  | I109: =IF('[1]Tasa de Falla'!IQ109=0,"",'[1]Tasa de Falla'!IQ109) ->  | J109: =IF('[1]Tasa de Falla'!IR109=0,"",'[1]Tasa de Falla'!IR109) ->  | K109: =IF('[1]Tasa de Falla'!IS109=0,"",'[1]Tasa de Falla'!IS109) ->  | L109: =IF('[1]Tasa de Falla'!IT109=0,"",'[1]Tasa de Falla'!IT109) ->  | M109: =IF('[1]Tasa de Falla'!IU109=0,"",'[1]Tasa de Falla'!IU109) ->  | N109: =IF('[1]Tasa de Falla'!IV109=0,"",'[1]Tasa de Falla'!IV109) ->  | O109: =IF('[1]Tasa de Falla'!IW109=0,"",'[1]Tasa de Falla'!IW109) ->  | P109: =IF('[1]Tasa de Falla'!IX109=0,"",'[1]Tasa de Falla'!IX109) ->  | Q109: =IF('[1]Tasa de Falla'!IY109=0,"",'[1]Tasa de Falla'!IY109) ->  | R109: =IF('[1]Tasa de Falla'!IZ109=0,"",'[1]Tasa de Falla'!IZ109) -> 
C110: ='[1]Tasa de Falla'!C110 -> 93 | D110: ='[1]Tasa de Falla'!D110 -> R. DE LA FRONTERA - COBOS | E110: ='[1]Tasa de Falla'!E110 -> 132 | F110: ='[1]Tasa de Falla'!F110 -> 130.4 | G110: =IF('[1]Tasa de Falla'!IO110=0,"",'[1]Tasa de Falla'!IO110) ->  | H110: =IF('[1]Tasa de Falla'!IP110=0,"",'[1]Tasa de Falla'!IP110) ->  | I110: =IF('[1]Tasa de Falla'!IQ110=0,"",'[1]Tasa de Falla'!IQ110) ->  | J110: =IF('[1]Tasa de Falla'!IR110=0,"",'[1]Tasa de Falla'!IR110) ->  | K110: =IF('[1]Tasa de Falla'!IS110=0,"",'[1]Tasa de Falla'!IS110) ->  | L110: =IF('[1]Tasa de Falla'!IT110=0,"",'[1]Tasa de Falla'!IT110) -> 1 | M110: =IF('[1]Tasa de Falla'!IU110=0,"",'[1]Tasa de Falla'!IU110) ->  | N110: =IF('[1]Tasa de Falla'!IV110=0,"",'[1]Tasa de Falla'!IV110) ->  | O110: =IF('[1]Tasa de Falla'!IW110=0,"",'[1]Tasa de Falla'!IW110) ->  | P110: =IF('[1]Tasa de Falla'!IX110=0,"",'[1]Tasa de Falla'!IX110) ->  | Q110: =IF('[1]Tasa de Falla'!IY110=0,"",'[1]Tasa de Falla'!IY110) ->  | R110: =IF('[1]Tasa de Falla'!IZ110=0,"",'[1]Tasa de Falla'!IZ110) -> 
C111: ='[1]Tasa de Falla'!C111 -> 94 | D111: ='[1]Tasa de Falla'!D111 -> J.V. GONZALEZ - APOLINARIO SARAVIA | E111: ='[1]Tasa de Falla'!E111 -> 132 | F111: ='[1]Tasa de Falla'!F111 -> 94 | G111: =IF('[1]Tasa de Falla'!IO111=0,"",'[1]Tasa de Falla'!IO111) ->  | H111: =IF('[1]Tasa de Falla'!IP111=0,"",'[1]Tasa de Falla'!IP111) ->  | I111: =IF('[1]Tasa de Falla'!IQ111=0,"",'[1]Tasa de Falla'!IQ111) ->  | J111: =IF('[1]Tasa de Falla'!IR111=0,"",'[1]Tasa de Falla'!IR111) ->  | K111: =IF('[1]Tasa de Falla'!IS111=0,"",'[1]Tasa de Falla'!IS111) ->  | L111: =IF('[1]Tasa de Falla'!IT111=0,"",'[1]Tasa de Falla'!IT111) ->  | M111: =IF('[1]Tasa de Falla'!IU111=0,"",'[1]Tasa de Falla'!IU111) ->  | N111: =IF('[1]Tasa de Falla'!IV111=0,"",'[1]Tasa de Falla'!IV111) ->  | O111: =IF('[1]Tasa de Falla'!IW111=0,"",'[1]Tasa de Falla'!IW111) ->  | P111: =IF('[1]Tasa de Falla'!IX111=0,"",'[1]Tasa de Falla'!IX111) ->  | Q111: =IF('[1]Tasa de Falla'!IY111=0,"",'[1]Tasa de Falla'!IY111) ->  | R111: =IF('[1]Tasa de Falla'!IZ111=0,"",'[1]Tasa de Falla'!IZ111) -> 
C112: ='[1]Tasa de Falla'!C112 -> 95 | D112: ='[1]Tasa de Falla'!D112 -> ANDALGALA - SAULIL | E112: ='[1]Tasa de Falla'!E112 -> 132 | F112: ='[1]Tasa de Falla'!F112 -> 76 | G112: =IF('[1]Tasa de Falla'!IO112=0,"",'[1]Tasa de Falla'!IO112) ->  | H112: =IF('[1]Tasa de Falla'!IP112=0,"",'[1]Tasa de Falla'!IP112) ->  | I112: =IF('[1]Tasa de Falla'!IQ112=0,"",'[1]Tasa de Falla'!IQ112) -> 1 | J112: =IF('[1]Tasa de Falla'!IR112=0,"",'[1]Tasa de Falla'!IR112) ->  | K112: =IF('[1]Tasa de Falla'!IS112=0,"",'[1]Tasa de Falla'!IS112) ->  | L112: =IF('[1]Tasa de Falla'!IT112=0,"",'[1]Tasa de Falla'!IT112) ->  | M112: =IF('[1]Tasa de Falla'!IU112=0,"",'[1]Tasa de Falla'!IU112) ->  | N112: =IF('[1]Tasa de Falla'!IV112=0,"",'[1]Tasa de Falla'!IV112) ->  | O112: =IF('[1]Tasa de Falla'!IW112=0,"",'[1]Tasa de Falla'!IW112) ->  | P112: =IF('[1]Tasa de Falla'!IX112=0,"",'[1]Tasa de Falla'!IX112) ->  | Q112: =IF('[1]Tasa de Falla'!IY112=0,"",'[1]Tasa de Falla'!IY112) ->  | R112: =IF('[1]Tasa de Falla'!IZ112=0,"",'[1]Tasa de Falla'!IZ112) -> 
C113: ='[1]Tasa de Falla'!C113 -> 96 | D113: ='[1]Tasa de Falla'!D113 -> SANTIAGO OESTE - SANT. SUR - SANT. CENTRO | E113: ='[1]Tasa de Falla'!E113 -> 132 | F113: ='[1]Tasa de Falla'!F113 -> 14.6 | G113: =IF('[1]Tasa de Falla'!IO113=0,"",'[1]Tasa de Falla'!IO113) -> XXXX | H113: =IF('[1]Tasa de Falla'!IP113=0,"",'[1]Tasa de Falla'!IP113) -> XXXX | I113: =IF('[1]Tasa de Falla'!IQ113=0,"",'[1]Tasa de Falla'!IQ113) -> XXXX | J113: =IF('[1]Tasa de Falla'!IR113=0,"",'[1]Tasa de Falla'!IR113) -> XXXX | K113: =IF('[1]Tasa de Falla'!IS113=0,"",'[1]Tasa de Falla'!IS113) -> XXXX | L113: =IF('[1]Tasa de Falla'!IT113=0,"",'[1]Tasa de Falla'!IT113) -> XXXX | M113: =IF('[1]Tasa de Falla'!IU113=0,"",'[1]Tasa de Falla'!IU113) -> XXXX | N113: =IF('[1]Tasa de Falla'!IV113=0,"",'[1]Tasa de Falla'!IV113) -> XXXX | O113: =IF('[1]Tasa de Falla'!IW113=0,"",'[1]Tasa de Falla'!IW113) -> XXXX | P113: =IF('[1]Tasa de Falla'!IX113=0,"",'[1]Tasa de Falla'!IX113) -> XXXX | Q113: =IF('[1]Tasa de Falla'!IY113=0,"",'[1]Tasa de Falla'!IY113) -> XXXX | R113: =IF('[1]Tasa de Falla'!IZ113=0,"",'[1]Tasa de Falla'!IZ113) -> XXXX
C114: ='[1]Tasa de Falla'!C114 -> 97 | D114: ='[1]Tasa de Falla'!D114 -> SUNCHO CORRAL - QUIMILI | E114: ='[1]Tasa de Falla'!E114 -> 132 | F114: ='[1]Tasa de Falla'!F114 -> 108 | G114: =IF('[1]Tasa de Falla'!IO114=0,"",'[1]Tasa de Falla'!IO114) ->  | H114: =IF('[1]Tasa de Falla'!IP114=0,"",'[1]Tasa de Falla'!IP114) ->  | I114: =IF('[1]Tasa de Falla'!IQ114=0,"",'[1]Tasa de Falla'!IQ114) ->  | J114: =IF('[1]Tasa de Falla'!IR114=0,"",'[1]Tasa de Falla'!IR114) ->  | K114: =IF('[1]Tasa de Falla'!IS114=0,"",'[1]Tasa de Falla'!IS114) ->  | L114: =IF('[1]Tasa de Falla'!IT114=0,"",'[1]Tasa de Falla'!IT114) ->  | M114: =IF('[1]Tasa de Falla'!IU114=0,"",'[1]Tasa de Falla'!IU114) ->  | N114: =IF('[1]Tasa de Falla'!IV114=0,"",'[1]Tasa de Falla'!IV114) ->  | O114: =IF('[1]Tasa de Falla'!IW114=0,"",'[1]Tasa de Falla'!IW114) ->  | P114: =IF('[1]Tasa de Falla'!IX114=0,"",'[1]Tasa de Falla'!IX114) ->  | Q114: =IF('[1]Tasa de Falla'!IY114=0,"",'[1]Tasa de Falla'!IY114) ->  | R114: =IF('[1]Tasa de Falla'!IZ114=0,"",'[1]Tasa de Falla'!IZ114) -> 
C115: ='[1]Tasa de Falla'!C115 -> 98 | D115: ='[1]Tasa de Falla'!D115 -> EL BRACHO - LA BANDA ESTE | E115: ='[1]Tasa de Falla'!E115 -> 132 | F115: ='[1]Tasa de Falla'!F115 -> 140.9 | G115: =IF('[1]Tasa de Falla'!IO115=0,"",'[1]Tasa de Falla'!IO115) ->  | H115: =IF('[1]Tasa de Falla'!IP115=0,"",'[1]Tasa de Falla'!IP115) ->  | I115: =IF('[1]Tasa de Falla'!IQ115=0,"",'[1]Tasa de Falla'!IQ115) ->  | J115: =IF('[1]Tasa de Falla'!IR115=0,"",'[1]Tasa de Falla'!IR115) ->  | K115: =IF('[1]Tasa de Falla'!IS115=0,"",'[1]Tasa de Falla'!IS115) ->  | L115: =IF('[1]Tasa de Falla'!IT115=0,"",'[1]Tasa de Falla'!IT115) -> 1 | M115: =IF('[1]Tasa de Falla'!IU115=0,"",'[1]Tasa de Falla'!IU115) ->  | N115: =IF('[1]Tasa de Falla'!IV115=0,"",'[1]Tasa de Falla'!IV115) -> 1 | O115: =IF('[1]Tasa de Falla'!IW115=0,"",'[1]Tasa de Falla'!IW115) ->  | P115: =IF('[1]Tasa de Falla'!IX115=0,"",'[1]Tasa de Falla'!IX115) ->  | Q115: =IF('[1]Tasa de Falla'!IY115=0,"",'[1]Tasa de Falla'!IY115) ->  | R115: =IF('[1]Tasa de Falla'!IZ115=0,"",'[1]Tasa de Falla'!IZ115) -> 
C116: ='[1]Tasa de Falla'!C116 -> 99 | D116: ='[1]Tasa de Falla'!D116 -> LA BANDA ESTE - LA BANDA | E116: ='[1]Tasa de Falla'!E116 -> 132 | F116: ='[1]Tasa de Falla'!F116 -> 16.2 | G116: =IF('[1]Tasa de Falla'!IO116=0,"",'[1]Tasa de Falla'!IO116) ->  | H116: =IF('[1]Tasa de Falla'!IP116=0,"",'[1]Tasa de Falla'!IP116) ->  | I116: =IF('[1]Tasa de Falla'!IQ116=0,"",'[1]Tasa de Falla'!IQ116) ->  | J116: =IF('[1]Tasa de Falla'!IR116=0,"",'[1]Tasa de Falla'!IR116) ->  | K116: =IF('[1]Tasa de Falla'!IS116=0,"",'[1]Tasa de Falla'!IS116) ->  | L116: =IF('[1]Tasa de Falla'!IT116=0,"",'[1]Tasa de Falla'!IT116) ->  | M116: =IF('[1]Tasa de Falla'!IU116=0,"",'[1]Tasa de Falla'!IU116) ->  | N116: =IF('[1]Tasa de Falla'!IV116=0,"",'[1]Tasa de Falla'!IV116) ->  | O116: =IF('[1]Tasa de Falla'!IW116=0,"",'[1]Tasa de Falla'!IW116) ->  | P116: =IF('[1]Tasa de Falla'!IX116=0,"",'[1]Tasa de Falla'!IX116) ->  | Q116: =IF('[1]Tasa de Falla'!IY116=0,"",'[1]Tasa de Falla'!IY116) ->  | R116: =IF('[1]Tasa de Falla'!IZ116=0,"",'[1]Tasa de Falla'!IZ116) -> 
C117: ='[1]Tasa de Falla'!C117 -> 100 | D117: ='[1]Tasa de Falla'!D117 -> TABACAL - PICHANAL | E117: ='[1]Tasa de Falla'!E117 -> 132 | F117: ='[1]Tasa de Falla'!F117 -> 7 | G117: =IF('[1]Tasa de Falla'!IO117=0,"",'[1]Tasa de Falla'!IO117) ->  | H117: =IF('[1]Tasa de Falla'!IP117=0,"",'[1]Tasa de Falla'!IP117) ->  | I117: =IF('[1]Tasa de Falla'!IQ117=0,"",'[1]Tasa de Falla'!IQ117) ->  | J117: =IF('[1]Tasa de Falla'!IR117=0,"",'[1]Tasa de Falla'!IR117) ->  | K117: =IF('[1]Tasa de Falla'!IS117=0,"",'[1]Tasa de Falla'!IS117) ->  | L117: =IF('[1]Tasa de Falla'!IT117=0,"",'[1]Tasa de Falla'!IT117) ->  | M117: =IF('[1]Tasa de Falla'!IU117=0,"",'[1]Tasa de Falla'!IU117) ->  | N117: =IF('[1]Tasa de Falla'!IV117=0,"",'[1]Tasa de Falla'!IV117) ->  | O117: =IF('[1]Tasa de Falla'!IW117=0,"",'[1]Tasa de Falla'!IW117) ->  | P117: =IF('[1]Tasa de Falla'!IX117=0,"",'[1]Tasa de Falla'!IX117) ->  | Q117: =IF('[1]Tasa de Falla'!IY117=0,"",'[1]Tasa de Falla'!IY117) ->  | R117: =IF('[1]Tasa de Falla'!IZ117=0,"",'[1]Tasa de Falla'!IZ117) -> 
C118: ='[1]Tasa de Falla'!C118 -> 101 | D118: ='[1]Tasa de Falla'!D118 -> ORAN - TABACAL | E118: ='[1]Tasa de Falla'!E118 -> 132 | F118: ='[1]Tasa de Falla'!F118 -> 10 | G118: =IF('[1]Tasa de Falla'!IO118=0,"",'[1]Tasa de Falla'!IO118) ->  | H118: =IF('[1]Tasa de Falla'!IP118=0,"",'[1]Tasa de Falla'!IP118) ->  | I118: =IF('[1]Tasa de Falla'!IQ118=0,"",'[1]Tasa de Falla'!IQ118) ->  | J118: =IF('[1]Tasa de Falla'!IR118=0,"",'[1]Tasa de Falla'!IR118) ->  | K118: =IF('[1]Tasa de Falla'!IS118=0,"",'[1]Tasa de Falla'!IS118) ->  | L118: =IF('[1]Tasa de Falla'!IT118=0,"",'[1]Tasa de Falla'!IT118) ->  | M118: =IF('[1]Tasa de Falla'!IU118=0,"",'[1]Tasa de Falla'!IU118) ->  | N118: =IF('[1]Tasa de Falla'!IV118=0,"",'[1]Tasa de Falla'!IV118) ->  | O118: =IF('[1]Tasa de Falla'!IW118=0,"",'[1]Tasa de Falla'!IW118) ->  | P118: =IF('[1]Tasa de Falla'!IX118=0,"",'[1]Tasa de Falla'!IX118) ->  | Q118: =IF('[1]Tasa de Falla'!IY118=0,"",'[1]Tasa de Falla'!IY118) -> 1 | R118: =IF('[1]Tasa de Falla'!IZ118=0,"",'[1]Tasa de Falla'!IZ118) -> 
C119: ='[1]Tasa de Falla'!C119 -> 102 | D119: ='[1]Tasa de Falla'!D119 -> MONTE QUEMADO -COPO - QUIMILI | E119: ='[1]Tasa de Falla'!E119 -> 132 | F119: ='[1]Tasa de Falla'!F119 -> 218 | G119: =IF('[1]Tasa de Falla'!IO119=0,"",'[1]Tasa de Falla'!IO119) ->  | H119: =IF('[1]Tasa de Falla'!IP119=0,"",'[1]Tasa de Falla'!IP119) ->  | I119: =IF('[1]Tasa de Falla'!IQ119=0,"",'[1]Tasa de Falla'!IQ119) ->  | J119: =IF('[1]Tasa de Falla'!IR119=0,"",'[1]Tasa de Falla'!IR119) ->  | K119: =IF('[1]Tasa de Falla'!IS119=0,"",'[1]Tasa de Falla'!IS119) ->  | L119: =IF('[1]Tasa de Falla'!IT119=0,"",'[1]Tasa de Falla'!IT119) -> 1 | M119: =IF('[1]Tasa de Falla'!IU119=0,"",'[1]Tasa de Falla'!IU119) ->  | N119: =IF('[1]Tasa de Falla'!IV119=0,"",'[1]Tasa de Falla'!IV119) ->  | O119: =IF('[1]Tasa de Falla'!IW119=0,"",'[1]Tasa de Falla'!IW119) ->  | P119: =IF('[1]Tasa de Falla'!IX119=0,"",'[1]Tasa de Falla'!IX119) ->  | Q119: =IF('[1]Tasa de Falla'!IY119=0,"",'[1]Tasa de Falla'!IY119) ->  | R119: =IF('[1]Tasa de Falla'!IZ119=0,"",'[1]Tasa de Falla'!IZ119) -> 
C120: ='[1]Tasa de Falla'!C120 -> 103 | D120: ='[1]Tasa de Falla'!D120 -> PI. CIRCUNVALACIÓN - LARIOJA N. 1 | E120: ='[1]Tasa de Falla'!E120 -> 132 | F120: ='[1]Tasa de Falla'!F120 -> 16.65 | G120: =IF('[1]Tasa de Falla'!IO120=0,"",'[1]Tasa de Falla'!IO120) -> XXXX | H120: =IF('[1]Tasa de Falla'!IP120=0,"",'[1]Tasa de Falla'!IP120) ->  | I120: =IF('[1]Tasa de Falla'!IQ120=0,"",'[1]Tasa de Falla'!IQ120) ->  | J120: =IF('[1]Tasa de Falla'!IR120=0,"",'[1]Tasa de Falla'!IR120) ->  | K120: =IF('[1]Tasa de Falla'!IS120=0,"",'[1]Tasa de Falla'!IS120) -> 1 | L120: =IF('[1]Tasa de Falla'!IT120=0,"",'[1]Tasa de Falla'!IT120) ->  | M120: =IF('[1]Tasa de Falla'!IU120=0,"",'[1]Tasa de Falla'!IU120) ->  | N120: =IF('[1]Tasa de Falla'!IV120=0,"",'[1]Tasa de Falla'!IV120) ->  | O120: =IF('[1]Tasa de Falla'!IW120=0,"",'[1]Tasa de Falla'!IW120) ->  | P120: =IF('[1]Tasa de Falla'!IX120=0,"",'[1]Tasa de Falla'!IX120) ->  | Q120: =IF('[1]Tasa de Falla'!IY120=0,"",'[1]Tasa de Falla'!IY120) ->  | R120: =IF('[1]Tasa de Falla'!IZ120=0,"",'[1]Tasa de Falla'!IZ120) -> 
C121: ='[1]Tasa de Falla'!C121 -> 104 | D121: ='[1]Tasa de Falla'!D121 -> PATQUIA NONOGASTA 132 1 | E121: ='[1]Tasa de Falla'!E121 -> 132 | F121: ='[1]Tasa de Falla'!F121 -> 108.3 | G121: =IF('[1]Tasa de Falla'!IO121=0,"",'[1]Tasa de Falla'!IO121) -> XXXX | H121: =IF('[1]Tasa de Falla'!IP121=0,"",'[1]Tasa de Falla'!IP121) ->  | I121: =IF('[1]Tasa de Falla'!IQ121=0,"",'[1]Tasa de Falla'!IQ121) ->  | J121: =IF('[1]Tasa de Falla'!IR121=0,"",'[1]Tasa de Falla'!IR121) ->  | K121: =IF('[1]Tasa de Falla'!IS121=0,"",'[1]Tasa de Falla'!IS121) ->  | L121: =IF('[1]Tasa de Falla'!IT121=0,"",'[1]Tasa de Falla'!IT121) ->  | M121: =IF('[1]Tasa de Falla'!IU121=0,"",'[1]Tasa de Falla'!IU121) ->  | N121: =IF('[1]Tasa de Falla'!IV121=0,"",'[1]Tasa de Falla'!IV121) ->  | O121: =IF('[1]Tasa de Falla'!IW121=0,"",'[1]Tasa de Falla'!IW121) ->  | P121: =IF('[1]Tasa de Falla'!IX121=0,"",'[1]Tasa de Falla'!IX121) ->  | Q121: =IF('[1]Tasa de Falla'!IY121=0,"",'[1]Tasa de Falla'!IY121) ->  | R121: =IF('[1]Tasa de Falla'!IZ121=0,"",'[1]Tasa de Falla'!IZ121) -> 
C122: ='[1]Tasa de Falla'!C122 -> 105 | D122: ='[1]Tasa de Falla'!D122 -> NONOGASTA - VILLA UNION 132 1 | E122: ='[1]Tasa de Falla'!E122 -> 132 | F122: ='[1]Tasa de Falla'!F122 -> 82.1 | G122: =IF('[1]Tasa de Falla'!IO122=0,"",'[1]Tasa de Falla'!IO122) -> XXXX | H122: =IF('[1]Tasa de Falla'!IP122=0,"",'[1]Tasa de Falla'!IP122) ->  | I122: =IF('[1]Tasa de Falla'!IQ122=0,"",'[1]Tasa de Falla'!IQ122) ->  | J122: =IF('[1]Tasa de Falla'!IR122=0,"",'[1]Tasa de Falla'!IR122) ->  | K122: =IF('[1]Tasa de Falla'!IS122=0,"",'[1]Tasa de Falla'!IS122) ->  | L122: =IF('[1]Tasa de Falla'!IT122=0,"",'[1]Tasa de Falla'!IT122) ->  | M122: =IF('[1]Tasa de Falla'!IU122=0,"",'[1]Tasa de Falla'!IU122) ->  | N122: =IF('[1]Tasa de Falla'!IV122=0,"",'[1]Tasa de Falla'!IV122) ->  | O122: =IF('[1]Tasa de Falla'!IW122=0,"",'[1]Tasa de Falla'!IW122) ->  | P122: =IF('[1]Tasa de Falla'!IX122=0,"",'[1]Tasa de Falla'!IX122) ->  | Q122: =IF('[1]Tasa de Falla'!IY122=0,"",'[1]Tasa de Falla'!IY122) ->  | R122: =IF('[1]Tasa de Falla'!IZ122=0,"",'[1]Tasa de Falla'!IZ122) -> 
C123: ='[1]Tasa de Falla'!C123 -> 106 | D123: ='[1]Tasa de Falla'!D123 -> ARAUCO - AIMOGASTA 132 1 | E123: ='[1]Tasa de Falla'!E123 -> 132 | F123: ='[1]Tasa de Falla'!F123 -> 20 | G123: =IF('[1]Tasa de Falla'!IO123=0,"",'[1]Tasa de Falla'!IO123) -> XXXX | H123: =IF('[1]Tasa de Falla'!IP123=0,"",'[1]Tasa de Falla'!IP123) ->  | I123: =IF('[1]Tasa de Falla'!IQ123=0,"",'[1]Tasa de Falla'!IQ123) ->  | J123: =IF('[1]Tasa de Falla'!IR123=0,"",'[1]Tasa de Falla'!IR123) ->  | K123: =IF('[1]Tasa de Falla'!IS123=0,"",'[1]Tasa de Falla'!IS123) ->  | L123: =IF('[1]Tasa de Falla'!IT123=0,"",'[1]Tasa de Falla'!IT123) ->  | M123: =IF('[1]Tasa de Falla'!IU123=0,"",'[1]Tasa de Falla'!IU123) ->  | N123: =IF('[1]Tasa de Falla'!IV123=0,"",'[1]Tasa de Falla'!IV123) ->  | O123: =IF('[1]Tasa de Falla'!IW123=0,"",'[1]Tasa de Falla'!IW123) ->  | P123: =IF('[1]Tasa de Falla'!IX123=0,"",'[1]Tasa de Falla'!IX123) ->  | Q123: =IF('[1]Tasa de Falla'!IY123=0,"",'[1]Tasa de Falla'!IY123) ->  | R123: =IF('[1]Tasa de Falla'!IZ123=0,"",'[1]Tasa de Falla'!IZ123) -> 
C124: ='[1]Tasa de Falla'!C124 -> 107 | D124: ='[1]Tasa de Falla'!D124 -> PATQUIA - CHAMICAL 132 1 | E124: ='[1]Tasa de Falla'!E124 -> 132 | F124: ='[1]Tasa de Falla'!F124 -> 67.4 | G124: =IF('[1]Tasa de Falla'!IO124=0,"",'[1]Tasa de Falla'!IO124) -> XXXX | H124: =IF('[1]Tasa de Falla'!IP124=0,"",'[1]Tasa de Falla'!IP124) -> 1 | I124: =IF('[1]Tasa de Falla'!IQ124=0,"",'[1]Tasa de Falla'!IQ124) ->  | J124: =IF('[1]Tasa de Falla'!IR124=0,"",'[1]Tasa de Falla'!IR124) ->  | K124: =IF('[1]Tasa de Falla'!IS124=0,"",'[1]Tasa de Falla'!IS124) ->  | L124: =IF('[1]Tasa de Falla'!IT124=0,"",'[1]Tasa de Falla'!IT124) ->  | M124: =IF('[1]Tasa de Falla'!IU124=0,"",'[1]Tasa de Falla'!IU124) ->  | N124: =IF('[1]Tasa de Falla'!IV124=0,"",'[1]Tasa de Falla'!IV124) ->  | O124: =IF('[1]Tasa de Falla'!IW124=0,"",'[1]Tasa de Falla'!IW124) ->  | P124: =IF('[1]Tasa de Falla'!IX124=0,"",'[1]Tasa de Falla'!IX124) ->  | Q124: =IF('[1]Tasa de Falla'!IY124=0,"",'[1]Tasa de Falla'!IY124) ->  | R124: =IF('[1]Tasa de Falla'!IZ124=0,"",'[1]Tasa de Falla'!IZ124) -> 
C125: ='[1]Tasa de Falla'!C125 -> 108 | D125: ='[1]Tasa de Falla'!D125 -> LA RIOJA - ARAUCO 132 1 | E125: ='[1]Tasa de Falla'!E125 -> 132 | F125: ='[1]Tasa de Falla'!F125 -> 84.3 | G125: =IF('[1]Tasa de Falla'!IO125=0,"",'[1]Tasa de Falla'!IO125) -> XXXX | H125: =IF('[1]Tasa de Falla'!IP125=0,"",'[1]Tasa de Falla'!IP125) ->  | I125: =IF('[1]Tasa de Falla'!IQ125=0,"",'[1]Tasa de Falla'!IQ125) ->  | J125: =IF('[1]Tasa de Falla'!IR125=0,"",'[1]Tasa de Falla'!IR125) ->  | K125: =IF('[1]Tasa de Falla'!IS125=0,"",'[1]Tasa de Falla'!IS125) ->  | L125: =IF('[1]Tasa de Falla'!IT125=0,"",'[1]Tasa de Falla'!IT125) ->  | M125: =IF('[1]Tasa de Falla'!IU125=0,"",'[1]Tasa de Falla'!IU125) ->  | N125: =IF('[1]Tasa de Falla'!IV125=0,"",'[1]Tasa de Falla'!IV125) ->  | O125: =IF('[1]Tasa de Falla'!IW125=0,"",'[1]Tasa de Falla'!IW125) -> 1 | P125: =IF('[1]Tasa de Falla'!IX125=0,"",'[1]Tasa de Falla'!IX125) ->  | Q125: =IF('[1]Tasa de Falla'!IY125=0,"",'[1]Tasa de Falla'!IY125) ->  | R125: =IF('[1]Tasa de Falla'!IZ125=0,"",'[1]Tasa de Falla'!IZ125) -> 
C126: ='[1]Tasa de Falla'!C126 -> 109 | D126: ='[1]Tasa de Falla'!D126 -> PI PATQUIA - PATQUIA 132 1 | E126: ='[1]Tasa de Falla'!E126 -> 132 | F126: ='[1]Tasa de Falla'!F126 -> 58.65 | G126: =IF('[1]Tasa de Falla'!IO126=0,"",'[1]Tasa de Falla'!IO126) -> XXXX | H126: =IF('[1]Tasa de Falla'!IP126=0,"",'[1]Tasa de Falla'!IP126) ->  | I126: =IF('[1]Tasa de Falla'!IQ126=0,"",'[1]Tasa de Falla'!IQ126) ->  | J126: =IF('[1]Tasa de Falla'!IR126=0,"",'[1]Tasa de Falla'!IR126) ->  | K126: =IF('[1]Tasa de Falla'!IS126=0,"",'[1]Tasa de Falla'!IS126) ->  | L126: =IF('[1]Tasa de Falla'!IT126=0,"",'[1]Tasa de Falla'!IT126) ->  | M126: =IF('[1]Tasa de Falla'!IU126=0,"",'[1]Tasa de Falla'!IU126) ->  | N126: =IF('[1]Tasa de Falla'!IV126=0,"",'[1]Tasa de Falla'!IV126) ->  | O126: =IF('[1]Tasa de Falla'!IW126=0,"",'[1]Tasa de Falla'!IW126) ->  | P126: =IF('[1]Tasa de Falla'!IX126=0,"",'[1]Tasa de Falla'!IX126) ->  | Q126: =IF('[1]Tasa de Falla'!IY126=0,"",'[1]Tasa de Falla'!IY126) ->  | R126: =IF('[1]Tasa de Falla'!IZ126=0,"",'[1]Tasa de Falla'!IZ126) -> 
C127: ='[1]Tasa de Falla'!C127 -> 110 | D127: ='[1]Tasa de Falla'!D127 -> RIO HONDO - TERMAS NORTE | E127: ='[1]Tasa de Falla'!E127 -> 132 | F127: ='[1]Tasa de Falla'!F127 -> 5.8 | G127: =IF('[1]Tasa de Falla'!IO127=0,"",'[1]Tasa de Falla'!IO127) -> XXXX | H127: =IF('[1]Tasa de Falla'!IP127=0,"",'[1]Tasa de Falla'!IP127) -> XXXX | I127: =IF('[1]Tasa de Falla'!IQ127=0,"",'[1]Tasa de Falla'!IQ127) -> XXXX | J127: =IF('[1]Tasa de Falla'!IR127=0,"",'[1]Tasa de Falla'!IR127) -> XXXX | K127: =IF('[1]Tasa de Falla'!IS127=0,"",'[1]Tasa de Falla'!IS127) ->  | L127: =IF('[1]Tasa de Falla'!IT127=0,"",'[1]Tasa de Falla'!IT127) ->  | M127: =IF('[1]Tasa de Falla'!IU127=0,"",'[1]Tasa de Falla'!IU127) ->  | N127: =IF('[1]Tasa de Falla'!IV127=0,"",'[1]Tasa de Falla'!IV127) ->  | O127: =IF('[1]Tasa de Falla'!IW127=0,"",'[1]Tasa de Falla'!IW127) ->  | P127: =IF('[1]Tasa de Falla'!IX127=0,"",'[1]Tasa de Falla'!IX127) ->  | Q127: =IF('[1]Tasa de Falla'!IY127=0,"",'[1]Tasa de Falla'!IY127) ->  | R127: =IF('[1]Tasa de Falla'!IZ127=0,"",'[1]Tasa de Falla'!IZ127) -> 
C128: ='[1]Tasa de Falla'!C128 -> 111 | D128: ='[1]Tasa de Falla'!D128 -> EL BRACHO - TETRMAS NORTE | E128: ='[1]Tasa de Falla'!E128 -> 132 | F128: ='[1]Tasa de Falla'!F128 -> 78.4 | G128: =IF('[1]Tasa de Falla'!IO128=0,"",'[1]Tasa de Falla'!IO128) -> XXXX | H128: =IF('[1]Tasa de Falla'!IP128=0,"",'[1]Tasa de Falla'!IP128) -> XXXX | I128: =IF('[1]Tasa de Falla'!IQ128=0,"",'[1]Tasa de Falla'!IQ128) -> XXXX | J128: =IF('[1]Tasa de Falla'!IR128=0,"",'[1]Tasa de Falla'!IR128) -> XXXX | K128: =IF('[1]Tasa de Falla'!IS128=0,"",'[1]Tasa de Falla'!IS128) ->  | L128: =IF('[1]Tasa de Falla'!IT128=0,"",'[1]Tasa de Falla'!IT128) ->  | M128: =IF('[1]Tasa de Falla'!IU128=0,"",'[1]Tasa de Falla'!IU128) ->  | N128: =IF('[1]Tasa de Falla'!IV128=0,"",'[1]Tasa de Falla'!IV128) ->  | O128: =IF('[1]Tasa de Falla'!IW128=0,"",'[1]Tasa de Falla'!IW128) ->  | P128: =IF('[1]Tasa de Falla'!IX128=0,"",'[1]Tasa de Falla'!IX128) ->  | Q128: =IF('[1]Tasa de Falla'!IY128=0,"",'[1]Tasa de Falla'!IY128) ->  | R128: =IF('[1]Tasa de Falla'!IZ128=0,"",'[1]Tasa de Falla'!IZ128) -> 1
C129: ='[1]Tasa de Falla'!C129 -> 112 | D129: ='[1]Tasa de Falla'!D129 -> PI 150 NORTE - LA RIOJA ESTE | E129: ='[1]Tasa de Falla'!E129 -> 132 | F129: ='[1]Tasa de Falla'!F129 -> 4 | G129: =IF('[1]Tasa de Falla'!IO129=0,"",'[1]Tasa de Falla'!IO129) -> XXXX | H129: =IF('[1]Tasa de Falla'!IP129=0,"",'[1]Tasa de Falla'!IP129) -> XXXX | I129: =IF('[1]Tasa de Falla'!IQ129=0,"",'[1]Tasa de Falla'!IQ129) -> XXXX | J129: =IF('[1]Tasa de Falla'!IR129=0,"",'[1]Tasa de Falla'!IR129) -> XXXX | K129: =IF('[1]Tasa de Falla'!IS129=0,"",'[1]Tasa de Falla'!IS129) ->  | L129: =IF('[1]Tasa de Falla'!IT129=0,"",'[1]Tasa de Falla'!IT129) ->  | M129: =IF('[1]Tasa de Falla'!IU129=0,"",'[1]Tasa de Falla'!IU129) ->  | N129: =IF('[1]Tasa de Falla'!IV129=0,"",'[1]Tasa de Falla'!IV129) ->  | O129: =IF('[1]Tasa de Falla'!IW129=0,"",'[1]Tasa de Falla'!IW129) ->  | P129: =IF('[1]Tasa de Falla'!IX129=0,"",'[1]Tasa de Falla'!IX129) ->  | Q129: =IF('[1]Tasa de Falla'!IY129=0,"",'[1]Tasa de Falla'!IY129) ->  | R129: =IF('[1]Tasa de Falla'!IZ129=0,"",'[1]Tasa de Falla'!IZ129) -> 
C130: ='[1]Tasa de Falla'!C130 -> 113 | D130: ='[1]Tasa de Falla'!D130 -> PI 150 SUR - LA RIOJA ESTE | E130: ='[1]Tasa de Falla'!E130 -> 132 | F130: ='[1]Tasa de Falla'!F130 -> 4 | G130: =IF('[1]Tasa de Falla'!IO130=0,"",'[1]Tasa de Falla'!IO130) -> XXXX | H130: =IF('[1]Tasa de Falla'!IP130=0,"",'[1]Tasa de Falla'!IP130) -> XXXX | I130: =IF('[1]Tasa de Falla'!IQ130=0,"",'[1]Tasa de Falla'!IQ130) -> XXXX | J130: =IF('[1]Tasa de Falla'!IR130=0,"",'[1]Tasa de Falla'!IR130) -> XXXX | K130: =IF('[1]Tasa de Falla'!IS130=0,"",'[1]Tasa de Falla'!IS130) ->  | L130: =IF('[1]Tasa de Falla'!IT130=0,"",'[1]Tasa de Falla'!IT130) ->  | M130: =IF('[1]Tasa de Falla'!IU130=0,"",'[1]Tasa de Falla'!IU130) ->  | N130: =IF('[1]Tasa de Falla'!IV130=0,"",'[1]Tasa de Falla'!IV130) ->  | O130: =IF('[1]Tasa de Falla'!IW130=0,"",'[1]Tasa de Falla'!IW130) ->  | P130: =IF('[1]Tasa de Falla'!IX130=0,"",'[1]Tasa de Falla'!IX130) ->  | Q130: =IF('[1]Tasa de Falla'!IY130=0,"",'[1]Tasa de Falla'!IY130) ->  | R130: =IF('[1]Tasa de Falla'!IZ130=0,"",'[1]Tasa de Falla'!IZ130) -> 
C131: ='[1]Tasa de Falla'!C131 -> 114 | D131: ='[1]Tasa de Falla'!D131 -> QUIMILI - CAMPO GALLO 132 1 | E131: ='[1]Tasa de Falla'!E131 -> 132 | F131: ='[1]Tasa de Falla'!F131 -> 140 | G131: =IF('[1]Tasa de Falla'!IO131=0,"",'[1]Tasa de Falla'!IO131) -> XXXX | H131: =IF('[1]Tasa de Falla'!IP131=0,"",'[1]Tasa de Falla'!IP131) -> XXXX | I131: =IF('[1]Tasa de Falla'!IQ131=0,"",'[1]Tasa de Falla'!IQ131) -> XXXX | J131: =IF('[1]Tasa de Falla'!IR131=0,"",'[1]Tasa de Falla'!IR131) -> XXXX | K131: =IF('[1]Tasa de Falla'!IS131=0,"",'[1]Tasa de Falla'!IS131) -> XXXX | L131: =IF('[1]Tasa de Falla'!IT131=0,"",'[1]Tasa de Falla'!IT131) ->  | M131: =IF('[1]Tasa de Falla'!IU131=0,"",'[1]Tasa de Falla'!IU131) ->  | N131: =IF('[1]Tasa de Falla'!IV131=0,"",'[1]Tasa de Falla'!IV131) ->  | O131: =IF('[1]Tasa de Falla'!IW131=0,"",'[1]Tasa de Falla'!IW131) ->  | P131: =IF('[1]Tasa de Falla'!IX131=0,"",'[1]Tasa de Falla'!IX131) ->  | Q131: =IF('[1]Tasa de Falla'!IY131=0,"",'[1]Tasa de Falla'!IY131) ->  | R131: =IF('[1]Tasa de Falla'!IZ131=0,"",'[1]Tasa de Falla'!IZ131) -> 
C132: ='[1]Tasa de Falla'!C132 -> 115 | D132: ='[1]Tasa de Falla'!D132 -> CAMPO GALLO - COPO 132 1 | E132: ='[1]Tasa de Falla'!E132 -> 132 | F132: ='[1]Tasa de Falla'!F132 -> 90 | G132: =IF('[1]Tasa de Falla'!IO132=0,"",'[1]Tasa de Falla'!IO132) -> XXXX | H132: =IF('[1]Tasa de Falla'!IP132=0,"",'[1]Tasa de Falla'!IP132) -> XXXX | I132: =IF('[1]Tasa de Falla'!IQ132=0,"",'[1]Tasa de Falla'!IQ132) -> XXXX | J132: =IF('[1]Tasa de Falla'!IR132=0,"",'[1]Tasa de Falla'!IR132) -> XXXX | K132: =IF('[1]Tasa de Falla'!IS132=0,"",'[1]Tasa de Falla'!IS132) -> XXXX | L132: =IF('[1]Tasa de Falla'!IT132=0,"",'[1]Tasa de Falla'!IT132) ->  | M132: =IF('[1]Tasa de Falla'!IU132=0,"",'[1]Tasa de Falla'!IU132) ->  | N132: =IF('[1]Tasa de Falla'!IV132=0,"",'[1]Tasa de Falla'!IV132) ->  | O132: =IF('[1]Tasa de Falla'!IW132=0,"",'[1]Tasa de Falla'!IW132) ->  | P132: =IF('[1]Tasa de Falla'!IX132=0,"",'[1]Tasa de Falla'!IX132) ->  | Q132: =IF('[1]Tasa de Falla'!IY132=0,"",'[1]Tasa de Falla'!IY132) ->  | R132: =IF('[1]Tasa de Falla'!IZ132=0,"",'[1]Tasa de Falla'!IZ132) -> 
C133: ='[1]Tasa de Falla'!C133 -> 116 | D133: ='[1]Tasa de Falla'!D133 -> PICHANAL - SENDA HACHADA 132 1 | E133: ='[1]Tasa de Falla'!E133 -> 132 | F133: ='[1]Tasa de Falla'!F133 -> 46.5 | G133: =IF('[1]Tasa de Falla'!IO133=0,"",'[1]Tasa de Falla'!IO133) -> XXXX | H133: =IF('[1]Tasa de Falla'!IP133=0,"",'[1]Tasa de Falla'!IP133) -> XXXX | I133: =IF('[1]Tasa de Falla'!IQ133=0,"",'[1]Tasa de Falla'!IQ133) -> XXXX | J133: =IF('[1]Tasa de Falla'!IR133=0,"",'[1]Tasa de Falla'!IR133) -> XXXX | K133: =IF('[1]Tasa de Falla'!IS133=0,"",'[1]Tasa de Falla'!IS133) -> XXXX | L133: =IF('[1]Tasa de Falla'!IT133=0,"",'[1]Tasa de Falla'!IT133) -> XXXX | M133: =IF('[1]Tasa de Falla'!IU133=0,"",'[1]Tasa de Falla'!IU133) -> XXXX | N133: =IF('[1]Tasa de Falla'!IV133=0,"",'[1]Tasa de Falla'!IV133) ->  | O133: =IF('[1]Tasa de Falla'!IW133=0,"",'[1]Tasa de Falla'!IW133) ->  | P133: =IF('[1]Tasa de Falla'!IX133=0,"",'[1]Tasa de Falla'!IX133) ->  | Q133: =IF('[1]Tasa de Falla'!IY133=0,"",'[1]Tasa de Falla'!IY133) ->  | R133: =IF('[1]Tasa de Falla'!IZ133=0,"",'[1]Tasa de Falla'!IZ133) -> 
C134: ='[1]Tasa de Falla'!C134 -> 117 | D134: ='[1]Tasa de Falla'!D134 -> SENDA HACHADA - TARTAGAL 132 1 | E134: ='[1]Tasa de Falla'!E134 -> 132 | F134: ='[1]Tasa de Falla'!F134 -> 58.5 | G134: =IF('[1]Tasa de Falla'!IO134=0,"",'[1]Tasa de Falla'!IO134) -> XXXX | H134: =IF('[1]Tasa de Falla'!IP134=0,"",'[1]Tasa de Falla'!IP134) -> XXXX | I134: =IF('[1]Tasa de Falla'!IQ134=0,"",'[1]Tasa de Falla'!IQ134) -> XXXX | J134: =IF('[1]Tasa de Falla'!IR134=0,"",'[1]Tasa de Falla'!IR134) -> XXXX | K134: =IF('[1]Tasa de Falla'!IS134=0,"",'[1]Tasa de Falla'!IS134) -> XXXX | L134: =IF('[1]Tasa de Falla'!IT134=0,"",'[1]Tasa de Falla'!IT134) -> XXXX | M134: =IF('[1]Tasa de Falla'!IU134=0,"",'[1]Tasa de Falla'!IU134) -> XXXX | N134: =IF('[1]Tasa de Falla'!IV134=0,"",'[1]Tasa de Falla'!IV134) ->  | O134: =IF('[1]Tasa de Falla'!IW134=0,"",'[1]Tasa de Falla'!IW134) ->  | P134: =IF('[1]Tasa de Falla'!IX134=0,"",'[1]Tasa de Falla'!IX134) ->  | Q134: =IF('[1]Tasa de Falla'!IY134=0,"",'[1]Tasa de Falla'!IY134) ->  | R134: =IF('[1]Tasa de Falla'!IZ134=0,"",'[1]Tasa de Falla'!IZ134) -> 
C135: ='[1]Tasa de Falla'!C135 -> 118 | D135: ='[1]Tasa de Falla'!D135 -> ESTATICA - INDEPENDENCIA.TUC. 132 2 | E135: ='[1]Tasa de Falla'!E135 -> 132 | F135: ='[1]Tasa de Falla'!F135 -> 3.1 | G135: =IF('[1]Tasa de Falla'!IO135=0,"",'[1]Tasa de Falla'!IO135) -> XXXX | H135: =IF('[1]Tasa de Falla'!IP135=0,"",'[1]Tasa de Falla'!IP135) -> XXXX | I135: =IF('[1]Tasa de Falla'!IQ135=0,"",'[1]Tasa de Falla'!IQ135) -> XXXX | J135: =IF('[1]Tasa de Falla'!IR135=0,"",'[1]Tasa de Falla'!IR135) -> XXXX | K135: =IF('[1]Tasa de Falla'!IS135=0,"",'[1]Tasa de Falla'!IS135) -> XXXX | L135: =IF('[1]Tasa de Falla'!IT135=0,"",'[1]Tasa de Falla'!IT135) -> XXXX | M135: =IF('[1]Tasa de Falla'!IU135=0,"",'[1]Tasa de Falla'!IU135) -> XXXX | N135: =IF('[1]Tasa de Falla'!IV135=0,"",'[1]Tasa de Falla'!IV135) -> XXXX | O135: =IF('[1]Tasa de Falla'!IW135=0,"",'[1]Tasa de Falla'!IW135) -> XXXX | P135: =IF('[1]Tasa de Falla'!IX135=0,"",'[1]Tasa de Falla'!IX135) ->  | Q135: =IF('[1]Tasa de Falla'!IY135=0,"",'[1]Tasa de Falla'!IY135) ->  | R135: =IF('[1]Tasa de Falla'!IZ135=0,"",'[1]Tasa de Falla'!IZ135) -> 1
C136: ='[1]Tasa de Falla'!C136 -> 119 | D136: ='[1]Tasa de Falla'!D136 -> SENDA HACHADA - DRAGONES 132 1 | E136: ='[1]Tasa de Falla'!E136 -> 132 | F136: ='[1]Tasa de Falla'!F136 -> 65 | G136: =IF('[1]Tasa de Falla'!IO136=0,"",'[1]Tasa de Falla'!IO136) -> XXXX | H136: =IF('[1]Tasa de Falla'!IP136=0,"",'[1]Tasa de Falla'!IP136) -> XXXX | I136: =IF('[1]Tasa de Falla'!IQ136=0,"",'[1]Tasa de Falla'!IQ136) -> XXXX | J136: =IF('[1]Tasa de Falla'!IR136=0,"",'[1]Tasa de Falla'!IR136) -> XXXX | K136: =IF('[1]Tasa de Falla'!IS136=0,"",'[1]Tasa de Falla'!IS136) -> XXXX | L136: =IF('[1]Tasa de Falla'!IT136=0,"",'[1]Tasa de Falla'!IT136) -> XXXX | M136: =IF('[1]Tasa de Falla'!IU136=0,"",'[1]Tasa de Falla'!IU136) -> XXXX | N136: =IF('[1]Tasa de Falla'!IV136=0,"",'[1]Tasa de Falla'!IV136) -> XXXX | O136: =IF('[1]Tasa de Falla'!IW136=0,"",'[1]Tasa de Falla'!IW136) -> XXXX | P136: =IF('[1]Tasa de Falla'!IX136=0,"",'[1]Tasa de Falla'!IX136) -> XXXX | Q136: =IF('[1]Tasa de Falla'!IY136=0,"",'[1]Tasa de Falla'!IY136) -> XXXX | R136: =IF('[1]Tasa de Falla'!IZ136=0,"",'[1]Tasa de Falla'!IZ136) -> XXXX
C137: ='[1]Tasa de Falla'!C137 -> 120 | D137: ='[1]Tasa de Falla'!D137 -> COBOS - SALTA ESTE 132 1 | E137: ='[1]Tasa de Falla'!E137 -> 132 | F137: ='[1]Tasa de Falla'!F137 -> 45.6 | G137: =IF('[1]Tasa de Falla'!IO137=0,"",'[1]Tasa de Falla'!IO137) -> XXXX | H137: =IF('[1]Tasa de Falla'!IP137=0,"",'[1]Tasa de Falla'!IP137) -> XXXX | I137: =IF('[1]Tasa de Falla'!IQ137=0,"",'[1]Tasa de Falla'!IQ137) -> XXXX | J137: =IF('[1]Tasa de Falla'!IR137=0,"",'[1]Tasa de Falla'!IR137) -> XXXX | K137: =IF('[1]Tasa de Falla'!IS137=0,"",'[1]Tasa de Falla'!IS137) -> XXXX | L137: =IF('[1]Tasa de Falla'!IT137=0,"",'[1]Tasa de Falla'!IT137) -> XXXX | M137: =IF('[1]Tasa de Falla'!IU137=0,"",'[1]Tasa de Falla'!IU137) -> XXXX | N137: =IF('[1]Tasa de Falla'!IV137=0,"",'[1]Tasa de Falla'!IV137) -> XXXX | O137: =IF('[1]Tasa de Falla'!IW137=0,"",'[1]Tasa de Falla'!IW137) -> XXXX | P137: =IF('[1]Tasa de Falla'!IX137=0,"",'[1]Tasa de Falla'!IX137) ->  | Q137: =IF('[1]Tasa de Falla'!IY137=0,"",'[1]Tasa de Falla'!IY137) -> 1 | R137: =IF('[1]Tasa de Falla'!IZ137=0,"",'[1]Tasa de Falla'!IZ137) -> 
C138: ='[1]Tasa de Falla'!C138 -> 121 | D138: ='[1]Tasa de Falla'!D138 -> SANTIAGO - SANTIAGO SUR | E138: ='[1]Tasa de Falla'!E138 -> 132 | F138: ='[1]Tasa de Falla'!F138 -> 8.4 | G138: =IF('[1]Tasa de Falla'!IO138=0,"",'[1]Tasa de Falla'!IO138) -> XXXX | H138: =IF('[1]Tasa de Falla'!IP138=0,"",'[1]Tasa de Falla'!IP138) -> XXXX | I138: =IF('[1]Tasa de Falla'!IQ138=0,"",'[1]Tasa de Falla'!IQ138) -> XXXX | J138: =IF('[1]Tasa de Falla'!IR138=0,"",'[1]Tasa de Falla'!IR138) -> XXXX | K138: =IF('[1]Tasa de Falla'!IS138=0,"",'[1]Tasa de Falla'!IS138) -> XXXX | L138: =IF('[1]Tasa de Falla'!IT138=0,"",'[1]Tasa de Falla'!IT138) -> XXXX | M138: =IF('[1]Tasa de Falla'!IU138=0,"",'[1]Tasa de Falla'!IU138) -> XXXX | N138: =IF('[1]Tasa de Falla'!IV138=0,"",'[1]Tasa de Falla'!IV138) -> XXXX | O138: =IF('[1]Tasa de Falla'!IW138=0,"",'[1]Tasa de Falla'!IW138) -> XXXX | P138: =IF('[1]Tasa de Falla'!IX138=0,"",'[1]Tasa de Falla'!IX138) -> XXXX | Q138: =IF('[1]Tasa de Falla'!IY138=0,"",'[1]Tasa de Falla'!IY138) -> XXXX | R138: =IF('[1]Tasa de Falla'!IZ138=0,"",'[1]Tasa de Falla'!IZ138) -> XXXX
C139: ='[1]Tasa de Falla'!C139 -> 122 | D139: ='[1]Tasa de Falla'!D139 -> SANTIAGO OESTE - SANTIAGO | E139: ='[1]Tasa de Falla'!E139 -> 132 | F139: ='[1]Tasa de Falla'!F139 -> 8.4 | G139: =IF('[1]Tasa de Falla'!IO139=0,"",'[1]Tasa de Falla'!IO139) -> XXXX | H139: =IF('[1]Tasa de Falla'!IP139=0,"",'[1]Tasa de Falla'!IP139) -> XXXX | I139: =IF('[1]Tasa de Falla'!IQ139=0,"",'[1]Tasa de Falla'!IQ139) -> XXXX | J139: =IF('[1]Tasa de Falla'!IR139=0,"",'[1]Tasa de Falla'!IR139) -> XXXX | K139: =IF('[1]Tasa de Falla'!IS139=0,"",'[1]Tasa de Falla'!IS139) -> XXXX | L139: =IF('[1]Tasa de Falla'!IT139=0,"",'[1]Tasa de Falla'!IT139) -> XXXX | M139: =IF('[1]Tasa de Falla'!IU139=0,"",'[1]Tasa de Falla'!IU139) -> XXXX | N139: =IF('[1]Tasa de Falla'!IV139=0,"",'[1]Tasa de Falla'!IV139) -> XXXX | O139: =IF('[1]Tasa de Falla'!IW139=0,"",'[1]Tasa de Falla'!IW139) -> XXXX | P139: =IF('[1]Tasa de Falla'!IX139=0,"",'[1]Tasa de Falla'!IX139) -> XXXX | Q139: =IF('[1]Tasa de Falla'!IY139=0,"",'[1]Tasa de Falla'!IY139) -> XXXX | R139: =IF('[1]Tasa de Falla'!IZ139=0,"",'[1]Tasa de Falla'!IZ139) -> XXXX
C140: ='[1]Tasa de Falla'!C140 -> 123 | D140: ='[1]Tasa de Falla'!D140 -> LA BANDA - MISQUI MAYU II - SANTIAGO ESTE II | E140: ='[1]Tasa de Falla'!E140 -> 132 | F140: ='[1]Tasa de Falla'!F140 -> 4.92 | G140: =IF('[1]Tasa de Falla'!IO140=0,"",'[1]Tasa de Falla'!IO140) -> XXXX | H140: =IF('[1]Tasa de Falla'!IP140=0,"",'[1]Tasa de Falla'!IP140) -> XXXX | I140: =IF('[1]Tasa de Falla'!IQ140=0,"",'[1]Tasa de Falla'!IQ140) -> XXXX | J140: =IF('[1]Tasa de Falla'!IR140=0,"",'[1]Tasa de Falla'!IR140) -> XXXX | K140: =IF('[1]Tasa de Falla'!IS140=0,"",'[1]Tasa de Falla'!IS140) -> XXXX | L140: =IF('[1]Tasa de Falla'!IT140=0,"",'[1]Tasa de Falla'!IT140) -> XXXX | M140: =IF('[1]Tasa de Falla'!IU140=0,"",'[1]Tasa de Falla'!IU140) -> XXXX | N140: =IF('[1]Tasa de Falla'!IV140=0,"",'[1]Tasa de Falla'!IV140) -> XXXX | O140: =IF('[1]Tasa de Falla'!IW140=0,"",'[1]Tasa de Falla'!IW140) -> XXXX | P140: =IF('[1]Tasa de Falla'!IX140=0,"",'[1]Tasa de Falla'!IX140) -> XXXX | Q140: =IF('[1]Tasa de Falla'!IY140=0,"",'[1]Tasa de Falla'!IY140) ->  | R140: =IF('[1]Tasa de Falla'!IZ140=0,"",'[1]Tasa de Falla'!IZ140) -> 
G141: =IF('[1]Tasa de Falla'!IO141=0,"",'[1]Tasa de Falla'!IO141) ->  | H141: =IF('[1]Tasa de Falla'!IP141=0,"",'[1]Tasa de Falla'!IP141) ->  | I141: =IF('[1]Tasa de Falla'!IQ141=0,"",'[1]Tasa de Falla'!IQ141) ->  | J141: =IF('[1]Tasa de Falla'!IR141=0,"",'[1]Tasa de Falla'!IR141) ->  | K141: =IF('[1]Tasa de Falla'!IS141=0,"",'[1]Tasa de Falla'!IS141) ->  | L141: =IF('[1]Tasa de Falla'!IT141=0,"",'[1]Tasa de Falla'!IT141) ->  | M141: =IF('[1]Tasa de Falla'!IU141=0,"",'[1]Tasa de Falla'!IU141) ->  | N141: =IF('[1]Tasa de Falla'!IV141=0,"",'[1]Tasa de Falla'!IV141) ->  | O141: =IF('[1]Tasa de Falla'!IW141=0,"",'[1]Tasa de Falla'!IW141) ->  | P141: =IF('[1]Tasa de Falla'!IX141=0,"",'[1]Tasa de Falla'!IX141) ->  | Q141: =IF('[1]Tasa de Falla'!IY141=0,"",'[1]Tasa de Falla'!IY141) ->  | R141: =IF('[1]Tasa de Falla'!IZ141=0,"",'[1]Tasa de Falla'!IZ141) -> 
E142: Longitud Total | F142: =SUM(F16:F141)-F19-F21-F22-F26-F27-F37-F39-F40-F43-F44-F47-F48-F49-F53-F60-F65-F78-F82-F96-F101-F111 -> 5812.53
F143: Indisponibilidades Forzadas | G143: =SUM(G17:G141) -> 6 | H143: =SUM(H17:H141) -> 3 | I143: =SUM(I17:I141) -> 5 | J143: 17 | K143: 10 | L143: 19 | M143: 12 | N143: 14 | O143: 15 | P143: 10 | Q143: 4 | R143: 11
F144: TASA DE FALLA | G144: =+'[1]Tasa de Falla'!IO151 -> 4.65 | H144: =+'[1]Tasa de Falla'!IP151 -> 3.87 | I144: =+'[1]Tasa de Falla'!IQ151 -> 3.45 | J144: =+'[1]Tasa de Falla'!IR151 -> 3.26 | K144: =+'[1]Tasa de Falla'!IS151 -> 3.35 | L144: =+'[1]Tasa de Falla'!IT151 -> 2.96 | M144: =+'[1]Tasa de Falla'!IU151 -> 2.64 | N144: =+'[1]Tasa de Falla'!IV151 -> 2.37 | O144: =+'[1]Tasa de Falla'!IW151 -> 2.45 | P144: =+'[1]Tasa de Falla'!IX151 -> 2.47 | Q144: =+'[1]Tasa de Falla'!IY151 -> 2.58 | R144: =+'[1]Tasa de Falla'!IZ151 -> 2.32 | S144: =+'[1]Tasa de Falla'!JA151 -> 2.5
C146: XXX | D146: Línea no computada en el mes | I146: TASA DE FALLA | L146: =S144 -> 2.5 | N146: SALIDAS x AÑO / 100 km

Sheet DATO
A1: Mes | B1: Mes | C1: Dia | D1: Año
A2: enero | B2: 01 | C2: 31 | D2: 2006
A3: febrero | B3: 02 | C3: =IF(MOD(E14,4)=0,29,28) -> 28 | D3: =+D2+1 -> 2007
A4: marzo | B4: 03 | C4: 31 | D4: 2008
A5: abril | B5: 04 | C5: 30 | D5: 2009
A6: mayo | B6: 05 | C6: 31 | D6: 2010
A7: junio | B7: 06 | C7: 30 | D7: 2011
A8: julio | B8: 07 | C8: 31 | D8: 2012
A9: agosto | B9: 08 | C9: 31 | D9: 2013
A10: septiembre | B10: 09 | C10: 30 | D10: 2014
A11: octubre | B11: 10 | C11: 31 | D11: 2015
A12: noviembre | B12: 11 | C12: 30
A13: diciembre | B13: 12 | C13: 31 | I13: Total
A14: 10 | B14: 8 | C14: =CELL("CONTENIDO",OFFSET(A1,B14,0)) -> agosto | D14: =CELL("CONTENIDO",OFFSET(C1,B14,0)) -> 31 | E14: =CELL("CONTENIDO",OFFSET(D1,A14,0)) -> 2015 | F14: ="Desde el 01 al " & D14 & " de " & C14 & " de " & E14 -> Desde el 01 al 31 de agosto de 2015 | G14: =CELL("CONTENIDO",OFFSET(B1,B14,0)) -> 08 | H14: =RIGHT(E14,2) -> 15 | I14: B14
B15: ="\\rugor\files\Transporte\Transporte\AA PROCESO AUT ARCHIVOS J\TRANSNOA\" &E14 -> \\rugor\files\Transporte\Transporte\AA PROCESO AUT ARCHIVOS J\TRANSNOA\2015 | G15: ="J"&G14&H14&"NOA" -> J0815NOA
B16: ="\\rugor\files\Transporte\transporte\AA PROCESO AUT\INTERCAMBIO\" &H14&G14 -> \\rugor\files\Transporte\transporte\AA PROCESO AUT\INTERCAMBIO\1508
A17: Hoja | B17: FilaInicio | C17: FilasPlantilla | D17: Columnas | E17: NombreHoja | F17: OrigenDeDatos | G17: Col00 | H17: Col01 | I17: Col02 | J17: Col03 | K17: Col04 | L17: Col05 | M17: Col06 | N17: Col07 | O17: Col08 | P17: Col09 | Q17: Col10 | R17: Col11 | S17: Col12 | T17: Col13 | U17: Col14 | V17: Col15 | W17: FILHTOTAL | X17: COLHTOTAL | Y17: FILHCALC | Z17: COLHCALC | AA17: FILTRANSP | AB17: COLTRANSP | AC17: COL TSAL
A18: MODELO L | B18: 21 | C18: 20 | D18: 11 | E18: ="LI-" & $G$14 -> LI-08 | F18: TRANSNOA_INDISPONIBILIDADES_LINEAS_TRANSNOA.XLS | G18: 3 | H18: 5 | I18: 4 | J18: 6 | K18: 7 | L18: 8 | M18: 0 | N18: 10 | O18: 11 | P18: 14 | Q18: 0 | R18: 26 | S18: 0 | T18: 0 | U18: 0 | V18: 0 | W18: 19 | X18: 10 | Y18: 42 | Z18: 27 | AA18: 19 | AB18: 27 | AC18: 14
A19: MODELO T | B19: 24 | C19: 20 | D19: 13 | E19: ="T-" & $G$14 -> T-08 | F19: TRANSNOA_INDISPONIBILIDADES_TRAFOS_TRANSNOA.XLS | G19: 3 | H19: 5 | I19: 4 | J19: 6 | K19: 7 | L19: 8 | M19: 9 | N19: 11 | O19: 12 | P19: 15 | Q19: 16 | R19: 18 | S19: 28 | T19: 17 | U19: 0 | V19: 0 | W19: 25 | X19: 10 | Y19: 45 | Z19: 29 | AA19: 22 | AB19: 29 | AC19: 15
A20: MODELO S | B20: 23 | C20: 20 | D20: 10 | E20: ="SA-" & $G$14 -> SA-08 | F20: TRANSNOA_INDISPONIBILIDADES_SALIDAS_TRANSNOA.XLS | G20: 3 | H20: 5 | I20: 4 | J20: 6 | K20: 7 | L20: 8 | M20: 10 | N20: 11 | O20: 14 | P20: 15 | Q20: 21 | R20: 0 | S20: 0 | T20: 0 | U20: 0 | V20: 0 | W20: 29 | X20: 10 | Y20: 44 | Z20: 22 | AA20: 21 | AB20: 22 | AC20: 14
A21: MODELO L RIOJA | B21: 21 | C21: 20 | D21: 11 | E21: ="LI-RIOJA-" & $G$14 -> LI-RIOJA-08 | F21: TRANSNOA_INDISPONIBILIDADES_LINEAS_RIOJA.XLS | G21: 3 | H21: 5 | I21: 4 | J21: 6 | K21: 7 | L21: 8 | M21: 0 | N21: 10 | O21: 11 | P21: 14 | Q21: 2 | R21: 26 | S21: 0 | T21: 0 | U21: 0 | V21: 0 | W21: 21 | X21: 10 | Y21: 42 | Z21: 27 | AA21: 19 | AB21: 27 | AC21: 14
A22: MODELO L EDESA | B22: 21 | C22: 20 | D22: 11 | E22: ="LI-EDESA-" & $G$14 -> LI-EDESA-08 | F22: TRANSNOA_INDISPONIBILIDADES_LINEAS_EDESA.XLS | G22: 3 | H22: 5 | I22: 4 | J22: 6 | K22: 7 | L22: 8 | M22: 0 | N22: 10 | O22: 11 | P22: 14 | Q22: 2 | R22: 26 | S22: 0 | T22: 0 | U22: 0 | V22: 0 | W22: 20 | X22: 10 | Y22: 42 | Z22: 27 | AA22: 19 | AB22: 27 | AC22: 14
A23: MODELO T EDESA | B23: 24 | C23: 20 | D23: 13 | E23: ="T-EDESA-" & $G$14 -> T-EDESA-08 | F23: TRANSNOA_INDISPONIBILIDADES_TRAFOS_EDESA.XLS | G23: 3 | H23: 5 | I23: 4 | J23: 6 | K23: 7 | L23: 8 | M23: 9 | N23: 11 | O23: 12 | P23: 15 | Q23: 16 | R23: 18 | S23: 28 | T23: 17 | U23: 0 | V23: 0 | W23: 26 | X23: 10 | Y23: 45 | Z23: 29 | AA23: 22 | AB23: 29 | AC23: 15
A24: MODELO S EDESA | B24: 23 | C24: 20 | D24: 10 | E24: ="SA-EDESA-" & $G$14 -> SA-EDESA-08 | F24: TRANSNOA_INDISPONIBILIDADES_SALIDAS_EDESA.XLS | G24: 3 | H24: 5 | I24: 4 | J24: 6 | K24: 7 | L24: 8 | M24: 10 | N24: 11 | O24: 14 | P24: 15 | Q24: 21 | R24: 0 | S24: 0 | T24: 0 | U24: 0 | V24: 0 | W24: 30 | X24: 10 | Y24: 44 | Z24: 22 | AA24: 21 | AB24: 22 | AC24: 14
A25: MODELO VST | B25: 19 | C25: 24 | D25: 4 | E25: ="CAUSAS-VST-" & $G$14 -> CAUSAS-VST-08 | F25: TRANSNOA_CAUSAS_VST.XLS | G25: 3 | H25: 4 | I25: 5 | J25: 6 | K25: 7 | L25: 0 | M25: 0 | N25: 0 | O25: 0 | P25: 0 | Q25: 0 | R25: 0 | S25: 0 | T25: 0 | U25: 0 | V25: 0 | W25: 999 | X25: 999 | Y25: 0 | Z25: 0 | AA25: 0 | AB25: 0 | AC25: 0
